Workbook

Sheet Server10 Lotto2 DL560
A5: Server10 Lotto2 DL560 | H5: List Price *
H6: =F17*C16 -> 0
A11: Components: Server HP Proliant DL560 Gen9 (2CPU Intel® Xeon® E5-4620 v4, 64GB , 2xHDD 300GB 15K RPM SAS 12Gbps 2.5in)
A15: Proliant DL560 Gen9 | B15: Category: Server | F15: =5272.5 -> 5272.5
B16: Quantity: | F16: =SUM(F20:F119) -> 0
F17: =SUM(F15:F16) -> 5272.5
B19: Base
B20: HPE DL560 Gen9 CTO Server | C20: 1 | E20: 742657-B21
B22: Configurazione dello chassis
B23: HP DL560 Gen9 2SFF Media Bay Kit | C23: 1 | E23: 795090-B21
B25: Processore
B26: HPE DL560 Gen9 E5-4620v4 FIO Kit | C26: 1 | E26: 830267-L21
B27: HPE DL560 Gen9 E5-4620v4 Kit | C27: 1 | E27: 830267-B21
B29: Processore aggiuntivo
B30: No Additional Processor | C30: =VLOOKUP($B$30, CPU_A, 2, FALSE) -> 0 | D30: =VLOOKUP($B$30, CPU_A, 3, FALSE) ->  | E30: =VLOOKUP($B$30, CPU_A, 5, FALSE) ->  | F30: =VLOOKUP(B30, CPU_A, 12, FALSE) -> 0
B32: Mezz Board Option
B33: =VLOOKUP($B$30, CPU_A, 6, FALSE) ->  | C33: =VLOOKUP($B$30, CPU_A, 7, FALSE) ->  | E33: =VLOOKUP($B$30, CPU_A, 8, FALSE) -> 
B35: Memoria Totale in GB | D35: =IF(('Server10 Lotto2 DL560'!$D$12=0),"",'Server10 Lotto2 DL560'!#REF!) -> 
B36: 64
B38: Capacità di memoria
B39: HPE 32GB 2Rx4 PC4-2400T-R Kit | C39: =IF($B$30="No Additional Processor",VLOOKUP($B$36, MEM_A1, 9, FALSE),VLOOKUP($B$36, MEM_A2, 9, FALSE)) -> 2 | E39: 805351-B21
B41: =IF($B$30="No Additional Processor",VLOOKUP($B$36, MEM_A1, 2, FALSE),VLOOKUP($B$36, MEM_A2, 2, FALSE)) ->  | C41: =IF($B$30="No Additional Processor",VLOOKUP($B$36, MEM_A1, 3, FALSE),VLOOKUP($B$36, MEM_A2, 3, FALSE)) ->  | D41: =IF($B$30="No Additional Processor",VLOOKUP($B$36, MEM_A1, 4, FALSE),VLOOKUP($B$36, MEM_A2, 4, FALSE)) ->  | E41: =IF($B$30="No Additional Processor",VLOOKUP($B$36, MEM_A1, 6, FALSE),VLOOKUP($B$36, MEM_A2, 6, FALSE)) ->  | F41: =IF($B$30="No Additional Processor",VLOOKUP($B$36, MEM_A1, 7, FALSE),VLOOKUP($B$36, MEM_A2, 7, FALSE)) -> 
B43: =IF($B$30="No Additional Processor",VLOOKUP($B$36, MEM_A1, 11, FALSE),VLOOKUP($B$36, MEM_A2, 11, FALSE)) ->  | C43: =IF($B$30="No Additional Processor",VLOOKUP($B$36, MEM_A1, 12, FALSE),VLOOKUP($B$36, MEM_A2, 12, FALSE)) ->  | D43: =IF($B$30="No Additional Processor",VLOOKUP($B$36, MEM_A1, 13, FALSE),VLOOKUP($B$36, MEM_A2, 13, FALSE)) ->  | E43: =IF($B$30="No Additional Processor",VLOOKUP($B$36, MEM_A1, 15, FALSE),VLOOKUP($B$36, MEM_A2, 15, FALSE)) ->  | F43: =IF($B$30="No Additional Processor",VLOOKUP($B$36, MEM_A1, 16, FALSE),VLOOKUP($B$36, MEM_A2, 16, FALSE)) -> 
B45: Sistema operativo preinstallato
B46: No Operating System | C46: =VLOOKUP($B$46, OS_A, 2, FALSE) ->  | D46: =VLOOKUP($B$46, OS_A, 3, FALSE) ->  | E46: =VLOOKUP($B$46, OS_A, 5, FALSE) ->  | F46: =VLOOKUP($B$46, OS_A, 6, FALSE) -> 
C47: =IF($D$47="","",C46) ->  | D47: =IF(H47+C30=3,"10L2-WIN2",IF(H47+C30=4,"10L2-WINDC2","")) ->  | E47: =IF($D$47="","",E46) ->  | F47: =IF($D$47="","",F46) ->  | H47: =IF(D46="10L2-WIN1",1,IF(D46="10L2-WINDC1",2,0)) -> 0
B49: Client Access Licenses
B50: =VLOOKUP($B$46, OS_A, 7, FALSE) -> None | D50: =VLOOKUP($B$46, OS_A, 9, FALSE) ->  | E50: =VLOOKUP($B$46, OS_A, 11, FALSE) ->  | F50: =VLOOKUP($B$46, OS_A, 12, FALSE)*C50 -> 0
B52: =VLOOKUP($B$46, OS_A, 13, FALSE) -> None | D52: =VLOOKUP($B$46, OS_A, 15, FALSE) ->  | E52: =VLOOKUP($B$46, OS_A, 17, FALSE) ->  | F52: =VLOOKUP($B$46, OS_A, 18, FALSE)*C52 -> 0
B54: Controller RAID
B55: HP Smart Array P440ar/2G FIO Controller | C55: 1 | E55: 749974-B21
B57: Dischi rigidi
B58: HP 300GB 12G SAS 15K 2.5in SC ENT HDD | C58: 2 | E58: 759208-B21
B60: HP 300GB 12G SAS 15K 2.5in SC ENT HDD | D60: =VLOOKUP($B$60, HDD_A,3, FALSE) -> 10L2-HDD300GB | E60: =VLOOKUP($B$60, HDD_A,5, FALSE) -> 759208-B21 | F60: =VLOOKUP($B$60, HDD_A,6, FALSE)*C60 -> 0
B62: HP 1TB 6G SAS 7.2K 2.5in SC MDL HDD | D62: =VLOOKUP($B$62, HDD_A,3, FALSE) -> 10L2-HDD1TB | E62: =VLOOKUP($B$62, HDD_A,5, FALSE) -> 652749-B21 | F62: =VLOOKUP($B$62, HDD_A,6, FALSE)*C62 -> 0
B64: Configurazione RAID con HDD 300GB
B65: RAID 1 (2 HDDs) | C65: 1 | E65: =VLOOKUP($B$65, RAID_A1, 2, FALSE) -> 
B66: Hot Spare for 300GB HDD | C66: No
B68: Configurazione RAID con HDD 1TB
C69: 1 | E69: =VLOOKUP($B$69, RAID_A2, 2, FALSE) -> 
B70: Hot Spare for 1TB HDD | C70: No
B72: Alimentatore
B73: HP 1200W CS Plat PL HtPlg Pwr Supply Kit | C73: 2 | E73: 656364-B21
B75: PCIe Riser
B76: HP DL560 Gen9 Secondary 3 Slot Riser Kit | C76: 1 | E76: 793474-B21
B78: Management Hardware
B79: HP DL560 Gen9 Power Module w/ SID Kit | C79: 1 | E79: 795106-B21
B81: Scheda FlexibleLOM
B82: HP Ethernet 1GbE 4P 331FLR FIO Adptr | C82: 1 | E82: 684208-B21
B84: Additional Card for PCIe Slot 1
B85: None | C85: =VLOOKUP(B85, PCI_A1, 2, FALSE) ->  | D85: =VLOOKUP(B85, PCI_A1, 3, FALSE) ->  | E85: =VLOOKUP(B85, PCI_A1, 5, FALSE) ->  | F85: =VLOOKUP(B85, PCI_A1, 6, FALSE) -> 
B87: Additional Card for PCIe Slot 2
B88: None | C88: =VLOOKUP(B88, PCI_A1, 2, FALSE) ->  | D88: =VLOOKUP(B88, PCI_A1, 3, FALSE) ->  | E88: =VLOOKUP(B88, PCI_A1, 5, FALSE) ->  | F88: =VLOOKUP(B88, PCI_A1, 6, FALSE) -> 
B90: Additional Card for PCIe Slot 3
B91: None | C91: =VLOOKUP(B91, PCI_A1, 2, FALSE) ->  | D91: =VLOOKUP(B91, PCI_A1, 3, FALSE) ->  | E91: =VLOOKUP(B91, PCI_A1, 5, FALSE) ->  | F91: =VLOOKUP(B91, PCI_A1, 6, FALSE) -> 
B93: Additional Card for PCIe Slot 4
B94: None | C94: =VLOOKUP(B94, PCI_A1, 2, FALSE) ->  | D94: =VLOOKUP(B94, PCI_A1, 3, FALSE) ->  | E94: =VLOOKUP(B94, PCI_A1, 5, FALSE) ->  | F94: =VLOOKUP(B94, PCI_A1, 6, FALSE) -> 
B96: Additional Card for PCIe Slot 5
B97: None | C97: =VLOOKUP(B97, PCI_A1, 2, FALSE) ->  | D97: =VLOOKUP(B97, PCI_A1, 3, FALSE) ->  | E97: =VLOOKUP(B97, PCI_A1, 5, FALSE) ->  | F97: =VLOOKUP(B97, PCI_A1, 6, FALSE) -> 
B99: Additional Card for PCIe Slot 6
B100: None | C100: =VLOOKUP(B100, PCI_A1, 2, FALSE) ->  | D100: =VLOOKUP(B100, PCI_A1, 3, FALSE) ->  | E100: =VLOOKUP(B100, PCI_A1, 5, FALSE) ->  | F100: =VLOOKUP(B100, PCI_A1, 6, FALSE) -> 
B102: Additional Card for PCIe Slot 7
B103: None | C103: =VLOOKUP(B103, PCI_A1, 2, FALSE) ->  | D103: =VLOOKUP(B103, PCI_A1, 3, FALSE) ->  | E103: =VLOOKUP(B103, PCI_A1, 5, FALSE) ->  | F103: =VLOOKUP(B103, PCI_A1, 6, FALSE) -> 
B105: Bezel
B106: HP 2U Security Bezel Kit | C106: 1 | E106: 666988-B21
B108: Unità ottica interna
B109: HP 9.5mm SATA DVD-ROM Jb Gen9 Kit | C109: 1 | E109: 726536-B21
B111: Accessori per Server
B112: HP BLc 10G SFP+ SR Transceiver | C112: =(VLOOKUP(B85,PCI_A1,8,FALSE))+((VLOOKUP(B88,PCI_A1,8,FALSE)))+((VLOOKUP(B91,PCI_A1,8,FALSE)))+((VLOOKUP(B94,PCI_A1,8,FALSE)))+((VLOOKUP(B97,PCI_A1,8,FALSE)))+((VLOOKUP(B100,PCI_A1,8,FALSE)))+((VLOOKUP(B103,PCI_A1,8,FALSE))) -> 0 | E112: 455883-B21
B114: Estenzione di Garanzia
B115: None | C115: =VLOOKUP($B$115, SO_A1, 2, FALSE) ->  | D115: =VLOOKUP($B$115, SO_A1, 3, FALSE) ->  | E115: =VLOOKUP($B$115, SO_A1, 5, FALSE) ->  | F115: =VLOOKUP($B$115, SO_A1, 6, FALSE) -> 
B117: Protezione dei dati - Keep Your Hard Drive
B118: None | C118: =VLOOKUP($B$118, SO_A2, 2, FALSE) ->  | D118: =VLOOKUP($B$118, SO_A2, 3, FALSE) ->  | E118: =VLOOKUP($B$118, SO_A2,5, FALSE) ->  | F118: =VLOOKUP($B$118, SO_A2, 6, FALSE) -> 

Sheet Server10 Lotto2 DL580
A5: Server10 Lotto2 DL580 | H5: List Price *
H6: =F17*C16 -> 0
A11: Components: Server HP Proliant DL580 Gen9 (2CPU Intel® Xeon® E7-4830 v4, 64GB , 2xHDD 300GB 15K RPM SAS 12Gbps 2.5in)
A15: Proliant DL580 Gen9 | B15: Category: Server | F15: =7444.5 -> 7444.5
B16: Quantity: | F16: =SUM(F20:F119) -> 0
F17: =SUM(F15:F16) -> 7444.5
B19: Base
B20: HP DL580 Gen9 CTO Svr | C20: 1 | E20: 793161-B21
B22: Configurazione dello chassis
B23: HP DL580 5 SFF Drive Backplane Kit | C23: 1 | E23: 739405-B21
B25: Processore
B26: HPE DL580 Gen9 E7-4830v4 FIO 1P Kit | C26: 1 | E26: 816653-L21
B27: HPE DL580 Gen9 E7-4830v4 1P Kit | C27: 1 | E27: 816653-B21
B29: Processore aggiuntivo
B30: No Additional Processor | C30: =VLOOKUP($B$30, CPU_B, 2, FALSE) -> 0 | D30: =VLOOKUP($B$30, CPU_B, 3, FALSE) ->  | E30: =VLOOKUP($B$30, CPU_B, 5, FALSE) ->  | F30: =VLOOKUP(B30, CPU_B, 12, FALSE) -> 
B32: Memory Cartridge
B33: =IF($B$30="No Additional Processor",VLOOKUP($B$36, MEM_B1, 17, FALSE),VLOOKUP($B$36, MEM_B2, 17, FALSE)) -> HP DL580 Gen9 12 DIMMs Memory Cartridge | C33: =IF($B$30="No Additional Processor",VLOOKUP($B$36, MEM_B1, 19, FALSE),VLOOKUP($B$36, MEM_B2, 19, FALSE)) -> 2 | E33: =IF($B$30="No Additional Processor",VLOOKUP($B$36, MEM_B1, 18, FALSE),VLOOKUP($B$36, MEM_B2, 18, FALSE)) -> 788360-B21
B35: Memoria Totale in GB | D35: =IF(('Server10 Lotto2 DL580'!$D$12=0),"",'Server10 Lotto2 DL580'!#REF!) -> 
B36: 64
B38: Capacità di memoria
B39: =IF($B$30="No Additional Processor",VLOOKUP($B$36, MEM_B1, 8, FALSE),VLOOKUP($B$36, MEM_B2, 8, FALSE)) -> HPE 16GB 2Rx4 PC4-2400T-R Kit | C39: =IF($B$30="No Additional Processor",VLOOKUP($B$36, MEM_B1, 9, FALSE),VLOOKUP($B$36, MEM_B2, 9, FALSE)) -> 4 | E39: =IF($B$30="No Additional Processor",VLOOKUP($B$36, MEM_B1, 10, FALSE),VLOOKUP($B$36, MEM_B2, 10, FALSE)) -> 836220-B21
B41: =IF($B$30="No Additional Processor",VLOOKUP($B$36, MEM_B1, 2, FALSE),VLOOKUP($B$36, MEM_B2, 2, FALSE)) ->  | C41: =IF($B$30="No Additional Processor",VLOOKUP($B$36, MEM_B1, 3, FALSE),VLOOKUP($B$36, MEM_B2, 3, FALSE)) ->  | D41: =IF($B$30="No Additional Processor",VLOOKUP($B$36, MEM_B1, 4, FALSE),VLOOKUP($B$36, MEM_B2, 4, FALSE)) ->  | E41: =IF($B$30="No Additional Processor",VLOOKUP($B$36, MEM_B1, 6, FALSE),VLOOKUP($B$36, MEM_B2, 6, FALSE)) ->  | F41: =IF($B$30="No Additional Processor",VLOOKUP($B$36, MEM_B1, 7, FALSE),VLOOKUP($B$36, MEM_B2, 7, FALSE)) -> 
B43: =IF($B$30="No Additional Processor",VLOOKUP($B$36, MEM_B1, 11, FALSE),VLOOKUP($B$36, MEM_B2, 11, FALSE)) ->  | C43: =IF($B$30="No Additional Processor",VLOOKUP($B$36, MEM_B1, 12, FALSE),VLOOKUP($B$36, MEM_B2, 12, FALSE)) ->  | D43: =IF($B$30="No Additional Processor",VLOOKUP($B$36, MEM_B1, 13, FALSE),VLOOKUP($B$36, MEM_B2, 13, FALSE)) ->  | E43: =IF($B$30="No Additional Processor",VLOOKUP($B$36, MEM_B1, 15, FALSE),VLOOKUP($B$36, MEM_B2, 15, FALSE)) ->  | F43: =IF($B$30="No Additional Processor",VLOOKUP($B$36, MEM_B1, 16, FALSE),VLOOKUP($B$36, MEM_B2, 16, FALSE)) -> 
B45: Sistema operativo preinstallato
B46: No Operating System | C46: =VLOOKUP($B$46, OS_B, 2, FALSE) ->  | D46: =VLOOKUP($B$46, OS_B, 3, FALSE) ->  | E46: =VLOOKUP($B$46, OS_B, 5, FALSE) ->  | F46: =VLOOKUP($B$46, OS_B, 6, FALSE) -> 
C47: =IF($D$47="","",C46) ->  | D47: =IF(H47+C30=3,"10L2-WIN2",IF(H47+C30=4,"10L2-WINDC2","")) ->  | E47: =IF($D$47="","",E46) ->  | F47: =IF($D$47="","",F46) ->  | H47: =IF(D46="10L2-WIN1",1,IF(D46="10L2-WINDC1",2,0)) -> 0
B49: Client Access Licenses
B50: =VLOOKUP($B$46, OS_B, 7, FALSE) -> None | D50: =VLOOKUP($B$46, OS_B, 9, FALSE) ->  | E50: =VLOOKUP($B$46, OS_B, 11, FALSE) ->  | F50: =VLOOKUP($B$46, OS_B, 12, FALSE)*C50 -> 0
B52: =VLOOKUP($B$46, OS_B, 13, FALSE) -> None | D52: =VLOOKUP($B$46, OS_B, 15, FALSE) ->  | E52: =VLOOKUP($B$46, OS_B, 17, FALSE) ->  | F52: =VLOOKUP($B$46, OS_B, 18, FALSE)*C52 -> 0
B54: Controller RAID
B55: HP Smart Array 2GB 24in FIO Flashback Write Cache | C55: 1 | E55: 758836-B21
B57: Dischi rigidi
B58: HP 300GB 12G SAS 15K 2.5in SC ENT HDD | C58: 2 | E58: 759208-B21
B60: HP 300GB 12G SAS 15K 2.5in SC ENT HDD | C60: 0 | D60: =VLOOKUP($B$60, HDD_A,3, FALSE) -> 10L2-HDD300GB | E60: =VLOOKUP($B$60, HDD_A,5, FALSE) -> 759208-B21 | F60: =VLOOKUP($B$60, HDD_A,6, FALSE)*C60 -> 0
B62: HP 1TB 6G SAS 7.2K 2.5in SC MDL HDD | D62: =VLOOKUP($B$62, HDD_A,3, FALSE) -> 10L2-HDD1TB | E62: =VLOOKUP($B$62, HDD_A,5, FALSE) -> 652749-B21 | F62: =VLOOKUP($B$62, HDD_A,6, FALSE)*C62 -> 0
B64: Configurazione RAID con HDD 300GB
B65: RAID 1 (2 HDDs) | C65: 1 | E65: =VLOOKUP($B$65, RAID_B1, 2, FALSE) -> [780-BBJK]
B66: Hot Spare for 300GB HDD | C66: No
B68: Configurazione RAID con HDD 1TB
C69: 1 | E69: =VLOOKUP($B$69, RAID_B2, 2, FALSE) -> 
B70: Hot Spare for 1TB HDD | C70: No
B72: Alimentatore
B73: HP 1200W CS Plat PL HtPlg Pwr Supply Kit | C73: 4 | E73: 656364-B21
B75: Scheda FlexibleLOM
B76: HP Ethernet 1GbE 4P 331FLR FIO Adptr | C76: 1 | E76: 684208-B21
B78: Additional Card for PCIe Slot 9 (CPU1 / CPU2)
B79: None | C79: =VLOOKUP($B$79, PCI_B1, 2, FALSE) ->  | D79: =VLOOKUP($B$79, PCI_B1, 3, FALSE) ->  | E79: =VLOOKUP($B$79, PCI_B1, 5, FALSE) ->  | F79: =VLOOKUP($B$79, PCI_B1, 6, FALSE) -> 
B81: Additional Card for PCIe Slot 8 (CPU1 / CPU2)
B82: None | C82: =VLOOKUP($B$82, PCI_B2, 2, FALSE) ->  | D82: =VLOOKUP($B$82, PCI_B2, 3, FALSE) ->  | E82: =VLOOKUP($B$82, PCI_B2, 5, FALSE) ->  | F82: =VLOOKUP($B$82, PCI_B2, 6, FALSE) -> 
B84: Additional Card for PCIe Slot 7 (CPU1 / CPU2)
B85: None | C85: =VLOOKUP($B$85, PCI_B3, 2, FALSE) ->  | D85: =VLOOKUP($B$85, PCI_B3, 3, FALSE) ->  | E85: =VLOOKUP($B$85, PCI_B3, 5, FALSE) ->  | F85: =VLOOKUP($B$85, PCI_B3, 6, FALSE) -> 
B87: Additional Card for PCIe Slot 6 (CPU1 / CPU2)
B88: None | C88: =VLOOKUP($B$88, PCI_B4, 2, FALSE) ->  | D88: =VLOOKUP($B$88, PCI_B4, 3, FALSE) ->  | E88: =VLOOKUP($B$88, PCI_B4, 5, FALSE) ->  | F88: =VLOOKUP($B$88, PCI_B4, 6, FALSE) -> 
B90: Additional Card for PCIe Slot 5 (CPU3 / CPU4)
B91: None | C91: =IF(B91="Aggiungere Coppia di Processori","",(VLOOKUP(B91,PCI_B5, 2, FALSE))) ->  | D91: =IF(B91="Aggiungere Coppia di Processori","",(VLOOKUP(B91,PCI_B5, 3, FALSE))) ->  | E91: =IF(B91="Aggiungere Coppia di Processori","",(VLOOKUP(B91,PCI_B5, 5, FALSE))) ->  | F91: =IF(B91="Aggiungere Coppia di Processori","",(VLOOKUP(B91,PCI_B5, 2, FALSE))) -> 
B93: Additional Card for PCIe Slot 4 (CPU3 / CPU4)
B94: None | C94: =IF(B94="Aggiungere Coppia di Processori","",(VLOOKUP(B94,PCI_B6, 2, FALSE))) ->  | D94: =IF(B94="Aggiungere Coppia di Processori","",(VLOOKUP(B94,PCI_B6, 3, FALSE))) ->  | E94: =IF(B94="Aggiungere Coppia di Processori","",(VLOOKUP(B94,PCI_B6, 5, FALSE))) ->  | F94: =IF(B94="Aggiungere Coppia di Processori","",(VLOOKUP(B94,PCI_B6, 2, FALSE))) -> 
B96: Additional Card for PCIe Slot 3 (CPU3 / CPU4)
B97: None | C97: =IF(B97="Aggiungere Coppia di Processori","",(VLOOKUP(B97,PCI_B7, 2, FALSE))) ->  | D97: =IF(B97="Aggiungere Coppia di Processori","",(VLOOKUP(B97,PCI_B7, 3, FALSE))) ->  | E97: =IF(B97="Aggiungere Coppia di Processori","",(VLOOKUP(B97,PCI_B7, 5, FALSE))) ->  | F97: =IF(B97="Aggiungere Coppia di Processori","",(VLOOKUP(B97,PCI_B7, 2, FALSE))) -> 
B99: Additional Card for PCIe Slot 2 (CPU3 / CPU4)
B100: None | C100: =IF(B100="Aggiungere Coppia di Processori","",(VLOOKUP(B100,PCI_B8, 2, FALSE))) ->  | D100: =IF(B100="Aggiungere Coppia di Processori","",(VLOOKUP(B100,PCI_B8, 3, FALSE))) ->  | E100: =IF(B100="Aggiungere Coppia di Processori","",(VLOOKUP(B100,PCI_B8, 5, FALSE))) ->  | F100: =IF(B100="Aggiungere Coppia di Processori","",(VLOOKUP(B100,PCI_B8, 2, FALSE))) -> 
B102: Additional Card for PCIe Slot 1 (CPU3 / CPU4)
B103: None | C103: =IF(B103="Aggiungere Coppia di Processori","",(VLOOKUP(B103,PCI_B9, 2, FALSE))) ->  | D103: =IF(B103="Aggiungere Coppia di Processori","",(VLOOKUP(B103,PCI_B9, 3, FALSE))) ->  | E103: =IF(B103="Aggiungere Coppia di Processori","",(VLOOKUP(B103,PCI_B9, 5, FALSE))) ->  | F103: =IF(B103="Aggiungere Coppia di Processori","",(VLOOKUP(B103,PCI_B9, 2, FALSE))) -> 
B105: Bezel
B106: HP 4U Security Bezel Kit | C106: 1 | E106: 741213-B21
B108: Accessori per Server
B109: HP BLc 10G SFP+ SR Transceiver | C109: =(VLOOKUP(B79,PCI_A1,8,FALSE))+((VLOOKUP(B82,PCI_A1,8,FALSE)))+((VLOOKUP(B85,PCI_A1,8,FALSE)))+((VLOOKUP(B88,PCI_A1,8,FALSE)))+((VLOOKUP(B91,PCI_A1,8,FALSE)))+((VLOOKUP(B94,PCI_A1,8,FALSE)))+((VLOOKUP(B97,PCI_A1,8,FALSE)))+((VLOOKUP(B100,PCI_A1,8,FALSE)))+((VLOOKUP(B103,PCI_A1,8,FALSE))) -> 0 | E109: 455883-B21
B111: Unità ottica
B112: HP Mobile USB DVDRW Drive | C112: 1 | E112: 701498-B21
B114: Estenzione di Garanzia
B115: None | C115: =VLOOKUP($B$115, SO_B1,2, FALSE) ->  | D115: =VLOOKUP($B$115, SO_B1, 3, FALSE) ->  | E115: =VLOOKUP($B$115, SO_B1, 5, FALSE) ->  | F115: =VLOOKUP($B$115, SO_B1, 6, FALSE) -> 
B117: Protezione dei dati - Keep Your Hard Drive
B118: None | C118: =VLOOKUP($B$118, SO_B2, 2, FALSE) ->  | D118: =VLOOKUP($B$118, SO_B2, 3, FALSE) ->  | E118: =VLOOKUP($B$118, SO_B2,5, FALSE) ->  | F118: =VLOOKUP($B$118, SO_B2, 6, FALSE) -> 

Sheet RACK, Accessori e Servizi
D1: Indicare il numero delle Opzioni
M3: SERVIZI
C4: =IF(SRV_A+SRV_B>=1,"Servizi Specialistici","") -> 
C5: =IF(SRV_A+SRV_B>=1,"Servizio Specialistico di System and Network Management per sistema opertivo Windows, erogato on site. (GG/Uomo)","") ->  | K5: =IF(J5>=1,"10L2-SO-WIN","") -> 
C7: =IF(SRV_A+SRV_B>=1,"Servizio Specialistico di System and Network Management per sistema opertivo Linux, erogato on site. (GG/Uomo)","") ->  | K7: =IF(J7>=1,"10L2-SO-LINUX","") -> 
C9: =IF((SRV_A+SRV_AA+SRV_AAA+SRV_B+SRV_BB+SRV_BBB)>=5,"Servizi specialistici sistemistici per aggiornare e prevenire malfunzionamenti. (Minimo 5 Server)","") ->  | K9: =IF(J9>=1,"10L2-SO-PREV","") -> 
M12: SERVER RACK | N12: In questo foglio deve essere indicata la quantità delle opzioni Hardware e dei Servizi da acquistare. Di seguito è possibile configurare fino a 10 tipologie di armadio Rack a seconda della tipologia e del numero di Server inseriti al suo interno.
C13: Rack (OpzRack)
C14: =IF((SRV_A+SRV_AA+SRV_AAA+SRV_B+SRV_BB+SRV_BBB)>=1,"Tecnosteel: armadio Rack 19'' 42U ''Tecno SuperServer''","") ->  | K14: =IF(J14>=1,"10L2-RACK","") -> 
C16: KVM (OpzGUIRack)
C17: =IF((SRV_A+SRV_AA+SRV_AAA+SRV_B+SRV_BB+SRV_BBB)>=1,"Tecnosteel: OneView 1U Rackmount Console 17'' with Italian Keyboard","") ->  | K17: =IF(J17>=1,"10L2-GUI","") -> 
C19: KVM Option (OpzSWGUIRack)
C20: =IF((SRV_A+SRV_AA+SRV_AAA+SRV_B+SRV_BB+SRV_BBB)>=1,"Tecnosteel: 8-port remote KVM switch with one remote user","") ->  | K20: =IF(J20>=1,"10L2-KVMIP","") -> 
C22: Uninterrupted Power Supply (OpzUPS 3000VA)
C23: =IF((SRV_A+SRV_AA+SRV_AAA+SRV_B+SRV_BB+SRV_BBB)>=1,"Riello - UPS MSR3000EVO 3000VA 2U Rackmount (SNMP+USB+RS232)","") ->  | K23: =IF(J23>=1,"10L2-UPS","") -> 
D26: Totale-
D27: RACK A | E27: RACK B | F27: RACK C | G27: RACK D | H27: RACK E | I27: RACK F | J27: RACK G | K27: RACK H | L27: RACK I | M27: RACK J
C28: =J14 -> 0 | D28: =IF(H48>0,IF(C28-H48=0,0,C28-H48),0) -> 0 | E28: =IF(I48>0,IF(D28-I48=0,0,D28-I48),0) -> 0 | F28: 0 | G28: 0 | H28: 0 | I28: 0 | J28: 0 | K28: 0 | L28: 0 | M28: 0
D31: Server Modello 1 | G31: =SRV_A -> 0
D32: Server Modello 2 | G32: =SRV_AA -> 0
D33: Server Modello 3 | G33: =SRV_AAA -> 0
D34: Server Modello 4 | G34: =SRV_B -> 0
D35: Server Modello 5 | G35: =SRV_BB -> 0
D36: Server Modello 6 | G36: =SRV_BBB -> 0
H38: =SUM(H4:H9)+H11+H80*2+H82*2 -> 0 | I38: 0 | J38: 0 | K38: 0 | L38: 0 | M38: 0 | N38: 0 | O38: 0 | P38: 0 | Q38: 0
C46: Rack ancora da configurare | F46: =J14-H48-I48-J48-K48-L48-M48-N48-O48-P48-Q48 -> 0
C48: Indicare il numero di rack per questa configurazione
E50: Totali | F50: da inserire | H50: =IF(C28>0,"RACK A","") ->  | I50: =IF(D28>0,"RACK B","") ->  | J50: =IF(E28>0,"RACK C","") ->  | K50: =IF(F28>0,"RACK D","") ->  | L50: =IF(G28>0,"RACK E","") ->  | M50: =IF(H28>0,"RACK F","") ->  | N50: =IF(I28>0,"RACK G","") ->  | O50: =IF(J28>0,"RACK H","") ->  | P50: =IF(K28>0,"RACK I","") ->  | Q50: =IF(L28>0,"RACK J","") -> 
C52: =IF(G31*$J$14>0,"Server Lotto2 DL560 Conf.1","") ->  | E52: =G31 -> 0 | F52: =(E52-(H52*$H$48)-(I52*$I$48)-(J52*$J$48)-(K52*$K$48)-(L52*$L$48)-(M52*$M$48)-(N52*$N$48)-(O52*$O$48)-(P52*$P$48)-(Q52*$Q$48)) -> 0
C53: =IF(G32*$J$14>0,"Server Lotto2 DL560 Conf.2","") ->  | E53: =G32 -> 0 | F53: =(E53-(H53*$H$48)-(I53*$I$48)-(J53*$J$48)-(K53*$K$48)-(L53*$L$48)-(M53*$M$48)-(N53*$N$48)-(O53*$O$48)-(P53*$P$48)-(Q53*$Q$48)) -> 0
C54: =IF(G33*$J$14>0,"Server Lotto2 DL560 Conf.3","") ->  | E54: 0 | F54: 0
C55: =IF(G34*$J$14>0,"Server Lotto2 DL580 Conf.1","") ->  | E55: 0 | F55: 0
C56: =IF(G35*$J$14>0,"Server Lotto2 DL580 Conf.2","") ->  | E56: 0 | F56: 0
C57: =IF(G36*$J$14>0,"Server Lotto2 DL580 Conf.3","") ->  | E57: 0 | F57: 0
C59: =IF(J17>0,"OpzGUIRack Disponibili"," ") ->  | E59: =J17 -> 0 | F59: =J17-H59*H48-I59*I48-J59*J48-K59*K48-L59*L48-M59*M48-N59*N48-O59*O48-P59*P48-Q59*Q48 -> 0
C61: =IF(J20>0,"OpzSWGUIRack Disponibili"," ") ->  | E61: =J20 -> 0 | F61: =J20-H61*H48-I61*I48-J61*J48-K61*K48-L61*L48-M61*M48-N61*N48-O61*O48-P61*P48-Q61*Q48 -> 0
C63: =IF(J23>0,"OpzUPS 3000VA Disponibili"," ") ->  | E63: =J23 -> 0 | F63: =J23-H63*H48-I63*I48-J63*J48-K63*K48-L63*L48-M63*M48-N63*N48-O63*O48-P63*P48-Q63*Q48 -> 0

Sheet Riepilogo
B1: Amministrazione | R1: CONFIGURATORE ELETTRONICO CONVENZIONE CONSIP SERVER 10 LOTTO 2 | V1: 1
B2: N° Identificativo Ordine | I2: =IF(G4=R66,"Configurazione OK",U4) -> Nel "Tot Ordine Portale CONSIP" deve essere inserito l'importo totale risultante dall'ordinativo del portale CONSIP. Qualora l'importo inserito corrisponde al valore ricalcolato dal configuratore viene attivato il pulsante "Salva in formato PDF" che permette di generare il file pdf da allegare all'ordinativo. | V2: 1
B3: Data Ordine | V3: 1
B4: Tot Ordine Portale CONSIP IVA incl. | G4: x | U4: Nel "Tot Ordine Portale CONSIP" deve essere inserito l'importo totale risultante dall'ordinativo del portale CONSIP. Qualora l'importo inserito corrisponde al valore ricalcolato dal configuratore viene attivato il pulsante "Salva in formato PDF" che permette di generare il file pdf da allegare all'ordinativo. | V4: 1
B5: LE CELLE IN GIALLO DEVO ESSERE COMPILATE OBBLIGATORIAMENTE | V5: 1
B6: Quantità Server Ordinati | G6: =IF(B32="",0,B32)+IF(B14="",0,B14) -> 0 | T6: ver. 4.0 | V6: 1
V7: 1
B8: Referente per la Consegna | J8: Telefono | P8: email | V8: 1
V9: 1
B10: Referente per l'installazione | J10: Telefono | P10: email | V10: 1
V11: 1
B12: Qtà Totale Ordinata | C12: Oggetto di fornitura | G12: Codice Prodotto | J12: Descrizione Sintetica (si faccia riferimento alla guida alla convenzione per la descrizione estesa e per le regole di acquisto delle opzioni) | R12: Costo Unitario | T12: Costo Complessivo | V12: 1
B13: SERVER PRESTAZIONALE (HP PROLIANT DL560 Gen9) | V13: =IF(B14>="",0,1) -> 0 | X13: Server1 | Y13: Server2 | Z13: Server3
B14: =IF(AE14>=1,AE14,"") ->  | C14: =IF(AE14>0,(VLOOKUP(G14,COD_A,2,FALSE)),"") ->  | G14: =IF(AE14>=1,W14,"") ->  | J14: =IF(AE14>0,(VLOOKUP(G14,COD_A,5,FALSE)),"") ->  | R14: =IF(AE14>0,(VLOOKUP(G14,COD_A,3,FALSE)),"") ->  | T14: =IF(B14="","",R14*B14) ->  | V14: =IF(B14>="",0,1) -> 0 | W14: 10L2-DL560G9-U | X14: =SRV_A -> 0 | Y14: =SRV_AA -> 0 | Z14: =SRV_AAA -> 0 | AE14: =SUM(X14:AD14) -> 0
B15: =IF(AE15>=1,AE15,"") ->  | G15: =IF(AE15>=1,W15,"") ->  | T15: =IF(B15="","",R15*B15) ->  | V15: =IF(B15>="",0,1) -> 0 | W15: 10L2-CPU-P-U | X15: ='Server10 Lotto2 DL560'!$C$30/2 -> 0 | Y15: ='Server10 Lotto2 DL560 2'!$C$30/2 -> 0 | Z15: ='Server10 Lotto2 DL560 3'!$C$30/2 -> 0 | AB15: =X15*$X$14 -> 0 | AC15: =Y15*$Y$14 -> 0 | AD15: =Z15*$Z$14 -> 0 | AE15: =SUM(AB15:AD15) -> 0
B16: =IF(AE16>=1,AE16,"") ->  | G16: =IF(AE16>=1,W16,"") ->  | T16: =IF(B16="","",R16*B16) ->  | V16: 0 | W16: 10L2-16GB-U | X16: =IF(MEM_A="",0,MEM_A) -> 0 | Y16: =IF(MEM_AA="",0,MEM_AA) -> 0 | Z16: =IF(MEM_AAA="",0,MEM_AAA) -> 0 | AB16: =X16*$X$14 -> 0 | AC16: =Y16*$Y$14 -> 0 | AD16: =Z16*$Z$14 -> 0 | AE16: =SUM(AB16:AD16) -> 0
V17: 0 | W17: 10L2-32GB-U | X17: =IF(MEM_A32="",0,MEM_A32) -> 0 | Y17: =IF(MEM_AA32="",0,MEM_AA32) -> 0 | Z17: =IF(MEM_AAA32="",0,MEM_AAA32) -> 0 | AB17: =X17*$X$14 -> 0 | AC17: =Y17*$Y$14 -> 0 | AD17: =Z17*$Z$14 -> 0 | AE17: =SUM(AB17:AD17) -> 0
V18: 0 | AH18: slot1 | AI18: ='Server10 Lotto2 DL560'!$D$85 ->  | AJ18: ='Server10 Lotto2 DL560 2'!$D$85 ->  | AK18: ='Server10 Lotto2 DL560 3'!$D$85 -> 
V19: 0 | W19: 10L2-LAN1GB | X19: =COUNTIF($AI$18:$AI$24,W19) -> 0 | Y19: =COUNTIF($AJ$18:$AJ$24,W19) -> 0 | Z19: =COUNTIF($AK$18:$AK$24,W19) -> 0 | AB19: =X19*$X$14 -> 0 | AC19: =Y19*$Y$14 -> 0 | AD19: =Z19*$Z$14 -> 0 | AE19: =SUM(AB19:AD19) -> 0 | AH19: slot2 | AI19: ='Server10 Lotto2 DL560'!$D$88 ->  | AJ19: ='Server10 Lotto2 DL560 2'!$D$88 ->  | AK19: ='Server10 Lotto2 DL560 3'!$D$88 -> 
V20: 0 | AH20: slot3 | AI20: ='Server10 Lotto2 DL560'!$D$91 ->  | AJ20: ='Server10 Lotto2 DL560 2'!$D$91 ->  | AK20: ='Server10 Lotto2 DL560 3'!$D$91 -> 
V21: 0 | W21: 10L2-LAN10GB | X21: =COUNTIF($AI$18:$AI$24,W21) -> 0 | Y21: =COUNTIF($AJ$18:$AJ$24,W21) -> 0 | Z21: =COUNTIF($AK$18:$AK$24,W21) -> 0 | AB21: =X21*$X$14 -> 0 | AC21: =Y21*$Y$14 -> 0 | AD21: =Z21*$Z$14 -> 0 | AE21: =SUM(AB21:AD21) -> 0 | AH21: slot4 | AI21: ='Server10 Lotto2 DL560'!$D$94 ->  | AJ21: ='Server10 Lotto2 DL560 2'!$D$94 ->  | AK21: ='Server10 Lotto2 DL560 3'!$D$94 -> 
V22: 0 | AH22: slot5 | AI22: ='Server10 Lotto2 DL560'!$D$97 ->  | AJ22: ='Server10 Lotto2 DL560 2'!$D$97 ->  | AK22: ='Server10 Lotto2 DL560 3'!$D$97 -> 
V23: 0 | W23: 10L2-CNA10 | X23: =COUNTIF($AI$18:$AI$24,W23) -> 0 | Y23: =COUNTIF($AJ$18:$AJ$24,W23) -> 0 | Z23: =COUNTIF($AK$18:$AK$24,W23) -> 0 | AB23: =X23*$X$14 -> 0 | AC23: 0 | AD23: 0 | AE23: 0 | AH23: slot6 | AI23: ='Server10 Lotto2 DL560'!$D$100 ->  | AJ23: ='Server10 Lotto2 DL560 2'!$D$100 ->  | AK23: ='Server10 Lotto2 DL560 3'!$D$100 -> 
V24: 0 | AH24: slot7 | AI24: ='Server10 Lotto2 DL560'!$D$103 ->  | AJ24: ='Server10 Lotto2 DL560 2'!$D$103 ->  | AK24: ='Server10 Lotto2 DL560 3'!$D$103 -> 
B25: =IF(AE25>=1,AE25,"") ->  | G25: =IF(AE25>=1,W25,"") ->  | V25: 0 | W25: 10L2-FC | X25: =COUNTIF($AI$18:$AI$24,W25) -> 0 | Y25: =COUNTIF($AJ$18:$AJ$24,W25) -> 0 | Z25: =COUNTIF($AK$18:$AK$24,W25) -> 0 | AB25: 0 | AC25: 0 | AD25: 0 | AE25: 0
V26: 0 | W26: 10L2-HDD300GB | X26: =HD300_A -> 0 | Y26: =HD300_AA -> 0 | Z26: =HD300_AAA -> 0 | AB26: =X26*$X$14 -> 0 | AC26: =Y26*$Y$14 -> 0 | AD26: =Z26*$Z$14 -> 0 | AE26: =SUM(AB26:AD26) -> 0
V27: 0 | W27: 10L2-HDD1TB | X27: =HD1000_A -> 0 | Y27: =HD1000_AA -> 0 | Z27: =HD1000_AAA -> 0 | AB27: =X27*$X$14 -> 0 | AC27: =Y27*$Y$14 -> 0 | AD27: =Z27*$Z$14 -> 0 | AE27: =SUM(AB27:AD27) -> 0
V28: 0 | W28: 10L2-SO-12M | X28: =IF('Server10 Lotto2 DL560'!$D$115=W28,'Server10 Lotto2 DL560'!$C$115,0) -> 0 | Y28: =IF('Server10 Lotto2 DL560 2'!$D$115=W28,'Server10 Lotto2 DL560 2'!$C$115,0) -> 0 | Z28: =IF('Server10 Lotto2 DL560 3'!$D$115=W28,'Server10 Lotto2 DL560 3'!$C$115,0) -> 0 | AB28: =X28*$X$14 -> 0 | AC28: =Y28*$Y$14 -> 0 | AD28: =Z28*$Z$14 -> 0 | AE28: =SUM(AB28:AD28) -> 0
V29: 0 | W29: 10L2-SO-24M | X29: =IF('Server10 Lotto2 DL560'!$D$115=W29,'Server10 Lotto2 DL560'!$C$115,0) -> 0 | Y29: =IF('Server10 Lotto2 DL560 2'!$D$115=W29,'Server10 Lotto2 DL560 2'!$C$115,0) -> 0 | Z29: =IF('Server10 Lotto2 DL560 3'!$D$115=W29,'Server10 Lotto2 DL560 3'!$C$115,0) -> 0 | AB29: =X29*$X$14 -> 0 | AC29: =Y29*$Y$14 -> 0 | AD29: =Z29*$Z$14 -> 0 | AE29: =SUM(AB29:AD29) -> 0
V30: 0 | W30: 10L2-SO-HDD | X30: =IF('Server10 Lotto2 DL560'!$D$118=W30,'Server10 Lotto2 DL560'!$C$118,0) -> 0 | Y30: =IF('Server10 Lotto2 DL560 2'!$D$118=W30,'Server10 Lotto2 DL560 2'!$C$118,0) -> 0 | Z30: =IF('Server10 Lotto2 DL560 3'!$D$118=W30,'Server10 Lotto2 DL560 3'!$C$118,0) -> 0 | AB30: =X30*$X$14 -> 0 | AC30: =Y30*$Y$14 -> 0 | AD30: =Z30*$Z$14 -> 0 | AE30: =SUM(AB30:AD30) -> 0
B31: SERVER ENTERPRISE (HP PROLIANT DL580 Gen9) | V31: =IF(B32>="",0,1) -> 0 | W31: DL580 | X31: Server1 | Y31: Server2 | Z31: Server3
B32: =IF(AE32>=1,AE32,"") ->  | C32: =IF(AE32>0,(VLOOKUP(G32,COD_B,2,FALSE)),"") ->  | G32: =IF(AE32>=1,W32,"") ->  | J32: =IF(AE32>0,(VLOOKUP(G32,COD_B,5,FALSE)),"") ->  | R32: =IF(AE32>0,(VLOOKUP(G32,COD_B,3,FALSE)),"") ->  | T32: =IF(B32="","",R32*B32) ->  | V32: 0 | W32: 10L2-DL580G9-U | X32: =SRV_B -> 0 | Y32: =SRV_BB -> 0 | Z32: =SRV_BBB -> 0 | AE32: =SUM(X32:AD32) -> 0
B33: =IF(AE33>=1,AE33,"") ->  | C33: =IF(AE33>0,(VLOOKUP(G33,COD_B,2,FALSE)),"") ->  | G33: =IF(AE33>=1,W33,"") ->  | J33: =IF(AE33>0,(VLOOKUP(G33,COD_B,5,FALSE)),"") ->  | R33: =IF(AE33>0,(VLOOKUP(G33,COD_B,3,FALSE)),"") ->  | T33: =IF(B33="","",R33*B33) ->  | V33: =IF(B33>="",0,1) -> 0 | W33: 10L2-CPU-E-U | X33: ='Server10 Lotto2 DL580'!$C$30/2 -> 0 | Y33: ='Server10 Lotto2 DL580 2'!$C$30/2 -> 0 | Z33: ='Server10 Lotto2 DL580 3'!$C$30/2 -> 0 | AB33: =X33*$X$32 -> 0 | AC33: =Y33*$Y$32 -> 0 | AD33: =Z33*$Z$32 -> 0 | AE33: =SUM(AB33:AD33) -> 0
V34: 0 | W34: 10L2-16GB-U | X34: =IF(MEM_B="",0,MEM_B) -> 0 | Y34: =IF(MEM_BB="",0,MEM_BB) -> 0 | Z34: =IF(MEM_BBB="",0,MEM_BBB) -> 0 | AB34: =X34*$X$32 -> 0 | AC34: =Y34*$Y$32 -> 0 | AD34: =Z34*$Z$32 -> 0 | AE34: =SUM(AB34:AD34) -> 0
V35: 0 | W35: 10L2-32GB-U | X35: =IF(MEM_B32="",0,MEM_B32) -> 0 | Y35: =IF(MEM_BB32="",0,MEM_BB32) -> 0 | Z35: =IF(MEM_BBB32="",0,MEM_BBB32) -> 0 | AB35: 0 | AC35: 0 | AD35: 0 | AE35: =SUM(AB35:AD35) -> 0
V36: 0 | X36: =COUNTIF($AI$36:$AI$44,W36) -> 0 | Y36: =COUNTIF($AJ$36:$AJ$44,W36) -> 0 | Z36: =COUNTIF($AK$36:$AK$44,W36) -> 0 | AB36: =X36*$X$32 -> 0 | AC36: =Y36*$Y$32 -> 0 | AD36: =Z36*$Z$32 -> 0 | AE36: =SUM(AB36:AD36) -> 0 | AH36: slot1 | AI36: ='Server10 Lotto2 DL580'!$D$79 ->  | AJ36: ='Server10 Lotto2 DL580 2'!$D$79 ->  | AK36: ='Server10 Lotto2 DL580 3'!$D$79 -> 
V37: 0 | W37: 10L2-LAN1GB | X37: =COUNTIF($AI$36:$AI$44,W37) -> 0 | Y37: =COUNTIF($AJ$36:$AJ$44,W37) -> 0 | Z37: =COUNTIF($AK$36:$AK$44,W37) -> 0 | AB37: =X37*$X$32 -> 0 | AC37: =Y37*$Y$32 -> 0 | AD37: =Z37*$Z$32 -> 0 | AE37: =SUM(AB37:AD37) -> 0 | AH37: slot2 | AI37: ='Server10 Lotto2 DL580'!$D$82 ->  | AJ37: ='Server10 Lotto2 DL580 2'!$D$82 ->  | AK37: ='Server10 Lotto2 DL580 3'!$D$82 -> 
V38: 0 | X38: 0 | Y38: 0 | Z38: 0 | AB38: 0 | AC38: 0 | AD38: 0 | AE38: 0 | AH38: slot3 | AI38: ='Server10 Lotto2 DL580'!D85 ->  | AJ38: ='Server10 Lotto2 DL580 2'!D85 ->  | AK38: ='Server10 Lotto2 DL580 3'!D85 -> 
V39: 0 | W39: 10L2-LAN10GB | X39: 0 | Y39: 0 | Z39: 0 | AB39: 0 | AC39: 0 | AD39: 0 | AE39: 0 | AH39: slot4 | AI39: ='Server10 Lotto2 DL580'!D88 ->  | AJ39: ='Server10 Lotto2 DL580 2'!D88 ->  | AK39: ='Server10 Lotto2 DL580 3'!D88 -> 
V40: 0 | X40: 0 | Y40: 0 | Z40: 0 | AB40: 0 | AC40: 0 | AD40: 0 | AE40: 0 | AH40: slot5 | AI40: ='Server10 Lotto2 DL580'!D91 ->  | AJ40: ='Server10 Lotto2 DL580 2'!D91 ->  | AK40: ='Server10 Lotto2 DL580 3'!D91 -> 
V41: 0 | W41: 10L2-CNA10 | X41: 0 | Y41: 0 | Z41: 0 | AB41: 0 | AC41: 0 | AD41: 0 | AE41: 0 | AH41: slot6 | AI41: ='Server10 Lotto2 DL580'!D94 ->  | AJ41: ='Server10 Lotto2 DL580 2'!D94 ->  | AK41: ='Server10 Lotto2 DL580 3'!D94 -> 
V42: 0 | X42: 0 | Y42: 0 | Z42: 0 | AB42: 0 | AC42: 0 | AD42: 0 | AE42: 0 | AH42: slot7 | AI42: ='Server10 Lotto2 DL580'!D97 -> 
V43: 0 | W43: 10L2-FC | X43: 0 | Y43: 0 | Z43: =COUNTIF($AK$36:$AK$41,W43) -> 0 | AB43: 0 | AC43: 0 | AD43: 0 | AE43: 0 | AH43: slot8 | AI43: ='Server10 Lotto2 DL580'!D100 -> 
V44: 0 | W44: 10L2-HDD300GB | X44: =HD300_B -> 0 | Y44: =HD300_BB -> 0 | Z44: =HD300_BBB -> 0 | AB44: =X44*$X$32 -> 0 | AC44: =Y44*$Y$32 -> 0 | AD44: =Z44*$Z$32 -> 0 | AE44: =SUM(AB44:AD44) -> 0 | AH44: slot9 | AI44: ='Server10 Lotto2 DL580'!D103 -> 
V45: 0 | W45: 10L2-HDD1TB | X45: =HD1000_B -> 0 | Y45: =HD1000_BB -> 0 | Z45: =HD1000_BBB -> 0 | AB45: =X45*$X$32 -> 0 | AC45: =Y45*$Y$32 -> 0 | AD45: =Z45*$Z$32 -> 0 | AE45: =SUM(AB45:AD45) -> 0
V46: 0 | W46: 10L2-SO-12M | X46: =IF('Server10 Lotto2 DL580'!$D$115=W46,'Server10 Lotto2 DL580'!$C$115,0) -> 0 | Y46: =IF('Server10 Lotto2 DL580 2'!$D$115=W46,'Server10 Lotto2 DL580 2'!$C$115,0) -> 0 | Z46: =IF('Server10 Lotto2 DL580 3'!$D$115=W46,'Server10 Lotto2 DL580 3'!$C$115,0) -> 0 | AB46: =X46*$X$32 -> 0 | AC46: =Y46*$Y$32 -> 0 | AD46: =Z46*$Z$32 -> 0 | AE46: =SUM(AB46:AD46) -> 0
V47: 0 | W47: 10L2-SO-24M | X47: =IF('Server10 Lotto2 DL580'!$D$115=W47,'Server10 Lotto2 DL580'!$C$115,0) -> 0 | Y47: =IF('Server10 Lotto2 DL580 2'!$D$115=W47,'Server10 Lotto2 DL580 2'!$C$115,0) -> 0 | Z47: =IF('Server10 Lotto2 DL580 3'!$D$115=W47,'Server10 Lotto2 DL580 3'!$C$115,0) -> 0 | AB47: 0 | AC47: 0 | AD47: 0 | AE47: 0
V48: 0 | W48: 10L2-SO-HDD | X48: =IF('Server10 Lotto2 DL580'!$D$118=W48,'Server10 Lotto2 DL580'!$C$118,0) -> 0 | Y48: =IF('Server10 Lotto2 DL580 2'!$D$118=W48,'Server10 Lotto2 DL580 2'!$C$118,0) -> 0 | Z48: =IF('Server10 Lotto2 DL580 3'!$D$118=W48,'Server10 Lotto2 DL580 3'!$C$118,0) -> 0 | AB48: 0 | AC48: 0 | AD48: 0 | AE48: 0
B49: OPZIONI COMUNI | V49: =IF(B49>=0,1,0) -> 1 | X49: DL560 | Y49: DL560 2 | Z49: DL560 3 | AA49: DL580 | AB49: DL580 2 | AC49: DL580 3 | AD49: tot DL560 | AE49: tot DL580
B50: =IF(AP50=0,"",AP50) ->  | C50: =IF(AP50="","",(VLOOKUP(G50,COD_A,2,FALSE))) ->  | G50: =IF(AP50>0,W50,"") ->  | J50: =IF(AP50>0,(VLOOKUP(G50,COD_A,5,FALSE)),"") ->  | R50: =IF(AP50>0,(VLOOKUP(G50,COD_A,3,FALSE)),"") ->  | T50: =IF(B50="","",R50*B50) ->  | V50: 0 | W50: 10L2-WIN1 | X50: =IF('Server10 Lotto2 DL560'!$D$46=W50,1,0) -> 0 | Y50: =IF('Server10 Lotto2 DL560 2'!$D$46=W50,1,0) -> 0 | Z50: =IF('Server10 Lotto2 DL560 3'!$D$46=W50,1,0) -> 0 | AA50: =IF('Server10 Lotto2 DL580'!$D$46=W50,1,0) -> 0 | AB50: =IF('Server10 Lotto2 DL580 2'!$D$46=W50,1,0) -> 0 | AC50: =IF('Server10 Lotto2 DL580 3'!$D$46=W50,1,0) -> 0 | AD50: =SUM(X50:Z50) -> 0 | AE50: =SUM(AA50:AC50) -> 0 | AF50: =X50*$X$14 -> 0 | AG50: =Y50*$Y$14 -> 0 | AH50: =Z50*$Z$14 -> 0 | AI50: =AA50*$X$32 -> 0 | AJ50: =AB50*$Y$32 -> 0 | AK50: =AC50*$Z$32 -> 0 | AP50: =SUM(AF50:AL50) -> 0
B51: =IF(AP51=0,"",AP51) ->  | G51: =IF(AP51>0,W51,"") ->  | T51: =IF(B51="","",R51*B51) ->  | V51: 0 | W51: 10L2-WIN2 | X51: =IF('Server10 Lotto2 DL560'!$D$47=W51,1,0) -> 0 | Y51: =IF('Server10 Lotto2 DL560 2'!$D$47=W51,1,0) -> 0 | Z51: =IF('Server10 Lotto2 DL560 3'!$D$47=W51,1,0) -> 0 | AA51: =IF('Server10 Lotto2 DL580'!$D$47=W51,1,0) -> 0 | AB51: =IF('Server10 Lotto2 DL580 2'!$D$48=W51,1,0) -> 0 | AC51: =IF('Server10 Lotto2 DL580 3'!$D$48=W51,1,0) -> 0 | AD51: =SUM(X51:Z51) -> 0 | AE51: =SUM(AA51:AC51) -> 0 | AF51: =X51*$X$14 -> 0 | AG51: =Y51*$Y$14 -> 0 | AH51: =Z51*$Z$14 -> 0 | AI51: =AA51*$X$32 -> 0 | AJ51: =AB51*$Y$32 -> 0 | AK51: =AC51*$Z$32 -> 0 | AP51: =SUM(AF51:AL51) -> 0
V52: 0 | W52: 10L2-WINDC1 | X52: =IF('Server10 Lotto2 DL560'!$D$46=W52,1,0) -> 0 | Y52: =IF('Server10 Lotto2 DL560 2'!$D$46=W52,1,0) -> 0 | Z52: =IF('Server10 Lotto2 DL560 3'!$D$46=W52,1,0) -> 0 | AA52: =IF('Server10 Lotto2 DL580'!$D$46=W52,1,0) -> 0 | AB52: =IF('Server10 Lotto2 DL580 2'!$D$46=W52,1,0) -> 0 | AC52: =IF('Server10 Lotto2 DL580 3'!$D$46=W52,1,0) -> 0 | AD52: 0 | AE52: 0 | AF52: =X52*$X$14 -> 0 | AG52: =Y52*$Y$14 -> 0 | AH52: =Z52*$Z$14 -> 0 | AI52: =AA52*$X$32 -> 0 | AJ52: =AB52*$Y$32 -> 0 | AK52: =AC52*$Z$32 -> 0 | AP52: =SUM(AF52:AL52) -> 0
G53: =IF(AP53>0,W53,"") ->  | V53: 0 | W53: 10L2-WINDC2 | X53: =IF('Server10 Lotto2 DL560'!$D$47=W53,1,0) -> 0 | Y53: =IF('Server10 Lotto2 DL560 2'!$D$47=W53,1,0) -> 0 | Z53: =IF('Server10 Lotto2 DL560 3'!$D$47=W53,1,0) -> 0 | AA53: =IF('Server10 Lotto2 DL580'!$D$47=W53,1,0) -> 0 | AB53: =IF('Server10 Lotto2 DL580 2'!$D$48=W53,1,0) -> 0 | AC53: =IF('Server10 Lotto2 DL580 3'!$D$48=W53,1,0) -> 0 | AD53: 0 | AE53: 0 | AF53: 0 | AG53: 0 | AH53: 0 | AI53: 0 | AJ53: 0 | AK53: 0 | AP53: 0
B54: =IF(AP54=0,"",AP54) ->  | T54: =IF(B54="","",R54*B54) ->  | V54: 0 | W54: 10L2-LINUX | X54: =IF('Server10 Lotto2 DL560'!$D$46=W54,1,0) -> 0 | Y54: =IF('Server10 Lotto2 DL560 2'!$D$46=W54,1,0) -> 0 | Z54: =IF('Server10 Lotto2 DL560 3'!$D$46="10L1-LINUX",1,0) -> 0 | AA54: =IF('Server10 Lotto2 DL580'!$D$46=W54,1,0) -> 0 | AB54: =IF('Server10 Lotto2 DL580 2'!$D$46=W54,1,0) -> 0 | AC54: =IF('Server10 Lotto2 DL580 3'!$D$46=W54,1,0) -> 0 | AD54: 0 | AE54: 0 | AF54: =X54*$X$14 -> 0 | AG54: =Y54*$Y$14 -> 0 | AH54: =Z54*$Z$14 -> 0 | AI54: =AA54*$X$32 -> 0 | AJ54: =AB54*$Y$32 -> 0 | AK54: =AC54*$Z$32 -> 0 | AP54: =SUM(AF54:AL54) -> 0
B55: =IF(AP55=0,"",AP55) ->  | G55: =IF(AP55>0,W55,"") ->  | V55: 0 | W55: 10L2-CALUSER | X55: ='Server10 Lotto2 DL560'!$C$50 -> 0 | Y55: ='Server10 Lotto2 DL560 2'!$C$50 -> 0 | Z55: ='Server10 Lotto2 DL560 3'!$C$50 -> 0 | AA55: ='Server10 Lotto2 DL580'!$C$50 -> 0 | AB55: ='Server10 Lotto2 DL580 2'!$C$50 -> 0 | AC55: ='Server10 Lotto2 DL580 3'!$C$50 -> 0 | AD55: 0 | AE55: 0 | AF55: =X55*$X$14 -> 0 | AG55: =Y55*$Y$14 -> 0 | AH55: =Z55*$Z$14 -> 0 | AI55: 0 | AJ55: 0 | AK55: 0 | AP55: 0
B56: =IF(AP56=0,"",AP56) ->  | V56: 0 | W56: 10L2-CALDEV | X56: ='Server10 Lotto2 DL560'!$C$52 -> 0 | Y56: ='Server10 Lotto2 DL560 2'!$C$52 -> 0 | Z56: ='Server10 Lotto2 DL560 3'!$C$52 -> 0 | AA56: ='Server10 Lotto2 DL580'!$C$52 -> 0 | AB56: ='Server10 Lotto2 DL580 2'!$C$52 -> 0 | AC56: ='Server10 Lotto2 DL580 3'!$C$52 -> 0 | AD56: 0 | AE56: 0 | AF56: =X56*$X$14 -> 0 | AG56: =Y56*$Y$14 -> 0 | AH56: =Z56*$Z$14 -> 0 | AI56: 0 | AJ56: 0 | AK56: 0 | AP56: 0
B57: =IF('RACK, Accessori e Servizi'!J14=0,"",'RACK, Accessori e Servizi'!J14) ->  | C57: =IF(B57>0,(VLOOKUP(G57,COD_A,2,FALSE)),"") ->  | G57: =IF('RACK, Accessori e Servizi'!J14>0,'RACK, Accessori e Servizi'!K14,"") ->  | J57: =IF(B57>0,(VLOOKUP(G57,COD_A,5,FALSE)),"") ->  | R57: =IF(B57>0,(VLOOKUP(G57,COD_A,3,FALSE)),"") ->  | T57: =IF(B57="","",R57*B57) ->  | V57: 0
B58: =IF('RACK, Accessori e Servizi'!J23=0,"",'RACK, Accessori e Servizi'!J23) ->  | G58: =IF('RACK, Accessori e Servizi'!J23>0,'RACK, Accessori e Servizi'!K23,"") ->  | T58: =IF(B58="","",R58*B58) ->  | V58: 0
B59: =IF('RACK, Accessori e Servizi'!J17=0,"",'RACK, Accessori e Servizi'!J17) ->  | G59: =IF('RACK, Accessori e Servizi'!J17>0,'RACK, Accessori e Servizi'!K17,"") ->  | V59: 0
B60: =IF('RACK, Accessori e Servizi'!J20=0,"",'RACK, Accessori e Servizi'!J20) ->  | G60: =IF('RACK, Accessori e Servizi'!J20>0,'RACK, Accessori e Servizi'!K20,"") ->  | V60: 0
B61: =IF('RACK, Accessori e Servizi'!J5=0,"",'RACK, Accessori e Servizi'!J5) ->  | C61: =IF(B61>0,(VLOOKUP(G61,COD_B,2,FALSE)),"") ->  | G61: =IF('RACK, Accessori e Servizi'!J5>0,'RACK, Accessori e Servizi'!K5,"") ->  | J61: =IF(B61>0,(VLOOKUP(G61,COD_B,5,FALSE)),"") ->  | R61: =IF(B61>0,(VLOOKUP(G61,COD_B,3,FALSE)),"") ->  | V61: 0
B62: =IF('RACK, Accessori e Servizi'!J7=0,"",'RACK, Accessori e Servizi'!J7) ->  | C62: =IF(B62>0,(VLOOKUP(G62,COD_B,2,FALSE)),"") ->  | G62: =IF('RACK, Accessori e Servizi'!J7>0,'RACK, Accessori e Servizi'!K7,"") ->  | J62: =IF(B62>0,(VLOOKUP(G62,COD_B,5,FALSE)),"") ->  | R62: =IF(B62>0,(VLOOKUP(G62,COD_B,3,FALSE)),"") ->  | V62: 0
B63: =IF('RACK, Accessori e Servizi'!J9=0,"",'RACK, Accessori e Servizi'!J9) ->  | C63: =IF(B63>0,(VLOOKUP(G63,COD_B,2,FALSE)),"") ->  | G63: =IF('RACK, Accessori e Servizi'!J9>0,'RACK, Accessori e Servizi'!K9,"") ->  | J63: =IF(B63>0,(VLOOKUP(G63,COD_B,5,FALSE)),"") ->  | R63: =IF(B63>0,(VLOOKUP(G63,COD_B,3,FALSE)),"") ->  | V63: 0
B64: I.V.A. | R64: =R65*22% -> 0 | V64: 1
B65: TOTALE COSTO (I.V.A. Esclusa) | R65: =SUM(T14:U63) -> 0 | V65: 1
B66: TOTALE ORDINE | R66: =SUM(R64:U65) -> 0 | V66: 1
V67: 1
V68: 1
V69: 1
D70: =IF(G6>0,"DETTAGLIO CONFIGURAZIONI SERVER LOTTO 2 ","") ->  | V70: 1
V71: 1
V72: 1
V73: =IF($B$14>="",0,1) -> 0
B74: Proliant DL560 Gen9 Conf.1 | E74: =SRV_A -> 0 | F74: Server | I74: Proliant DL560 Gen9 Conf.2 | L74: =SRV_AA -> 0 | M74: Server | P74: Proliant DL560 Gen9 Conf.3 | S74: =SRV_AAA -> 0 | T74: Server | V74: =IF($B$14>="",0,1) -> 0
V75: 0
B76: =IF(SRV_A>0,"1","-") -> - | C76: =IF(B76="-","-",CONCATENATE(MID($C$14,1,21)," - ",$G$14)) -> - | I76: =IF(SRV_AA>0,"1","-") -> - | J76: =IF(I76="-","-",CONCATENATE(MID($C$14,1,21)," - ",$G$14)) -> - | P76: =IF(SRV_AAA>0,"1","-") -> - | Q76: =IF(P76="-","-",CONCATENATE(MID($C$14,1,21)," - ",$G$14)) -> - | V76: 0
B77: =IF(X15=0,"-",X15) -> - | C77: =IF(B77="-","-",CONCATENATE(MID($C$15,1,21)," - ",$G$15)) -> - | I77: =IF(Y15=0,"-",Y15) -> - | J77: =IF(I77="-","-",CONCATENATE(MID(C15,1,21)," - ",G15)) -> - | P77: =IF(Z15=0,"-",Z15) -> - | Q77: =IF(P77="-","-",CONCATENATE(MID(C15,1,21)," - ",G15)) -> - | V77: =IF(V15=0,0,1) -> 0
B78: - | C78: =IF(B78="-","-",CONCATENATE(MID($C$16,1,21)," - ",$G$16)) -> - | I78: - | J78: - | P78: - | Q78: - | V78: =IF(V16=0,0,1) -> 0
B79: - | C79: =IF(B79="-","-",CONCATENATE(MID($C$17,1,21)," - ",$G$17)) -> - | I79: - | J79: - | P79: - | Q79: - | V79: 0
B80: - | C80: =IF(B80="-","-",CONCATENATE(MID(C18,1,21)," - ",G18)) -> - | I80: - | J80: - | P80: - | Q80: - | V80: 0
B81: - | C81: - | I81: - | J81: - | P81: - | Q81: - | V81: 0
B82: - | C82: - | I82: - | J82: - | P82: - | Q82: - | V82: 0
B83: - | C83: - | I83: - | J83: - | P83: - | Q83: - | V83: 0
B84: - | C84: - | I84: - | J84: - | P84: - | Q84: - | V84: 0
B85: - | C85: - | I85: - | J85: - | P85: - | Q85: - | V85: 0
B86: - | C86: - | I86: - | J86: - | P86: - | Q86: - | V86: 0
B87: - | C87: - | I87: - | J87: - | P87: - | Q87: - | V87: 0
B88: - | C88: - | I88: - | J88: - | P88: - | Q88: - | V88: 0
B89: - | C89: - | I89: - | J89: - | P89: - | Q89: - | V89: 0
B90: - | C90: - | I90: - | J90: - | P90: - | Q90: - | V90: 0
B91: - | C91: - | I91: - | J91: - | P91: - | Q91: - | V91: 0
B92: - | C92: - | I92: - | J92: - | P92: - | Q92: - | V92: 0
B93: =IF(X50=0,"-",X50) -> - | C93: =IF(B93="-","-",CONCATENATE(MID(C50,1,21)," - ",G50)) -> - | I93: =IF(Y50=0,"-",Y50) -> - | J93: =IF(I93="-","-",CONCATENATE(MID(C50,1,21)," - ",G50)) -> - | P93: =IF(Z50=0,"-",Z50) -> - | Q93: =IF(P93="-","-",CONCATENATE(MID(C50,1,21)," - ",G50)) -> - | V93: =IF(AD50=0,0,1) -> 0
B94: =IF(X51=0,"-",X51) -> - | C94: =IF(B94="-","-",CONCATENATE(MID(C51,1,21)," - ",G51)) -> - | I94: =IF(Y51=0,"-",Y51) -> - | J94: =IF(I94="-","-",CONCATENATE(MID(C51,1,21)," - ",G51)) -> - | P94: =IF(Z51=0,"-",Z51) -> - | Q94: =IF(P94="-","-",CONCATENATE(MID(C51,1,21)," - ",G51)) -> - | V94: =IF(AD51=0,0,1) -> 0
B95: - | C95: - | I95: - | J95: - | P95: - | Q95: - | V95: 0
B96: - | C96: - | I96: - | J96: - | P96: - | Q96: - | V96: 0
B97: =IF(X54=0,"-",X54) -> - | C97: =IF(B97="-","-",CONCATENATE(MID(C54,1,21)," - ",G54)) -> - | I97: =IF(Y54=0,"-",Y54) -> - | J97: =IF(I97="-","-",CONCATENATE(MID(C54,1,21)," - ",G54)) -> - | P97: =IF(Z54=0,"-",Z54) -> - | Q97: =IF(P97="-","-",CONCATENATE(MID(C54,1,21)," - ",G54)) -> - | V97: 0
B98: =IF(X55=0,"-",X55) -> - | C98: =IF(B98="-","-",CONCATENATE(MID(C55,1,21)," - ",G55)) -> - | I98: =IF(Y55=0,"-",Y55) -> - | J98: =IF(I98="-","-",CONCATENATE(MID(C55,1,21)," - ",G55)) -> - | P98: =IF(Z55=0,"-",Z55) -> - | Q98: =IF(P98="-","-",CONCATENATE(MID(C55,1,21)," - ",G55)) -> - | V98: 0
B99: =IF(X56=0,"-",X56) -> - | C99: =IF(B99="-","-",CONCATENATE(MID(C56,1,21)," - ",G56)) -> - | I99: =IF(Y56=0,"-",Y56) -> - | J99: =IF(I99="-","-",CONCATENATE(MID(C56,1,21)," - ",G56)) -> - | P99: =IF(Z56=0,"-",Z56) -> - | Q99: =IF(P99="-","-",CONCATENATE(MID(C56,1,21)," - ",G56)) -> - | V99: 0
V100: =IF($B$14>="",0,1) -> 0
B101: Configurazione RAID | I101: Configurazione RAID | P101: Configurazione RAID | V101: 0
V102: 0
B103: =IF(X14=0,"","HDD 300 GB") ->  | D103: =IF(X14=0,"",'Server10 Lotto2 DL560'!$B$65) ->  | I103: =IF(Y14=0,"","HDD 300 GB") ->  | K103: =IF(Y14=0,"",'Server10 Lotto2 DL560 2'!$B$65) ->  | P103: =IF(Z14=0,"","HDD 300 GB") ->  | R103: =IF(Z14=0,"",'Server10 Lotto2 DL560 3'!$B$65) ->  | V103: 0
V104: 0
B105: =IF(X14=0,"","Hot spare HDD 300 GB") ->  | F105: =IF(X14=0,"",'Server10 Lotto2 DL560'!$C$66) ->  | I105: =IF(Y14=0,"","Hot spare HDD 300 GB") ->  | M105: =IF(Y14=0,"",'Server10 Lotto2 DL560 2'!$C$66) ->  | P105: =IF(Z14=0,"","Hot spare HDD 300 GB") ->  | T105: =IF(Z14=0,"",'Server10 Lotto2 DL560 3'!$C$66) ->  | V105: 0
V106: 0
V107: 0
B108: =IF(X27=0,"","HDD 1000 GB") ->  | D108: =IF(X27=0,"",'Server10 Lotto2 DL560'!$B$69) ->  | I108: =IF(Y27=0,"","HDD 1000 GB") ->  | K108: =IF(Y27=0,"",'Server10 Lotto2 DL560 2'!$B$69) ->  | P108: =IF(Z27=0,"","HDD 1000 GB") ->  | R108: =IF(Z27=0,"",'Server10 Lotto2 DL560 2'!$B$69) ->  | V108: 0
V109: 0
B110: =IF(X27=0,"","Hot spare HDD 1000 GB") ->  | F110: =IF(X27=0,"",'Server10 Lotto2 DL560'!$C$70) ->  | I110: =IF(Y27=0,"","Hot spare HDD 1000 GB") ->  | M110: =IF(Y27=0,"",'Server10 Lotto2 DL560 2'!$C$70) ->  | P110: =IF(Z27=0,"","Hot spare HDD 1000 GB") ->  | T110: =IF(Z27=0,"",'Server10 Lotto2 DL560 2'!$C$70) ->  | V110: 0
V111: 0
V112: 0
B113: Note RAID | I113: Note RAID | P113: Note RAID | V113: 0
B114: =IF('Server10 Lotto2 DL560'!$I$64=0,"",'Server10 Lotto2 DL560'!$I$64) ->  | I114: =IF('Server10 Lotto2 DL560 2'!$I$64=0,"",'Server10 Lotto2 DL560 2'!$I$64) ->  | P114: =IF('Server10 Lotto2 DL560 3'!$I$64=0,"",'Server10 Lotto2 DL560 3'!$I$64) ->  | V114: 0
V115: 0
V116: 0
B117: =IF('Server10 Lotto2 DL560'!$I$68=0,"",'Server10 Lotto2 DL560'!$I$68) ->  | I117: =IF('Server10 Lotto2 DL560 2'!$I$68=0,"",'Server10 Lotto2 DL560 2'!$I$68) ->  | P117: =IF('Server10 Lotto2 DL560 3'!$I$68=0,"",'Server10 Lotto2 DL560 3'!$I$68) ->  | V117: 0
V118: 0
V119: 0
V120: 0
V121: =IF($B$32>="",0,1) -> 0
B122: Proliant DL580 Gen9 Conf.1 | E122: =SRV_B -> 0 | F122: Server | I122: Proliant DL580 Gen9 Conf.2 | L122: =SRV_BB -> 0 | M122: Server | P122: Proliant DL580 Gen9 Conf.3 | S122: =SRV_BBB -> 0 | T122: Server | V122: =IF($B$32>="",0,1) -> 0 | W122: DL580 1 | X122: DL580 2 | Y122: DL580 3
V123: 0 | W123: CPU BASE | X123: CPU BASE | Y123: CPU BASE
B124: =IF(SRV_B>0,"1","-") -> - | C124: =IF(B124="-","-",CONCATENATE(MID(C32,1,24)," - ",W132)) -> - | I124: =IF(SRV_BB>0,"1","-") -> - | J124: =IF(I124="-","-",CONCATENATE(MID(C32,1,24)," - ",X132)) -> - | P124: =IF(SRV_BBB>0,"1","-") -> - | Q124: =IF(P124="-","-",CONCATENATE(MID(C32,1,24)," - ",Y132)) -> - | V124: =IF($B$32>="",0,1) -> 0 | W124: =IF(B124="-",0,2) -> 0 | X124: =IF(I124="-",0,2) -> 0 | Y124: =IF(P124="-",0,2) -> 0
B125: =IF(X33=0,"-",X33) -> - | C125: =IF(B125="-","-",CONCATENATE(MID(C33,1,24)," - ",W133)) -> - | I125: =IF(Y33=0,"-",Y33) -> - | J125: =IF(I125="-","-",CONCATENATE(MID(C33,1,24)," - ",X133)) -> - | P125: =IF(Z33=0,"-",Z33) -> - | Q125: =IF(P125="-","-",CONCATENATE(MID(C33,1,24)," - ",Y133)) -> - | V125: =IF(V33=0,0,1) -> 0 | W125: CPU AGGIUNTIVE
B126: - | C126: =IF(B126="-","-",CONCATENATE(MID(C34,1,24)," - ",G34)) -> - | I126: - | J126: =IF(I126="-","-",CONCATENATE(MID(C34,1,24)," - ",G34)) -> - | P126: =IF(Z34=0,"-",Z34) -> - | Q126: =IF(P126="-","-",CONCATENATE(MID(C34,1,24)," - ",G34)) -> - | V126: =IF(V34=0,0,1) -> 0 | W126: ='Server10 Lotto2 DL580'!$C$30 -> 0 | X126: ='Server10 Lotto2 DL580 2'!$C$30 -> 0 | Y126: ='Server10 Lotto2 DL580 3'!$C$30 -> 0
B127: - | C127: - | I127: - | J127: - | P127: - | Q127: =IF(P127="-","-",CONCATENATE(MID(C35,1,24)," - ",G35)) -> - | V127: 0
B128: - | C128: - | I128: - | J128: - | P128: - | Q128: - | V128: 0 | W128: Memory Slot
B129: - | C129: - | I129: - | J129: - | P129: - | Q129: - | V129: 0 | W129: ='Server10 Lotto2 DL580'!$C$33 -> 2 | X129: ='Server10 Lotto2 DL580 2'!$C$33 -> 2 | Y129: ='Server10 Lotto2 DL580 3'!$C$33 -> 2
B130: - | C130: - | I130: - | J130: - | P130: - | Q130: - | V130: 0
B131: - | C131: - | I131: - | J131: - | P131: - | Q131: - | V131: 0 | W131: =SUM(W124:W129) -> 2 | X131: =SUM(X124:X129) -> 2 | Y131: 2
B132: - | C132: - | I132: - | J132: - | P132: - | Q132: - | V132: 0 | W132: =IF(W131=$W$141,$X$141,IF(W131=$W$140,$X$140,IF(W131=$W$139,$X$139,IF(W131=$W$138,$X$138,"-")))) -> - | X132: =IF(X131=$W$141,$X$141,IF(X131=$W$140,$X$140,IF(X131=$W$139,$X$139,IF(X131=$W$138,$X$138,"-")))) -> - | Y132: -
B133: - | C133: - | I133: - | J133: - | P133: - | Q133: - | V133: 0 | W133: =IF(W131=$W$141,$Y$141,IF(W131=$W$140,$Y$140,IF(W131=$W$139,$Y$139,IF(W131=$W$138,$Y$138,"-")))) -> - | X133: =IF(X131=$W$141,$Y$141,IF(X131=$W$140,$Y$140,IF(X131=$W$139,$Y$139,IF(X131=$W$138,$Y$138,"-")))) -> - | Y133: -
B134: - | C134: - | I134: - | J134: - | P134: - | Q134: - | V134: 0
B135: - | C135: - | I135: - | J135: - | P135: - | Q135: - | V135: 0
B136: - | C136: - | I136: - | J136: - | P136: - | Q136: - | V136: 0
B137: - | C137: - | I137: - | J137: - | P137: - | Q137: - | V137: 0
B138: =IF(X46=0,"-",X46) -> - | C138: =IF(B138="-","-",CONCATENATE(MID(C46,1,24)," - ",G46)) -> - | I138: - | J138: =IF(I138="-","-",CONCATENATE(MID(C46,1,24)," - ",G46)) -> - | P138: - | Q138: =IF(P138="-","-",CONCATENATE(MID(C46,1,24)," - ",G46)) -> - | V138: 0 | W138: 12 | X138: 10L2-DL580G94-U | Y138: 10L2-CPU-E4-U
B139: - | C139: - | I139: =IF(Y47=0,"-",Y47) -> - | J139: - | P139: - | Q139: - | V139: 0 | W139: 8 | X139: 10L2-DL580G92-U | Y139: 10L2-CPU-E2-U
B140: - | C140: - | I140: - | J140: - | P140: - | Q140: - | V140: 0 | W140: 6 | X140: 10L2-DL580G94-U
B141: =IF(AA50=0,"-",AA50) -> - | C141: =IF(B141="-","-",CONCATENATE(MID(C50,1,24)," - ",G50)) -> - | I141: =IF(AB50=0,"-",AB50) -> - | J141: =IF(I141="-","-",CONCATENATE(MID(C50,1,24)," - ",G50)) -> - | P141: =IF(AC50=0,"-",AC50) -> - | Q141: =IF(P141="-","-",CONCATENATE(MID(C50,1,24)," - ",G50)) -> - | V141: =IF(AE50=0,0,1) -> 0 | W141: 4 | X141: 10L2-DL580G92-U
B142: =IF(AA51=0,"-",AA51) -> - | C142: =IF(B142="-","-",CONCATENATE(MID(C51,1,24)," - ",G51)) -> - | I142: =IF(AB51=0,"-",AB51) -> - | J142: =IF(I142="-","-",CONCATENATE(MID(C51,1,24)," - ",G51)) -> - | P142: =IF(AC51=0,"-",AC51) -> - | Q142: =IF(P142="-","-",CONCATENATE(MID(C51,1,24)," - ",G51)) -> - | V142: =IF(AE51=0,0,1) -> 0
B143: - | C143: - | I143: - | J143: - | P143: - | Q143: - | V143: 0
B144: - | C144: - | I144: - | J144: - | P144: - | Q144: - | V144: 0
B145: - | C145: - | I145: - | J145: - | P145: - | Q145: - | V145: 0
B146: - | C146: - | I146: - | J146: - | P146: - | Q146: - | V146: 0
B147: - | C147: - | I147: - | J147: - | P147: - | Q147: - | V147: 0
V148: =IF($B$32>="",0,1) -> 0
B149: Configurazione RAID | I149: Configurazione RAID | P149: Configurazione RAID | V149: 0
V150: 0
B151: =IF(X32=0,"","HDD 300 GB") ->  | D151: =IF(X32=0,"",'Server10 Lotto2 DL580'!$B$65) ->  | I151: =IF(Y32=0,"","HDD 300 GB") ->  | K151: =IF(Y32=0,"",'Server10 Lotto2 DL580 2'!$B$65) ->  | P151: =IF(Z32=0,"","HDD 300 GB") ->  | R151: =IF(Z32=0,"",'Server10 Lotto2 DL580 3'!$B$65) ->  | V151: 0
V152: 0
B153: =IF(X32=0,"","Hot spare HDD 300 GB") ->  | F153: =IF(X32=0,"",'Server10 Lotto2 DL580'!$C$66) ->  | I153: =IF(Y32=0,"","Hot spare HDD 300 GB") ->  | M153: =IF(Y32=0,"",'Server10 Lotto2 DL580 2'!$C$66) ->  | P153: =IF(Z32=0,"","Hot spare HDD 300 GB") ->  | T153: =IF(Z32=0,"",'Server10 Lotto2 DL580 3'!$C$66) ->  | V153: 0
V154: 0
V155: 0
B156: =IF(X45=0,"","HDD 1000 GB") ->  | D156: =IF(X45=0,"",'Server10 Lotto2 DL580'!$B$69) ->  | I156: =IF(Y44=0,"","HDD 1000 GB") ->  | K156: =IF(Y44=0,"",'Server10 Lotto2 DL580 2'!$B$69) ->  | P156: =IF(Z44=0,"","HDD 1000 GB") ->  | R156: =IF(Z44=0,"",'Server10 Lotto2 DL580 3'!$B$69) ->  | V156: 0
V157: 0
B158: =IF(X45=0,"","Hot spare HDD 1000 GB") ->  | F158: =IF(X45=0,"",'Server10 Lotto2 DL580'!$C$70) ->  | I158: =IF(Y44=0,"","Hot spare HDD 1000 GB") ->  | M158: =IF(Y44=0,"",'Server10 Lotto2 DL580 2'!$C$70) ->  | P158: =IF(Z44=0,"","Hot spare HDD 1000 GB") ->  | T158: =IF(Z44=0,"",'Server10 Lotto2 DL580 3'!$C$70) ->  | V158: 0
V159: 0
V160: 0
B161: Note RAID | I161: Note RAID | P161: Note RAID | V161: 0
B162: =IF('Server10 Lotto2 DL580'!$I$64=0,"",'Server10 Lotto2 DL580'!$I$64) ->  | I162: =IF('Server10 Lotto2 DL580 2'!$I$64=0,"",'Server10 Lotto2 DL580 2'!$I$64) ->  | P162: =IF('Server10 Lotto2 DL580 3'!$I$64=0,"",'Server10 Lotto2 DL580 3'!$I$64) ->  | V162: 0
V163: 0
V164: 0
B165: =IF('Server10 Lotto2 DL580'!$I$68=0,"",'Server10 Lotto2 DL580'!$I$68) ->  | I165: =IF('Server10 Lotto2 DL580 2'!$I$68=0,"",'Server10 Lotto2 DL580 2'!$I$68) ->  | P165: =IF('Server10 Lotto2 DL580 3'!$I$68=0,"",'Server10 Lotto2 DL580 3'!$I$68) ->  | V165: 0
V166: 0
V167: 0
V168: 0
V169: =IF($D$170="",0,1) -> 0
D170: =IF('RACK, Accessori e Servizi'!H48>=1,"DETTAGLIO CONFIGURAZIONE ARMADI RACK","") ->  | V170: =IF($D$170="",0,1) -> 0
V171: 0
V172: 0
D173: =CONCATENATE('RACK, Accessori e Servizi'!H50," Qty: ",'RACK, Accessori e Servizi'!H48) -> Qty: | E173: =CONCATENATE('RACK, Accessori e Servizi'!I50," Qty: ",'RACK, Accessori e Servizi'!I48) -> Qty: | F173: =CONCATENATE('RACK, Accessori e Servizi'!J50," Qty: ",'RACK, Accessori e Servizi'!J48) -> Qty: | G173: =CONCATENATE('RACK, Accessori e Servizi'!K50," Qty: ",'RACK, Accessori e Servizi'!K48) -> Qty: | I173: =CONCATENATE('RACK, Accessori e Servizi'!L50," Qty: ",'RACK, Accessori e Servizi'!L48) -> Qty: | J173: =CONCATENATE('RACK, Accessori e Servizi'!M50," Qty: ",'RACK, Accessori e Servizi'!M48) -> Qty: | K173: =CONCATENATE('RACK, Accessori e Servizi'!N50," Qty: ",'RACK, Accessori e Servizi'!N48) -> Qty: | L173: =CONCATENATE('RACK, Accessori e Servizi'!O50," Qty: ",'RACK, Accessori e Servizi'!O48) -> Qty: | M173: =CONCATENATE('RACK, Accessori e Servizi'!P50," Qty: ",'RACK, Accessori e Servizi'!P48) -> Qty: | N173: =CONCATENATE('RACK, Accessori e Servizi'!Q50," Qty: ",'RACK, Accessori e Servizi'!Q48) -> Qty: | V173: 0
B174: DL560 Conf.1 | D174: ='RACK, Accessori e Servizi'!H52 -> 0 | E174: ='RACK, Accessori e Servizi'!I52 -> 0 | F174: ='RACK, Accessori e Servizi'!J52 -> 0 | G174: ='RACK, Accessori e Servizi'!K52 -> 0 | I174: ='RACK, Accessori e Servizi'!L52 -> 0 | J174: ='RACK, Accessori e Servizi'!M52 -> 0 | K174: ='RACK, Accessori e Servizi'!N52 -> 0 | L174: ='RACK, Accessori e Servizi'!O52 -> 0 | M174: ='RACK, Accessori e Servizi'!P52 -> 0 | N174: ='RACK, Accessori e Servizi'!Q52 -> 0 | V174: 0
B175: DL560 Conf.2 | D175: ='RACK, Accessori e Servizi'!H53 -> 0 | E175: ='RACK, Accessori e Servizi'!I53 -> 0 | F175: ='RACK, Accessori e Servizi'!J53 -> 0 | G175: ='RACK, Accessori e Servizi'!K53 -> 0 | I175: ='RACK, Accessori e Servizi'!L53 -> 0 | J175: ='RACK, Accessori e Servizi'!M53 -> 0 | K175: ='RACK, Accessori e Servizi'!N53 -> 0 | L175: ='RACK, Accessori e Servizi'!O53 -> 0 | M175: ='RACK, Accessori e Servizi'!P53 -> 0 | N175: ='RACK, Accessori e Servizi'!Q53 -> 0 | V175: 0
B176: DL560 Conf.3 | D176: ='RACK, Accessori e Servizi'!H54 -> 0 | E176: ='RACK, Accessori e Servizi'!I54 -> 0 | F176: ='RACK, Accessori e Servizi'!J54 -> 0 | G176: ='RACK, Accessori e Servizi'!K54 -> 0 | I176: ='RACK, Accessori e Servizi'!L54 -> 0 | J176: ='RACK, Accessori e Servizi'!M54 -> 0 | K176: ='RACK, Accessori e Servizi'!N54 -> 0 | L176: ='RACK, Accessori e Servizi'!O54 -> 0 | M176: ='RACK, Accessori e Servizi'!P54 -> 0 | N176: ='RACK, Accessori e Servizi'!Q54 -> 0 | V176: 0
B177: DL580 Conf.1 | D177: ='RACK, Accessori e Servizi'!H55 -> 0 | E177: ='RACK, Accessori e Servizi'!I55 -> 0 | F177: ='RACK, Accessori e Servizi'!J55 -> 0 | G177: ='RACK, Accessori e Servizi'!K55 -> 0 | I177: ='RACK, Accessori e Servizi'!L55 -> 0 | J177: ='RACK, Accessori e Servizi'!M55 -> 0 | K177: ='RACK, Accessori e Servizi'!N55 -> 0 | L177: ='RACK, Accessori e Servizi'!O55 -> 0 | M177: ='RACK, Accessori e Servizi'!P55 -> 0 | N177: ='RACK, Accessori e Servizi'!Q55 -> 0 | V177: 0
B178: DL580 Conf.2 | D178: ='RACK, Accessori e Servizi'!H56 -> 0 | E178: ='RACK, Accessori e Servizi'!I56 -> 0 | F178: ='RACK, Accessori e Servizi'!J56 -> 0 | G178: ='RACK, Accessori e Servizi'!K56 -> 0 | I178: ='RACK, Accessori e Servizi'!L56 -> 0 | J178: ='RACK, Accessori e Servizi'!M56 -> 0 | K178: ='RACK, Accessori e Servizi'!N56 -> 0 | L178: ='RACK, Accessori e Servizi'!O56 -> 0 | M178: ='RACK, Accessori e Servizi'!P56 -> 0 | N178: ='RACK, Accessori e Servizi'!Q56 -> 0 | V178: 0
B179: DL580 Conf.3 | D179: ='RACK, Accessori e Servizi'!H57 -> 0 | E179: ='RACK, Accessori e Servizi'!I57 -> 0 | F179: ='RACK, Accessori e Servizi'!J57 -> 0 | G179: ='RACK, Accessori e Servizi'!K57 -> 0 | I179: ='RACK, Accessori e Servizi'!L57 -> 0 | J179: ='RACK, Accessori e Servizi'!M57 -> 0 | K179: ='RACK, Accessori e Servizi'!N57 -> 0 | L179: ='RACK, Accessori e Servizi'!O57 -> 0 | M179: ='RACK, Accessori e Servizi'!P57 -> 0 | N179: ='RACK, Accessori e Servizi'!Q57 -> 0 | V179: 0
D180: ='RACK, Accessori e Servizi'!H58 -> 0 | E180: ='RACK, Accessori e Servizi'!I58 -> 0 | F180: ='RACK, Accessori e Servizi'!J58 -> 0 | G180: ='RACK, Accessori e Servizi'!K58 -> 0 | I180: ='RACK, Accessori e Servizi'!L58 -> 0 | J180: ='RACK, Accessori e Servizi'!M58 -> 0 | K180: ='RACK, Accessori e Servizi'!N58 -> 0 | L180: ='RACK, Accessori e Servizi'!O58 -> 0 | M180: ='RACK, Accessori e Servizi'!P58 -> 0 | N180: ='RACK, Accessori e Servizi'!Q58 -> 0 | V180: 0
B181: OpzGUIRack | D181: ='RACK, Accessori e Servizi'!H59 -> 0 | E181: ='RACK, Accessori e Servizi'!I59 -> 0 | F181: ='RACK, Accessori e Servizi'!J59 -> 0 | G181: ='RACK, Accessori e Servizi'!K59 -> 0 | I181: ='RACK, Accessori e Servizi'!L59 -> 0 | J181: ='RACK, Accessori e Servizi'!M59 -> 0 | K181: ='RACK, Accessori e Servizi'!N59 -> 0 | L181: ='RACK, Accessori e Servizi'!O59 -> 0 | M181: ='RACK, Accessori e Servizi'!P59 -> 0 | N181: ='RACK, Accessori e Servizi'!Q59 -> 0 | V181: 0
D182: ='RACK, Accessori e Servizi'!H60 -> 0 | E182: ='RACK, Accessori e Servizi'!I60 -> 0 | F182: ='RACK, Accessori e Servizi'!J60 -> 0 | G182: ='RACK, Accessori e Servizi'!K60 -> 0 | I182: ='RACK, Accessori e Servizi'!L60 -> 0 | J182: ='RACK, Accessori e Servizi'!M60 -> 0 | K182: ='RACK, Accessori e Servizi'!N60 -> 0 | L182: ='RACK, Accessori e Servizi'!O60 -> 0 | M182: ='RACK, Accessori e Servizi'!P60 -> 0 | N182: ='RACK, Accessori e Servizi'!Q60 -> 0 | V182: 0
B183: OpzSWGUIRack | C183: 0 | D183: ='RACK, Accessori e Servizi'!H61 -> 0 | E183: ='RACK, Accessori e Servizi'!I61 -> 0 | F183: ='RACK, Accessori e Servizi'!J61 -> 0 | G183: ='RACK, Accessori e Servizi'!K61 -> 0 | I183: ='RACK, Accessori e Servizi'!L61 -> 0 | J183: ='RACK, Accessori e Servizi'!M61 -> 0 | K183: ='RACK, Accessori e Servizi'!N61 -> 0 | L183: ='RACK, Accessori e Servizi'!O61 -> 0 | M183: ='RACK, Accessori e Servizi'!P61 -> 0 | N183: ='RACK, Accessori e Servizi'!Q61 -> 0 | V183: 0
D184: ='RACK, Accessori e Servizi'!H62 -> 0 | E184: ='RACK, Accessori e Servizi'!I62 -> 0 | F184: ='RACK, Accessori e Servizi'!J62 -> 0 | G184: ='RACK, Accessori e Servizi'!K62 -> 0 | I184: ='RACK, Accessori e Servizi'!L62 -> 0 | J184: ='RACK, Accessori e Servizi'!M62 -> 0 | K184: ='RACK, Accessori e Servizi'!N62 -> 0 | L184: ='RACK, Accessori e Servizi'!O62 -> 0 | M184: ='RACK, Accessori e Servizi'!P62 -> 0 | N184: ='RACK, Accessori e Servizi'!Q62 -> 0 | V184: 0
B185: OpzUPS 3000VA | C185: 0 | D185: ='RACK, Accessori e Servizi'!H63 -> 0 | E185: ='RACK, Accessori e Servizi'!I63 -> 0 | F185: ='RACK, Accessori e Servizi'!J63 -> 0 | G185: ='RACK, Accessori e Servizi'!K63 -> 0 | I185: ='RACK, Accessori e Servizi'!L63 -> 0 | J185: ='RACK, Accessori e Servizi'!M63 -> 0 | K185: ='RACK, Accessori e Servizi'!N63 -> 0 | L185: ='RACK, Accessori e Servizi'!O63 -> 0 | M185: ='RACK, Accessori e Servizi'!P63 -> 0 | N185: ='RACK, Accessori e Servizi'!Q63 -> 0 | V185: 0
V186: 0
V187: 0
V188: 1
V189: 1
D190: =MID(C188,13,5) ->  | F190: =MID(E188,13,5) ->  | V190: 1
D191: AREA RISERVATA AL FORNITORE | V191: 1
V192: 1
V193: 1
C194: VERIFICA STAGING | O194: VERIFICA INSTALLATORE | V194: 1
V195: 1
V196: 1
V197: 1
V198: 1

Sheet Server10 Lotto2 DL560 2
A5: Server10 Lotto2 DL560 | H5: List Price *
H6: =F17*C16 -> 0
A11: Components: Server HP Proliant DL560 Gen9 (2CPU Intel® Xeon® E5-4620 v4, 64GB , 2xHDD 300GB 15K RPM SAS 12Gbps 2.5in)
A15: Proliant DL560 Gen9 | B15: Category: Server | F15: =5272.5 -> 5272.5
B16: Quantity: | F16: =SUM(F20:F119) -> 0
F17: =SUM(F15:F16) -> 5272.5
B19: Base
B20: HP DL560 Gen9 CTO Mod-X | C20: 1 | E20: 742657-B21
B22: Configurazione dello chassis
B23: HP DL560 Gen9 2SFF Media Bay Kit | C23: 1 | E23: 795090-B21
B25: Processore
B26: HPE DL560 Gen9 E5-4620v4 FIO Kit | C26: 1 | E26: 830267-L21
B27: HPE DL560 Gen9 E5-4620v4 Kit | C27: 1 | E27: 830267-B21
B29: Processore aggiuntivo
B30: No Additional Processor | C30: =VLOOKUP($B$30, CPU_A, 2, FALSE) -> 0 | D30: =VLOOKUP($B$30, CPU_A, 3, FALSE) ->  | E30: =VLOOKUP($B$30, CPU_A, 5, FALSE) ->  | F30: =VLOOKUP(B30, CPU_A, 12, FALSE) -> 0
B32: Mezz Board Option
B33: =VLOOKUP($B$30, CPU_A, 6, FALSE) ->  | C33: =VLOOKUP($B$30, CPU_A, 7, FALSE) ->  | E33: =VLOOKUP($B$30, CPU_A, 8, FALSE) -> 
B35: Memoria Totale in GB | D35: =IF(('Server10 Lotto2 DL560 2'!$D$12=0),"",'Server10 Lotto2 DL560 2'!#REF!) -> 
B36: 64
B38: Capacità di memoria
B39: =IF($B$30="No Additional Processor",VLOOKUP($B$36, MEM_A1, 8, FALSE),VLOOKUP($B$36, MEM_A2, 8, FALSE)) -> HPE 32GB 2Rx4 PC4-2400T-R Kit | C39: =IF($B$30="No Additional Processor",VLOOKUP($B$36, MEM_A1, 9, FALSE),VLOOKUP($B$36, MEM_A2, 9, FALSE)) -> 2 | E39: =IF($B$30="No Additional Processor",VLOOKUP($B$36, MEM_A1, 10, FALSE),VLOOKUP($B$36, MEM_A2, 10, FALSE)) -> 805351-B21
B41: =IF($B$30="No Additional Processor",VLOOKUP($B$36, MEM_A1, 2, FALSE),VLOOKUP($B$36, MEM_A2, 2, FALSE)) ->  | C41: =IF($B$30="No Additional Processor",VLOOKUP($B$36, MEM_A1, 3, FALSE),VLOOKUP($B$36, MEM_A2, 3, FALSE)) ->  | D41: =IF($B$30="No Additional Processor",VLOOKUP($B$36, MEM_A1, 4, FALSE),VLOOKUP($B$36, MEM_A2, 4, FALSE)) ->  | E41: =IF($B$30="No Additional Processor",VLOOKUP($B$36, MEM_A1, 6, FALSE),VLOOKUP($B$36, MEM_A2, 6, FALSE)) ->  | F41: =IF($B$30="No Additional Processor",VLOOKUP($B$36, MEM_A1, 7, FALSE),VLOOKUP($B$36, MEM_A2, 7, FALSE)) -> 
B43: =IF($B$30="No Additional Processor",VLOOKUP($B$36, MEM_A1, 11, FALSE),VLOOKUP($B$36, MEM_A2, 11, FALSE)) ->  | C43: =IF($B$30="No Additional Processor",VLOOKUP($B$36, MEM_A1, 12, FALSE),VLOOKUP($B$36, MEM_A2, 12, FALSE)) ->  | D43: =IF($B$30="No Additional Processor",VLOOKUP($B$36, MEM_A1, 13, FALSE),VLOOKUP($B$36, MEM_A2, 13, FALSE)) ->  | E43: =IF($B$30="No Additional Processor",VLOOKUP($B$36, MEM_A1, 15, FALSE),VLOOKUP($B$36, MEM_A2, 15, FALSE)) ->  | F43: =IF($B$30="No Additional Processor",VLOOKUP($B$36, MEM_A1, 16, FALSE),VLOOKUP($B$36, MEM_A2, 16, FALSE)) -> 
B45: Sistema operativo preinstallato
B46: No Operating System | C46: =VLOOKUP($B$46, OS_A, 2, FALSE) ->  | D46: =VLOOKUP($B$46, OS_A, 3, FALSE) ->  | E46: =VLOOKUP($B$46, OS_A, 5, FALSE) ->  | F46: =VLOOKUP($B$46, OS_A, 6, FALSE) -> 
C47: =IF($D$47="","",C46) ->  | D47: =IF(H47+C30=3,"10L1-WIN2",IF(H47+C30=4,"10L1-WINDC2","")) ->  | E47: =IF($D$47="","",E46) ->  | F47: =IF($D$47="","",F46) ->  | H47: =IF(D46="10L2-WIN1",1,IF(D46="10L2-WINDC1",2,0)) -> 0
B49: Client Access Licenses
B50: =VLOOKUP($B$46, OS_A, 7, FALSE) -> None | D50: =VLOOKUP($B$46, OS_A, 9, FALSE) ->  | E50: =VLOOKUP($B$46, OS_A, 11, FALSE) ->  | F50: =VLOOKUP($B$46, OS_A, 12, FALSE)*C50 -> 0
B52: =VLOOKUP($B$46, OS_A, 13, FALSE) -> None | D52: =VLOOKUP($B$46, OS_A, 15, FALSE) ->  | E52: =VLOOKUP($B$46, OS_A, 17, FALSE) ->  | F52: =VLOOKUP($B$46, OS_A, 18, FALSE)*C52 -> 0
B54: Controller RAID
B55: HP Smart Array P440ar/2G FIO Controller | C55: 1 | E55: 749974-B21
B57: Dischi rigidi
B58: HP 300GB 12G SAS 15K 2.5in SC ENT HDD | C58: 2 | E58: 759208-B21
B60: HP 300GB 12G SAS 15K 2.5in SC ENT HDD | D60: =VLOOKUP($B$60, HDD_A,3, FALSE) -> 10L2-HDD300GB | E60: =VLOOKUP($B$60, HDD_A,5, FALSE) -> 759208-B21 | F60: =VLOOKUP($B$60, HDD_A,6, FALSE)*C60 -> 0
B62: HP 1TB 6G SAS 7.2K 2.5in SC MDL HDD | D62: =VLOOKUP($B$62, HDD_A,3, FALSE) -> 10L2-HDD1TB | E62: =VLOOKUP($B$62, HDD_A,5, FALSE) -> 652749-B21 | F62: =VLOOKUP($B$62, HDD_A,6, FALSE)*C62 -> 0
B64: Configurazione RAID con HDD 300GB
B65: RAID 1 (2 HDDs) | C65: 1 | E65: =VLOOKUP($B$65, RAID_AA1, 2, FALSE) -> 
B66: Hot Spare for 300GB HDD | C66: No
B68: Configurazione RAID con HDD 1TB
C69: 1 | E69: =VLOOKUP($B$69, RAID_AA2, 2, FALSE) -> 
B70: Hot Spare for 1TB HDD | C70: No
B72: Alimentatore
B73: HP 1200W CS Plat PL HtPlg Pwr Supply Kit | C73: 2 | E73: 656364-B21
B75: PCIe Riser
B76: HP DL560 Gen9 Secondary 3 Slot Riser Kit | C76: 1 | E76: 793474-B21
B78: Management Hardware
B79: HP DL560 Gen9 Power Module w/ SID Kit | C79: 1 | E79: 795106-B21
B81: Scheda FlexibleLOM
B82: HP Ethernet 1GbE 4P 331FLR FIO Adptr | C82: 1 | E82: 684208-B21
B84: Additional Card for PCIe Slot 1
B85: None | C85: =VLOOKUP(B85, PCI_A1, 2, FALSE) ->  | D85: =VLOOKUP(B85, PCI_A1, 3, FALSE) ->  | E85: =VLOOKUP(B85, PCI_A1, 5, FALSE) ->  | F85: =VLOOKUP(B85, PCI_A1, 6, FALSE) -> 
B87: Additional Card for PCIe Slot 2
B88: None | C88: =VLOOKUP(B88, PCI_A1, 2, FALSE) ->  | D88: =VLOOKUP(B88, PCI_A1, 3, FALSE) ->  | E88: =VLOOKUP(B88, PCI_A1, 5, FALSE) ->  | F88: =VLOOKUP(B88, PCI_A1, 6, FALSE) -> 
B90: Additional Card for PCIe Slot 3
B91: None | C91: =VLOOKUP(B91, PCI_A1, 2, FALSE) ->  | D91: =VLOOKUP(B91, PCI_A1, 3, FALSE) ->  | E91: =VLOOKUP(B91, PCI_A1, 5, FALSE) ->  | F91: =VLOOKUP(B91, PCI_A1, 6, FALSE) -> 
B93: Additional Card for PCIe Slot 4
B94: None | C94: =VLOOKUP(B94, PCI_A1, 2, FALSE) ->  | D94: =VLOOKUP(B94, PCI_A1, 3, FALSE) ->  | E94: =VLOOKUP(B94, PCI_A1, 5, FALSE) ->  | F94: =VLOOKUP(B94, PCI_A1, 6, FALSE) -> 
B96: Additional Card for PCIe Slot 5
B97: None | C97: =VLOOKUP(B97, PCI_A1, 2, FALSE) ->  | D97: =VLOOKUP(B97, PCI_A1, 3, FALSE) ->  | E97: =VLOOKUP(B97, PCI_A1, 5, FALSE) ->  | F97: =VLOOKUP(B97, PCI_A1, 6, FALSE) -> 
B99: Additional Card for PCIe Slot 6
B100: None | C100: =VLOOKUP(B100, PCI_A1, 2, FALSE) ->  | D100: =VLOOKUP(B100, PCI_A1, 3, FALSE) ->  | E100: =VLOOKUP(B100, PCI_A1, 5, FALSE) ->  | F100: =VLOOKUP(B100, PCI_A1, 6, FALSE) -> 
B102: Additional Card for PCIe Slot 7
B103: None | C103: =VLOOKUP(B103, PCI_A1, 2, FALSE) ->  | D103: =VLOOKUP(B103, PCI_A1, 3, FALSE) ->  | E103: =VLOOKUP(B103, PCI_A1, 5, FALSE) ->  | F103: =VLOOKUP(B103, PCI_A1, 6, FALSE) -> 
B105: Bezel
B106: HP 2U Security Bezel Kit | C106: 1 | E106: 666988-B21
B108: Unità ottica interna
B109: HP 9.5mm SATA DVD-ROM Jb Gen9 Kit | C109: 1 | E109: 726536-B21
B111: Accessori per Server
B112: HP BLc 10G SFP+ SR Transceiver | C112: =(VLOOKUP(B85,PCI_A1,8,FALSE))+((VLOOKUP(B88,PCI_A1,8,FALSE)))+((VLOOKUP(B91,PCI_A1,8,FALSE)))+((VLOOKUP(B94,PCI_A1,8,FALSE)))+((VLOOKUP(B97,PCI_A1,8,FALSE)))+((VLOOKUP(B100,PCI_A1,8,FALSE)))+((VLOOKUP(B103,PCI_A1,8,FALSE))) -> 0 | E112: 455883-B21
B114: Estenzione di Garanzia
B115: None | C115: =VLOOKUP($B$115, SO_A1, 2, FALSE) ->  | D115: =VLOOKUP($B$115, SO_A1, 3, FALSE) ->  | E115: =VLOOKUP($B$115, SO_A1, 5, FALSE) ->  | F115: =VLOOKUP($B$115, SO_A1, 6, FALSE) -> 
B117: Protezione dei dati - Keep Your Hard Drive
B118: None | C118: =VLOOKUP($B$118, SO_AA2, 2, FALSE) ->  | D118: =VLOOKUP($B$118, SO_AA2, 3, FALSE) ->  | E118: =VLOOKUP($B$118, SO_AA2,5, FALSE) ->  | F118: =VLOOKUP($B$118, SO_AA2, 6, FALSE) -> 

Sheet Server10 Lotto2 DL560 3
A5: Server10 Lotto2 DL560 | H5: List Price *
H6: =F17*C16 -> 0
A11: Components: Server HP Proliant DL560 Gen9 (2CPU Intel® Xeon® E5-4620 v4, 64GB , 2xHDD 300GB 15K RPM SAS 12Gbps 2.5in)
A15: Proliant DL560 Gen9 | B15: Category: Server | F15: =5272.5 -> 5272.5
B16: Quantity: | F16: =SUM(F20:F119) -> 0
F17: =SUM(F15:F16) -> 5272.5
B19: Base
B20: HP DL560 Gen9 CTO Mod-X | C20: 1 | E20: 742657-B21
B22: Configurazione dello chassis
B23: HP DL560 Gen9 2SFF Media Bay Kit | C23: 1 | E23: 795090-B21
B25: Processore
B26: HPE DL560 Gen9 E5-4620v4 FIO Kit | C26: 1 | E26: 830267-L21
B27: HPE DL560 Gen9 E5-4620v4 Kit | C27: 1 | E27: 830267-B21
B29: Processore aggiuntivo
B30: No Additional Processor | C30: =VLOOKUP($B$30, CPU_A, 2, FALSE) -> 0 | D30: =VLOOKUP($B$30, CPU_A, 3, FALSE) ->  | E30: =VLOOKUP($B$30, CPU_A, 5, FALSE) ->  | F30: =VLOOKUP(B30, CPU_A, 12, FALSE) -> 0
B32: Mezz Board Option
B33: =VLOOKUP($B$30, CPU_A, 6, FALSE) ->  | C33: =VLOOKUP($B$30, CPU_A, 7, FALSE) ->  | E33: =VLOOKUP($B$30, CPU_A, 8, FALSE) -> 
B35: Memoria Totale in GB | D35: =IF(('Server10 Lotto2 DL560 3'!$D$12=0),"",'Server10 Lotto2 DL560 3'!#REF!) -> 
B36: 64
B38: Capacità di memoria
B39: =IF($B$30="No Additional Processor",VLOOKUP($B$36, MEM_A1, 8, FALSE),VLOOKUP($B$36, MEM_A2, 8, FALSE)) -> HPE 32GB 2Rx4 PC4-2400T-R Kit | C39: =IF($B$30="No Additional Processor",VLOOKUP($B$36, MEM_A1, 9, FALSE),VLOOKUP($B$36, MEM_A2, 9, FALSE)) -> 2 | E39: =IF($B$30="No Additional Processor",VLOOKUP($B$36, MEM_A1, 10, FALSE),VLOOKUP($B$36, MEM_A2, 10, FALSE)) -> 805351-B21
B41: =IF($B$30="No Additional Processor",VLOOKUP($B$36, MEM_A1, 2, FALSE),VLOOKUP($B$36, MEM_A2, 2, FALSE)) ->  | C41: =IF($B$30="No Additional Processor",VLOOKUP($B$36, MEM_A1, 3, FALSE),VLOOKUP($B$36, MEM_A2, 3, FALSE)) ->  | D41: =IF($B$30="No Additional Processor",VLOOKUP($B$36, MEM_A1, 4, FALSE),VLOOKUP($B$36, MEM_A2, 4, FALSE)) ->  | E41: =IF($B$30="No Additional Processor",VLOOKUP($B$36, MEM_A1, 6, FALSE),VLOOKUP($B$36, MEM_A2, 6, FALSE)) ->  | F41: =IF($B$30="No Additional Processor",VLOOKUP($B$36, MEM_A1, 7, FALSE),VLOOKUP($B$36, MEM_A2, 7, FALSE)) -> 
B43: =IF($B$30="No Additional Processor",VLOOKUP($B$36, MEM_A1, 11, FALSE),VLOOKUP($B$36, MEM_A2, 11, FALSE)) ->  | C43: =IF($B$30="No Additional Processor",VLOOKUP($B$36, MEM_A1, 12, FALSE),VLOOKUP($B$36, MEM_A2, 12, FALSE)) ->  | D43: =IF($B$30="No Additional Processor",VLOOKUP($B$36, MEM_A1, 13, FALSE),VLOOKUP($B$36, MEM_A2, 13, FALSE)) ->  | E43: =IF($B$30="No Additional Processor",VLOOKUP($B$36, MEM_A1, 15, FALSE),VLOOKUP($B$36, MEM_A2, 15, FALSE)) ->  | F43: =IF($B$30="No Additional Processor",VLOOKUP($B$36, MEM_A1, 16, FALSE),VLOOKUP($B$36, MEM_A2, 16, FALSE)) -> 
B45: Sistema operativo preinstallato
B46: No Operating System | C46: =VLOOKUP($B$46, OS_A, 2, FALSE) ->  | D46: =VLOOKUP($B$46, OS_A, 3, FALSE) ->  | E46: =VLOOKUP($B$46, OS_A, 5, FALSE) ->  | F46: =VLOOKUP($B$46, OS_A, 6, FALSE) -> 
C47: =IF($D$47="","",C46) ->  | D47: =IF(H47+C30=3,"10L1-WIN2",IF(H47+C30=4,"10L1-WINDC2","")) ->  | E47: =IF($D$47="","",E46) ->  | F47: =IF($D$47="","",F46) ->  | H47: =IF(D46="10L2-WIN1",1,IF(D46="10L2-WINDC1",2,0)) -> 0
B49: Client Access Licenses
B50: =VLOOKUP($B$46, OS_A, 7, FALSE) -> None | D50: =VLOOKUP($B$46, OS_A, 9, FALSE) ->  | E50: =VLOOKUP($B$46, OS_A, 11, FALSE) ->  | F50: =VLOOKUP($B$46, OS_A, 12, FALSE)*C50 -> 0
B52: =VLOOKUP($B$46, OS_A, 13, FALSE) -> None | D52: =VLOOKUP($B$46, OS_A, 15, FALSE) ->  | E52: =VLOOKUP($B$46, OS_A, 17, FALSE) ->  | F52: =VLOOKUP($B$46, OS_A, 18, FALSE)*C52 -> 0
B54: Controller RAID
B55: HP Smart Array P440ar/2G FIO Controller | C55: 1 | E55: 749974-B21
B57: Dischi rigidi
B58: HP 300GB 12G SAS 15K 2.5in SC ENT HDD | C58: 2 | E58: 759208-B21
B60: HP 300GB 12G SAS 15K 2.5in SC ENT HDD | D60: =VLOOKUP($B$60, HDD_A,3, FALSE) -> 10L2-HDD300GB | E60: =VLOOKUP($B$60, HDD_A,5, FALSE) -> 759208-B21 | F60: =VLOOKUP($B$60, HDD_A,6, FALSE)*C60 -> 0
B62: HP 1TB 6G SAS 7.2K 2.5in SC MDL HDD | D62: =VLOOKUP($B$62, HDD_A,3, FALSE) -> 10L2-HDD1TB | E62: =VLOOKUP($B$62, HDD_A,5, FALSE) -> 652749-B21 | F62: =VLOOKUP($B$62, HDD_A,6, FALSE)*C62 -> 0
B64: Configurazione RAID con HDD 300GB
B65: RAID 1 (2 HDDs) | C65: 1 | E65: =VLOOKUP($B$65, RAID_AAA1, 2, FALSE) -> 
B66: Hot Spare for 300GB HDD | C66: No
B68: Configurazione RAID con HDD 1TB
C69: 1 | E69: =VLOOKUP($B$69, RAID_AAA2, 2, FALSE) -> 
B70: Hot Spare for 1TB HDD | C70: No
B72: Alimentatore
B73: HP 1200W CS Plat PL HtPlg Pwr Supply Kit | C73: 2 | E73: 656364-B21
B75: PCIe Riser
B76: HP DL560 Gen9 Secondary 3 Slot Riser Kit | C76: 1 | E76: 793474-B21
B78: Management Hardware
B79: HP DL560 Gen9 Power Module w/ SID Kit | C79: 1 | E79: 795106-B21
B81: Scheda FlexibleLOM
B82: HP Ethernet 1GbE 4P 331FLR FIO Adptr | C82: 1 | E82: 684208-B21
B84: Additional Card for PCIe Slot 1
B85: None | C85: =VLOOKUP(B85, PCI_A1, 2, FALSE) ->  | D85: =VLOOKUP(B85, PCI_A1, 3, FALSE) ->  | E85: =VLOOKUP(B85, PCI_A1, 5, FALSE) ->  | F85: =VLOOKUP(B85, PCI_A1, 6, FALSE) -> 
B87: Additional Card for PCIe Slot 2
B88: None | C88: =VLOOKUP(B88, PCI_A1, 2, FALSE) ->  | D88: =VLOOKUP(B88, PCI_A1, 3, FALSE) ->  | E88: =VLOOKUP(B88, PCI_A1, 5, FALSE) ->  | F88: =VLOOKUP(B88, PCI_A1, 6, FALSE) -> 
B90: Additional Card for PCIe Slot 3
B91: None | C91: =VLOOKUP(B91, PCI_A1, 2, FALSE) ->  | D91: =VLOOKUP(B91, PCI_A1, 3, FALSE) ->  | E91: =VLOOKUP(B91, PCI_A1, 5, FALSE) ->  | F91: =VLOOKUP(B91, PCI_A1, 6, FALSE) -> 
B93: Additional Card for PCIe Slot 4
B94: None | C94: =VLOOKUP(B94, PCI_A1, 2, FALSE) ->  | D94: =VLOOKUP(B94, PCI_A1, 3, FALSE) ->  | E94: =VLOOKUP(B94, PCI_A1, 5, FALSE) ->  | F94: =VLOOKUP(B94, PCI_A1, 6, FALSE) -> 
B96: Additional Card for PCIe Slot 5
B97: None | C97: =VLOOKUP(B97, PCI_A1, 2, FALSE) ->  | D97: =VLOOKUP(B97, PCI_A1, 3, FALSE) ->  | E97: =VLOOKUP(B97, PCI_A1, 5, FALSE) ->  | F97: =VLOOKUP(B97, PCI_A1, 6, FALSE) -> 
B99: Additional Card for PCIe Slot 6
B100: None | C100: =VLOOKUP(B100, PCI_A1, 2, FALSE) ->  | D100: =VLOOKUP(B100, PCI_A1, 3, FALSE) ->  | E100: =VLOOKUP(B100, PCI_A1, 5, FALSE) ->  | F100: =VLOOKUP(B100, PCI_A1, 6, FALSE) -> 
B102: Additional Card for PCIe Slot 7
B103: None | C103: =VLOOKUP(B103, PCI_A1, 2, FALSE) ->  | D103: =VLOOKUP(B103, PCI_A1, 3, FALSE) ->  | E103: =VLOOKUP(B103, PCI_A1, 5, FALSE) ->  | F103: =VLOOKUP(B103, PCI_A1, 6, FALSE) -> 
B105: Bezel
B106: HP 2U Security Bezel Kit | C106: 1 | E106: 666988-B21
B108: Unità ottica interna
B109: HP 9.5mm SATA DVD-ROM Jb Gen9 Kit | C109: 1 | E109: 726536-B21
B111: Accessori per Server
B112: HP BLc 10G SFP+ SR Transceiver | C112: =(VLOOKUP(B85,PCI_A1,8,FALSE))+((VLOOKUP(B88,PCI_A1,8,FALSE)))+((VLOOKUP(B91,PCI_A1,8,FALSE)))+((VLOOKUP(B94,PCI_A1,8,FALSE)))+((VLOOKUP(B97,PCI_A1,8,FALSE)))+((VLOOKUP(B100,PCI_A1,8,FALSE)))+((VLOOKUP(B103,PCI_A1,8,FALSE))) -> 0 | E112: 455883-B21
B114: Estenzione di Garanzia
B115: None | C115: =VLOOKUP($B$115, SO_A1, 2, FALSE) ->  | D115: =VLOOKUP($B$115, SO_A1, 3, FALSE) ->  | E115: =VLOOKUP($B$115, SO_A1, 5, FALSE) ->  | F115: =VLOOKUP($B$115, SO_A1, 6, FALSE) -> 
B117: Protezione dei dati - Keep Your Hard Drive
B118: None | C118: =VLOOKUP($B$118, SO_AAA2, 2, FALSE) ->  | D118: =VLOOKUP($B$118, SO_AAA2, 3, FALSE) ->  | E118: =VLOOKUP($B$118, SO_AAA2,5, FALSE) ->  | F118: =VLOOKUP($B$118, SO_AAA2, 6, FALSE) -> 

Sheet Server10 Lotto2 DL580 2
A5: Server10 Lotto2 DL580 | H5: List Price *
H6: =F17*C16 -> 0
A11: Components: Server HP Proliant DL580 Gen9 (2CPU Intel® Xeon® E7-4830 v4, 64GB , 2xHDD 300GB 15K RPM SAS 12Gbps 2.5in)
A15: Proliant DL580 Gen9 | B15: Category: Server | F15: =7444.5 -> 7444.5
B16: Quantity: | F16: =SUM(F20:F119) -> 0
F17: =SUM(F15:F16) -> 7444.5
B19: Base
B20: HP DL580 Gen9 CTO Svr | C20: 1 | E20: 793161-B21
B22: Configurazione dello chassis
B23: HP DL580 5 SFF Drive Backplane Kit | C23: 1 | E23: 739405-B21
B25: Processore
B26: HP DL580 Gen9 E7-4850 v3 FIO 1P Kit | C26: 1 | E26: 788325-L21
B27: HP DL580 Gen9 E7-4850 v3 1P Kit | C27: 1 | E27: 788325-B21
B29: Processore aggiuntivo
B30: No Additional Processor | C30: =VLOOKUP($B$30, CPU_B, 2, FALSE) -> 0 | D30: =VLOOKUP($B$30, CPU_B, 3, FALSE) ->  | E30: =VLOOKUP($B$30, CPU_B, 5, FALSE) ->  | F30: =VLOOKUP(B30, CPU_B, 12, FALSE) -> 
B32: Memory Cartridge
B33: =IF($B$30="No Additional Processor",VLOOKUP($B$36, MEM_B1, 17, FALSE),VLOOKUP($B$36, MEM_B2, 17, FALSE)) -> HP DL580 Gen9 12 DIMMs Memory Cartridge | C33: =IF($B$30="No Additional Processor",VLOOKUP($B$36, MEM_B1, 19, FALSE),VLOOKUP($B$36, MEM_B2, 19, FALSE)) -> 2 | E33: =IF($B$30="No Additional Processor",VLOOKUP($B$36, MEM_B1, 18, FALSE),VLOOKUP($B$36, MEM_B2, 18, FALSE)) -> 788360-B21
B35: Memoria Totale in GB | D35: =IF(('Server10 Lotto2 DL580 2'!$D$12=0),"",'Server10 Lotto2 DL580 2'!#REF!) -> 
B36: 64
B38: Capacità di memoria
B39: =IF($B$30="No Additional Processor",VLOOKUP($B$36, MEM_B1, 8, FALSE),VLOOKUP($B$36, MEM_B2, 8, FALSE)) -> HPE 16GB 2Rx4 PC4-2400T-R Kit | C39: =IF($B$30="No Additional Processor",VLOOKUP($B$36, MEM_B1, 9, FALSE),VLOOKUP($B$36, MEM_B2, 9, FALSE)) -> 4 | E39: =IF($B$30="No Additional Processor",VLOOKUP($B$36, MEM_B1, 10, FALSE),VLOOKUP($B$36, MEM_B2, 10, FALSE)) -> 836220-B21
B41: =IF($B$30="No Additional Processor",VLOOKUP($B$36, MEM_B1, 2, FALSE),VLOOKUP($B$36, MEM_B2, 2, FALSE)) ->  | C41: =IF($B$30="No Additional Processor",VLOOKUP($B$36, MEM_B1, 3, FALSE),VLOOKUP($B$36, MEM_B2, 3, FALSE)) ->  | D41: =IF($B$30="No Additional Processor",VLOOKUP($B$36, MEM_B1, 4, FALSE),VLOOKUP($B$36, MEM_B2, 4, FALSE)) ->  | E41: =IF($B$30="No Additional Processor",VLOOKUP($B$36, MEM_B1, 6, FALSE),VLOOKUP($B$36, MEM_B2, 6, FALSE)) ->  | F41: =IF($B$30="No Additional Processor",VLOOKUP($B$36, MEM_B1, 7, FALSE),VLOOKUP($B$36, MEM_B2, 7, FALSE)) -> 
B43: =IF($B$30="No Additional Processor",VLOOKUP($B$36, MEM_B1, 11, FALSE),VLOOKUP($B$36, MEM_B2, 11, FALSE)) ->  | C43: =IF($B$30="No Additional Processor",VLOOKUP($B$36, MEM_B1, 12, FALSE),VLOOKUP($B$36, MEM_B2, 12, FALSE)) ->  | D43: =IF($B$30="No Additional Processor",VLOOKUP($B$36, MEM_B1, 13, FALSE),VLOOKUP($B$36, MEM_B2, 13, FALSE)) ->  | E43: =IF($B$30="No Additional Processor",VLOOKUP($B$36, MEM_B1, 15, FALSE),VLOOKUP($B$36, MEM_B2, 15, FALSE)) ->  | F43: =IF($B$30="No Additional Processor",VLOOKUP($B$36, MEM_B1, 16, FALSE),VLOOKUP($B$36, MEM_B2, 16, FALSE)) -> 
B45: Sistema operativo preinstallato
B46: No Operating System | C46: =VLOOKUP($B$46, OS_B, 2, FALSE) ->  | D46: =VLOOKUP($B$46, OS_B, 3, FALSE) ->  | E46: =VLOOKUP($B$46, OS_B, 5, FALSE) ->  | F46: =VLOOKUP($B$46, OS_B, 6, FALSE) -> 
C47: =IF($D$47="","",C46) ->  | D47: =IF(H47+C30=3,"10L2-WIN2",IF(H47+C30=4,"10L2-WINDC2","")) ->  | E47: =IF($D$47="","",E46) ->  | F47: =IF($D$47="","",F46) ->  | H47: =IF(D46="10L2-WIN1",1,IF(D46="10L2-WINDC1",2,0)) -> 0
B49: Client Access Licenses
B50: =VLOOKUP($B$46, OS_B, 7, FALSE) -> None | D50: =VLOOKUP($B$46, OS_B, 9, FALSE) ->  | E50: =VLOOKUP($B$46, OS_B, 11, FALSE) ->  | F50: =VLOOKUP($B$46, OS_B, 12, FALSE)*C50 -> 0
B52: =VLOOKUP($B$46, OS_B, 13, FALSE) -> None | D52: =VLOOKUP($B$46, OS_B, 15, FALSE) ->  | E52: =VLOOKUP($B$46, OS_B, 17, FALSE) ->  | F52: =VLOOKUP($B$46, OS_B, 18, FALSE)*C52 -> 0
B54: Controller RAID
B55: HP Smart Array 2GB 24in FIO Flashback Write Cache | C55: 1 | E55: 758836-B21
B57: Dischi rigidi
B58: HP 300GB 12G SAS 15K 2.5in SC ENT HDD | C58: 2 | E58: 759208-B21
B60: HP 300GB 12G SAS 15K 2.5in SC ENT HDD | D60: =VLOOKUP($B$60, HDD_A,3, FALSE) -> 10L2-HDD300GB | E60: =VLOOKUP($B$60, HDD_A,5, FALSE) -> 759208-B21 | F60: =VLOOKUP($B$60, HDD_A,6, FALSE)*C60 -> 0
B62: HP 1TB 6G SAS 7.2K 2.5in SC MDL HDD | D62: =VLOOKUP($B$62, HDD_A,3, FALSE) -> 10L2-HDD1TB | E62: =VLOOKUP($B$62, HDD_A,5, FALSE) -> 652749-B21 | F62: =VLOOKUP($B$62, HDD_A,6, FALSE)*C62 -> 0
B64: Configurazione RAID con HDD 300GB
B65: RAID 1 (2 HDDs) | C65: 1 | E65: =VLOOKUP($B$65, RAID_BB1, 2, FALSE) -> [780-BBJK]
B66: Hot Spare for 300GB HDD | C66: No
B68: Configurazione RAID con HDD 1TB
C69: 1 | E69: =VLOOKUP($B$69, RAID_BB2, 2, FALSE) -> 
B70: Hot Spare for 1TB HDD | C70: No
B72: Alimentatore
B73: HP 1200W CS Plat PL HtPlg Pwr Supply Kit | C73: 4 | E73: 656364-B21
B75: Scheda FlexibleLOM
B76: HP Ethernet 1GbE 4P 331FLR FIO Adptr | C76: 1 | E76: 684208-B21
B78: Additional Card for PCIe Slot 9 (CPU1 / CPU2)
B79: None | C79: =VLOOKUP($B$79, PCI_B1, 2, FALSE) ->  | D79: =VLOOKUP($B$79, PCI_B1, 3, FALSE) ->  | E79: =VLOOKUP($B$79, PCI_B1, 5, FALSE) ->  | F79: =VLOOKUP($B$79, PCI_B1, 6, FALSE) -> 
B81: Additional Card for PCIe Slot 8 (CPU1 / CPU2)
B82: None | C82: =VLOOKUP($B$82, PCI_B2, 2, FALSE) ->  | D82: =VLOOKUP($B$82, PCI_B2, 3, FALSE) ->  | E82: =VLOOKUP($B$82, PCI_B2, 5, FALSE) ->  | F82: =VLOOKUP($B$82, PCI_B2, 6, FALSE) -> 
B84: Additional Card for PCIe Slot 7 (CPU1 / CPU2)
B85: None | C85: =VLOOKUP($B$85, PCI_B3, 2, FALSE) ->  | D85: =VLOOKUP($B$85, PCI_B3, 3, FALSE) ->  | E85: =VLOOKUP($B$85, PCI_B3, 5, FALSE) ->  | F85: =VLOOKUP($B$85, PCI_B3, 6, FALSE) -> 
B87: Additional Card for PCIe Slot 6 (CPU1 / CPU2)
B88: None | C88: =VLOOKUP($B$88, PCI_B4, 2, FALSE) ->  | D88: =VLOOKUP($B$88, PCI_B4, 3, FALSE) ->  | E88: =VLOOKUP($B$88, PCI_B4, 5, FALSE) ->  | F88: =VLOOKUP($B$88, PCI_B4, 6, FALSE) -> 
B90: Additional Card for PCIe Slot 5 (CPU3 / CPU4)
B91: None | C91: =IF(B91="Aggiungere Coppia di Processori","",(VLOOKUP(B91,PCI_B5, 2, FALSE))) ->  | D91: =IF(B91="Aggiungere Coppia di Processori","",(VLOOKUP(B91,PCI_B5, 3, FALSE))) ->  | E91: =IF(B91="Aggiungere Coppia di Processori","",(VLOOKUP(B91,PCI_B5, 5, FALSE))) ->  | F91: =IF(B91="Aggiungere Coppia di Processori","",(VLOOKUP(B91,PCI_B5, 2, FALSE))) -> 
B93: Additional Card for PCIe Slot 4 (CPU3 / CPU4)
B94: None | C94: =IF(B94="Aggiungere Coppia di Processori","",(VLOOKUP(B94,PCI_B6, 2, FALSE))) ->  | D94: =IF(B94="Aggiungere Coppia di Processori","",(VLOOKUP(B94,PCI_B6, 3, FALSE))) ->  | E94: =IF(B94="Aggiungere Coppia di Processori","",(VLOOKUP(B94,PCI_B6, 5, FALSE))) ->  | F94: =IF(B94="Aggiungere Coppia di Processori","",(VLOOKUP(B94,PCI_B6, 2, FALSE))) -> 
B96: Additional Card for PCIe Slot 3 (CPU3 / CPU4)
B97: None | C97: =IF(B97="Aggiungere Coppia di Processori","",(VLOOKUP(B97,PCI_B7, 2, FALSE))) ->  | D97: =IF(B97="Aggiungere Coppia di Processori","",(VLOOKUP(B97,PCI_B7, 3, FALSE))) ->  | E97: =IF(B97="Aggiungere Coppia di Processori","",(VLOOKUP(B97,PCI_B7, 5, FALSE))) ->  | F97: =IF(B97="Aggiungere Coppia di Processori","",(VLOOKUP(B97,PCI_B7, 2, FALSE))) -> 
B99: Additional Card for PCIe Slot 2 (CPU3 / CPU4)
B100: None | C100: =IF(B100="Aggiungere Coppia di Processori","",(VLOOKUP(B100,PCI_B8, 2, FALSE))) ->  | D100: =IF(B100="Aggiungere Coppia di Processori","",(VLOOKUP(B100,PCI_B8, 3, FALSE))) ->  | E100: =IF(B100="Aggiungere Coppia di Processori","",(VLOOKUP(B100,PCI_B8, 5, FALSE))) ->  | F100: =IF(B100="Aggiungere Coppia di Processori","",(VLOOKUP(B100,PCI_B8, 2, FALSE))) -> 
B102: Additional Card for PCIe Slot 1 (CPU3 / CPU4)
B103: None | C103: =IF(B103="Aggiungere Coppia di Processori","",(VLOOKUP(B103,PCI_B9, 2, FALSE))) ->  | D103: =IF(B103="Aggiungere Coppia di Processori","",(VLOOKUP(B103,PCI_B9, 3, FALSE))) ->  | E103: =IF(B103="Aggiungere Coppia di Processori","",(VLOOKUP(B103,PCI_B9, 5, FALSE))) ->  | F103: =IF(B103="Aggiungere Coppia di Processori","",(VLOOKUP(B103,PCI_B9, 2, FALSE))) -> 
B105: Bezel
B106: HP 4U Security Bezel Kit | C106: 1 | E106: 741213-B21
B108: Accessori per Server
B109: HP BLc 10G SFP+ SR Transceiver | C109: =(VLOOKUP(B79,PCI_A1,8,FALSE))+((VLOOKUP(B82,PCI_A1,8,FALSE)))+((VLOOKUP(B85,PCI_A1,8,FALSE)))+((VLOOKUP(B88,PCI_A1,8,FALSE)))+((VLOOKUP(B91,PCI_A1,8,FALSE)))+((VLOOKUP(B94,PCI_A1,8,FALSE)))+((VLOOKUP(B97,PCI_A1,8,FALSE)))+((VLOOKUP(B100,PCI_A1,8,FALSE)))+((VLOOKUP(B103,PCI_A1,8,FALSE))) -> 0 | E109: 455883-B21
B111: Unità ottica
B112: HP Mobile USB DVDRW Drive | C112: 1 | E112: 701498-B21
B114: Estenzione di Garanzia
B115: None | C115: =VLOOKUP($B$115, SO_B1,2, FALSE) ->  | D115: =VLOOKUP($B$115, SO_B1, 3, FALSE) ->  | E115: =VLOOKUP($B$115, SO_B1, 5, FALSE) ->  | F115: =VLOOKUP($B$115, SO_B1, 6, FALSE) -> 
B117: Protezione dei dati - Keep Your Hard Drive
B118: None | C118: =VLOOKUP($B$118, SO_BB2, 2, FALSE) ->  | D118: =VLOOKUP($B$118, SO_BB2, 3, FALSE) ->  | E118: =VLOOKUP($B$118, SO_BB2,5, FALSE) ->  | F118: =VLOOKUP($B$118, SO_BB2, 6, FALSE) -> 

Sheet Server10 Lotto2 DL580 3
A5: Server10 Lotto2 DL580 | H5: List Price *
H6: =F17*C16 -> 0
A11: Components: Server HP Proliant DL580 Gen9 (2CPU Intel® Xeon® E7-4830 v4, 64GB , 2xHDD 300GB 15K RPM SAS 12Gbps 2.5in)
A15: Proliant DL580 Gen9 | B15: Category: Server | F15: =7444.5 -> 7444.5
B16: Quantity: | F16: =SUM(F20:F119) -> 0
F17: =SUM(F15:F16) -> 7444.5
B19: Base
B20: HP DL580 Gen9 CTO Svr | C20: 1 | E20: 793161-B21
B22: Configurazione dello chassis
B23: HP DL580 5 SFF Drive Backplane Kit | C23: 1 | E23: 739405-B21
B25: Processore
B26: HP DL580 Gen9 E7-4850 v3 FIO 1P Kit | C26: 1 | E26: 788325-L21
B27: HP DL580 Gen9 E7-4850 v3 1P Kit | C27: 1 | E27: 788325-B21
B29: Processore aggiuntivo
B30: No Additional Processor | C30: =VLOOKUP($B$30, CPU_B, 2, FALSE) -> 0 | D30: =VLOOKUP($B$30, CPU_B, 3, FALSE) ->  | E30: =VLOOKUP($B$30, CPU_B, 5, FALSE) ->  | F30: =VLOOKUP(B30, CPU_B, 12, FALSE) -> 
B32: Memory Cartridge
B33: =IF($B$30="No Additional Processor",VLOOKUP($B$36, MEM_B1, 17, FALSE),VLOOKUP($B$36, MEM_B2, 17, FALSE)) -> HP DL580 Gen9 12 DIMMs Memory Cartridge | C33: =IF($B$30="No Additional Processor",VLOOKUP($B$36, MEM_B1, 19, FALSE),VLOOKUP($B$36, MEM_B2, 19, FALSE)) -> 2 | E33: =IF($B$30="No Additional Processor",VLOOKUP($B$36, MEM_B1, 18, FALSE),VLOOKUP($B$36, MEM_B2, 18, FALSE)) -> 788360-B21
B35: Memoria Totale in GB | D35: =IF(('Server10 Lotto2 DL580 3'!$D$12=0),"",'Server10 Lotto2 DL580 3'!#REF!) -> 
B36: 64
B38: Capacità di memoria
B39: =IF($B$30="No Additional Processor",VLOOKUP($B$36, MEM_B1, 8, FALSE),VLOOKUP($B$36, MEM_B2, 8, FALSE)) -> HPE 16GB 2Rx4 PC4-2400T-R Kit | C39: =IF($B$30="No Additional Processor",VLOOKUP($B$36, MEM_B1, 9, FALSE),VLOOKUP($B$36, MEM_B2, 9, FALSE)) -> 4 | E39: =IF($B$30="No Additional Processor",VLOOKUP($B$36, MEM_B1, 10, FALSE),VLOOKUP($B$36, MEM_B2, 10, FALSE)) -> 836220-B21
B41: =IF($B$30="No Additional Processor",VLOOKUP($B$36, MEM_B1, 2, FALSE),VLOOKUP($B$36, MEM_B2, 2, FALSE)) ->  | C41: =IF($B$30="No Additional Processor",VLOOKUP($B$36, MEM_B1, 3, FALSE),VLOOKUP($B$36, MEM_B2, 3, FALSE)) ->  | D41: =IF($B$30="No Additional Processor",VLOOKUP($B$36, MEM_B1, 4, FALSE),VLOOKUP($B$36, MEM_B2, 4, FALSE)) ->  | E41: =IF($B$30="No Additional Processor",VLOOKUP($B$36, MEM_B1, 6, FALSE),VLOOKUP($B$36, MEM_B2, 6, FALSE)) ->  | F41: =IF($B$30="No Additional Processor",VLOOKUP($B$36, MEM_B1, 7, FALSE),VLOOKUP($B$36, MEM_B2, 7, FALSE)) -> 
B43: =IF($B$30="No Additional Processor",VLOOKUP($B$36, MEM_B1, 11, FALSE),VLOOKUP($B$36, MEM_B2, 11, FALSE)) ->  | C43: =IF($B$30="No Additional Processor",VLOOKUP($B$36, MEM_B1, 12, FALSE),VLOOKUP($B$36, MEM_B2, 12, FALSE)) ->  | D43: =IF($B$30="No Additional Processor",VLOOKUP($B$36, MEM_B1, 13, FALSE),VLOOKUP($B$36, MEM_B2, 13, FALSE)) ->  | E43: =IF($B$30="No Additional Processor",VLOOKUP($B$36, MEM_B1, 15, FALSE),VLOOKUP($B$36, MEM_B2, 15, FALSE)) ->  | F43: =IF($B$30="No Additional Processor",VLOOKUP($B$36, MEM_B1, 16, FALSE),VLOOKUP($B$36, MEM_B2, 16, FALSE)) -> 
B45: Sistema operativo preinstallato
B46: No Operating System | C46: =VLOOKUP($B$46, OS_B, 2, FALSE) ->  | D46: =VLOOKUP($B$46, OS_B, 3, FALSE) ->  | E46: =VLOOKUP($B$46, OS_B, 5, FALSE) ->  | F46: =VLOOKUP($B$46, OS_B, 6, FALSE) -> 
C47: =IF($D$41="","",C46) ->  | D47: =IF(H47+C30=3,"10L2-WIN2",IF(H47+C30=4,"10L2-WINDC2","")) ->  | E47: =IF($D$41="","",E46) ->  | F47: =IF($D$41="","",F46) ->  | H47: =IF(D46="10L2-WIN1",1,IF(D46="10L2-WINDC1",2,0)) -> 0
B49: Client Access Licenses
B50: =VLOOKUP($B$46, OS_B, 7, FALSE) -> None | D50: =VLOOKUP($B$46, OS_B, 9, FALSE) ->  | E50: =VLOOKUP($B$46, OS_B, 11, FALSE) ->  | F50: =VLOOKUP($B$46, OS_B, 12, FALSE)*C50 -> 0
B52: =VLOOKUP($B$46, OS_B, 13, FALSE) -> None | D52: =VLOOKUP($B$46, OS_B, 15, FALSE) ->  | E52: =VLOOKUP($B$46, OS_B, 17, FALSE) ->  | F52: =VLOOKUP($B$46, OS_B, 18, FALSE)*C52 -> 0
B54: Controller RAID
B55: HP Smart Array 2GB 24in FIO Flashback Write Cache | C55: 1 | E55: 758836-B21
B57: Dischi rigidi
B58: HP 300GB 12G SAS 15K 2.5in SC ENT HDD | C58: 2 | E58: 759208-B21
B60: HP 300GB 12G SAS 15K 2.5in SC ENT HDD | C60: 0 | D60: =VLOOKUP($B$60, HDD_A,3, FALSE) -> 10L2-HDD300GB | E60: =VLOOKUP($B$60, HDD_A,5, FALSE) -> 759208-B21 | F60: =VLOOKUP($B$60, HDD_A,6, FALSE)*C60 -> 0
B62: HP 1TB 6G SAS 7.2K 2.5in SC MDL HDD | C62: 0 | D62: =VLOOKUP($B$62, HDD_A,3, FALSE) -> 10L2-HDD1TB | E62: =VLOOKUP($B$62, HDD_A,5, FALSE) -> 652749-B21 | F62: =VLOOKUP($B$62, HDD_A,6, FALSE)*C62 -> 0
B64: Configurazione RAID con HDD 300GB
B65: RAID 1 (2 HDDs) | C65: 1 | E65: =VLOOKUP($B$65, RAID_BBB1, 2, FALSE) -> [780-BBJK]
B66: Hot Spare for 300GB HDD | C66: No
B68: Configurazione RAID con HDD 1TB
C69: 1 | E69: =VLOOKUP($B$69, RAID_BBB2, 2, FALSE) -> 
B70: Hot Spare for 1TB HDD | C70: No
B72: Alimentatore
B73: HP 1200W CS Plat PL HtPlg Pwr Supply Kit | C73: 4 | E73: 656364-B21
B75: Scheda FlexibleLOM
B76: HP Ethernet 1GbE 4P 331FLR FIO Adptr | C76: 1 | E76: 684208-B21
B78: Additional Card for PCIe Slot 9 (CPU1 / CPU2)
B79: None | C79: =VLOOKUP($B$79, PCI_B1, 2, FALSE) ->  | D79: =VLOOKUP($B$79, PCI_B1, 3, FALSE) ->  | E79: =VLOOKUP($B$79, PCI_B1, 5, FALSE) ->  | F79: =VLOOKUP($B$79, PCI_B1, 6, FALSE) -> 
B81: Additional Card for PCIe Slot 8 (CPU1 / CPU2)
B82: None | C82: =VLOOKUP($B$82, PCI_B2, 2, FALSE) ->  | D82: =VLOOKUP($B$82, PCI_B2, 3, FALSE) ->  | E82: =VLOOKUP($B$82, PCI_B2, 5, FALSE) ->  | F82: =VLOOKUP($B$82, PCI_B2, 6, FALSE) -> 
B84: Additional Card for PCIe Slot 7 (CPU1 / CPU2)
B85: None | C85: =VLOOKUP($B$85, PCI_B3, 2, FALSE) ->  | D85: =VLOOKUP($B$85, PCI_B3, 3, FALSE) ->  | E85: =VLOOKUP($B$85, PCI_B3, 5, FALSE) ->  | F85: =VLOOKUP($B$85, PCI_B3, 6, FALSE) -> 
B87: Additional Card for PCIe Slot 6 (CPU1 / CPU2)
B88: None | C88: =VLOOKUP($B$88, PCI_B4, 2, FALSE) ->  | D88: =VLOOKUP($B$88, PCI_B4, 3, FALSE) ->  | E88: =VLOOKUP($B$88, PCI_B4, 5, FALSE) ->  | F88: =VLOOKUP($B$88, PCI_B4, 6, FALSE) -> 
B90: Additional Card for PCIe Slot 5 (CPU3 / CPU4)
B91: None | C91: =IF(B91="Aggiungere Coppia di Processori","",(VLOOKUP(B91,PCI_B5, 2, FALSE))) ->  | D91: =IF(B91="Aggiungere Coppia di Processori","",(VLOOKUP(B91,PCI_B5, 3, FALSE))) ->  | E91: =IF(B91="Aggiungere Coppia di Processori","",(VLOOKUP(B91,PCI_B5, 5, FALSE))) ->  | F91: =IF(B91="Aggiungere Coppia di Processori","",(VLOOKUP(B91,PCI_B5, 2, FALSE))) -> 
B93: Additional Card for PCIe Slot 4 (CPU3 / CPU4)
B94: None | C94: =IF(B94="Aggiungere Coppia di Processori","",(VLOOKUP(B94,PCI_B6, 2, FALSE))) ->  | D94: =IF(B94="Aggiungere Coppia di Processori","",(VLOOKUP(B94,PCI_B6, 3, FALSE))) ->  | E94: =IF(B94="Aggiungere Coppia di Processori","",(VLOOKUP(B94,PCI_B6, 5, FALSE))) ->  | F94: =IF(B94="Aggiungere Coppia di Processori","",(VLOOKUP(B94,PCI_B6, 2, FALSE))) -> 
B96: Additional Card for PCIe Slot 3 (CPU3 / CPU4)
B97: None | C97: =IF(B97="Aggiungere Coppia di Processori","",(VLOOKUP(B97,PCI_B7, 2, FALSE))) ->  | D97: =IF(B97="Aggiungere Coppia di Processori","",(VLOOKUP(B97,PCI_B7, 3, FALSE))) ->  | E97: =IF(B97="Aggiungere Coppia di Processori","",(VLOOKUP(B97,PCI_B7, 5, FALSE))) ->  | F97: =IF(B97="Aggiungere Coppia di Processori","",(VLOOKUP(B97,PCI_B7, 2, FALSE))) -> 
B99: Additional Card for PCIe Slot 2 (CPU3 / CPU4)
B100: None | C100: =IF(B100="Aggiungere Coppia di Processori","",(VLOOKUP(B100,PCI_B8, 2, FALSE))) ->  | D100: =IF(B100="Aggiungere Coppia di Processori","",(VLOOKUP(B100,PCI_B8, 3, FALSE))) ->  | E100: =IF(B100="Aggiungere Coppia di Processori","",(VLOOKUP(B100,PCI_B8, 5, FALSE))) ->  | F100: =IF(B100="Aggiungere Coppia di Processori","",(VLOOKUP(B100,PCI_B8, 2, FALSE))) -> 
B102: Additional Card for PCIe Slot 1 (CPU3 / CPU4)
B103: None | C103: =IF(B103="Aggiungere Coppia di Processori","",(VLOOKUP(B103,PCI_B9, 2, FALSE))) ->  | D103: =IF(B103="Aggiungere Coppia di Processori","",(VLOOKUP(B103,PCI_B9, 3, FALSE))) ->  | E103: =IF(B103="Aggiungere Coppia di Processori","",(VLOOKUP(B103,PCI_B9, 5, FALSE))) ->  | F103: =IF(B103="Aggiungere Coppia di Processori","",(VLOOKUP(B103,PCI_B9, 2, FALSE))) -> 
B105: Bezel
B106: HP 4U Security Bezel Kit | C106: 1 | E106: 741213-B21
B108: Accessori per Server
B109: HP BLc 10G SFP+ SR Transceiver | C109: =(VLOOKUP(B79,PCI_A1,8,FALSE))+((VLOOKUP(B82,PCI_A1,8,FALSE)))+((VLOOKUP(B85,PCI_A1,8,FALSE)))+((VLOOKUP(B88,PCI_A1,8,FALSE)))+((VLOOKUP(B91,PCI_A1,8,FALSE)))+((VLOOKUP(B94,PCI_A1,8,FALSE)))+((VLOOKUP(B97,PCI_A1,8,FALSE)))+((VLOOKUP(B100,PCI_A1,8,FALSE)))+((VLOOKUP(B103,PCI_A1,8,FALSE))) -> 0 | E109: 455883-B21
B111: Unità ottica
B112: HP Mobile USB DVDRW Drive | C112: 1 | E112: 701498-B21
B114: Estenzione di Garanzia
B115: None | C115: =VLOOKUP($B$115, SO_B1,2, FALSE) ->  | D115: =VLOOKUP($B$115, SO_B1, 3, FALSE) ->  | E115: =VLOOKUP($B$115, SO_B1, 5, FALSE) ->  | F115: =VLOOKUP($B$115, SO_B1, 6, FALSE) -> 
B117: Protezione dei dati - Keep Your Hard Drive
B118: None | C118: =VLOOKUP($B$118, SO_BBB2, 2, FALSE) ->  | D118: =VLOOKUP($B$118, SO_BBB2, 3, FALSE) ->  | E118: =VLOOKUP($B$118, SO_BBB2,5, FALSE) ->  | F118: =VLOOKUP($B$118, SO_BBB2, 6, FALSE) -> 

Sheet Codici (hidden)
A1: Codici
A2: 10L2-DL560G9-U | B2: Server prestazionale | C2: 5272.5 | D2: 1 | E2: HPE ProLiant DL560 Gen9 Server prestazionale V4 (2CPU Intel® Xeon® E5-4620 v4, 64GB RDIMM, 2xHDD 300GB 15k RPM SAS 12Gbps 2.5in)
A3: ="" ->  | B3: ="" ->  | C3: ="" ->  | D3: ="" ->  | E3: ="" -> 
A4: 10L2-WIN1 | B4: OpzWinServ1 | C4: 540 | D4: 1 | E4: Microsoft® Windows Server 2012 R2, Standard Edition, 2 Socket, 2Vm, ROK, COA + Media
A5: 10L2-WIN2 | B5: OpzWinServ2 | C5: 540 | D5: 1 | E5: Microsoft® Windows Server 2012 R2, Standard Edition, 2 Socket, 2Vm, Additional License
A6: 10L2-WINDC1 | B6: OpzWinServ DC1 | C6: 2440 | D6: 1 | E6: Microsoft® Windows Server 2012 R2, Datacenter Edition, 2 Socket, unlimited virtualization rights, ROK, COA + Media
A7: 10L2-WINDC2 | B7: OpzWinServ DC2 | C7: 2440 | D7: 1 | E7: Microsoft® Windows Server 2012 R2, Datacenter Edition, 2 Socket, unlimited virtualization rights, Additional License
A8: 10L2-CALDEV | B8: OpzDeviceCal | C8: 22 | D8: 1 | E8: MS Windows Server 2012 R2, CAL 1 DEV (1-pack fo Windows Server 2012 R2 Device CALs (Standard or Datacenter))
A9: 10L2-CALUSER | B9: OpzUserCal | C9: 24 | D9: 1 | E9: MS Windows Server 2012 R2, CAL 1 USR (1-pack fo Windows Server 2012 R2 User CALs (Standard or Datacenter))
A10: 10L2-LINUX | B10: OpzOpenSource | C10: 45 | E10: DVD Linux Centos 7.x
A11: 10L2-CPU-P-U | B11: Opz2P | C11: 2749 | D11: 2 | E11: Kit 2 CPU Intel® Xeon® E5-4620 v4 (Intel Xeon E5-4620 v4 2.1GHz, 25M Cache, 8 GT/s QPI, Turbo, HT, 10 core, 20 thread)
D12: 1 | E12: HPE DL560 Gen9 CPU Mezz Board w/ Mech Kit
A14: 10L2-16GB-U | B14: OpzRam16 | C14: 141 | D14: 1 | E14: Kit Upgrade Ram 16GB V4 (16GB RDIMM, 2400MT/s, Dual Rank x4)
A15: 10L2-32GB-U | B15: OpzRam32 | C15: 320 | D15: 1 | E15: Kit Upgrade Ram 32GB V4 (32GB RDIMM, 2400MT/s, Dual Rank x4)
A16: 10L2-64GB-U | B16: OpzRam64 | C16: 652 | D16: 1 | E16: Kit Upgrade Ram 64GB V4 (64GB RDIMM, 2400MT/s, Dual Rank x4)
A17: 10L2-LAN1GB | B17: OpzGigabit | C17: 35 | D17: 1 | E17: Scheda LAN Gigabit (HPE Ethernet 1Gb 2P 332T Adptr)
A18: 10L2-LAN10GB | B18: OpzGigabit 10GB | C18: 716 | D18: 1 | E18: Scheda LAN 10 Gigabit (HPE Ethernet 10Gb 2P 530SFP)
D19: 2 | E19: HP BLc 10G SFP+ SR Transceiver
A20: 10L2-CNA10 | B20: OpzGigabit 10GB CNA | C20: 778 | D20: 1 | E20: Scheda CNA (HPE StoreFabric CN1200E 10Gb CNA)
D21: 2 | E21: HPE BLc 10G SFP+ SR Transceiver
A22: 10L2-HDD300GB | B22: OpzStorage300 | C22: 140 | D22: 1 | E22: HDD 300Gb SAS (HPE HDD 300GB 12G SAS 15K 2.5" )
A23: 10L2-HDD1TB | B23: OpzStorage1Tb | C23: 278 | D23: 1 | E23: HDD 1TB NLSAS (HPE HDD 1TB 6G SAS 7.2K 2.5")
A24: 10L2-FC | B24: OpzFibreChannel | C24: 889 | D24: 1 | E24: Scheda FC (HPE 82Q 8Gb Dual Port PCI-e FC HBA)
A25: 10L2-UPS | B25: OpzUPS 3000VA | C25: 428 | D25: 1 | E25: UPS MSR 3000 VA
A26: 10L2-GUI | B26: OpzGUIRack | C26: 466 | D26: 1 | E26: Console KVM GUI per rack
A27: 10L2-KVMIP | B27: OpzSWGUIRack | C27: 550 | D27: 1 | E27: KVM Switch IP per GUI con cavi
A28: 10L2-RACK | B28: OpzRack | C28: 503 | E28: Armadio Rack 42U
A30: 10L2-SO-WIN | B30: ServOpzSysManWindows | C30: 200 | D30: 1 | E30: System-Network Mng. svc Windows
A31: 10L2-SO-LINUX | B31: ServOpzSysManOS | C31: 200 | D31: 1 | E31: System-Network Mng. svc Linux
A32: 10L2-SO-PREV | B32: Manutenzione Preventiva | C32: 200 | D32: 1 | E32: Servizi di manutenzione Preventiva
A33: 10L2-SO-HDD | B33: Hard-Disk retention | C33: 300 | D33: 1 | E33: Servizio HDD Retention
D34: 1 | E34: 3Yr Data Protection - Keep Your Hard Drive
D35: 1 | E35: 4Yr Data Protection - Keep Your Hard Drive
D36: 1 | E36: 5Yr Data Protection - Keep Your Hard Drive
A37: 10L2-SO-12M | B37: OpzEstensione12 | C37: 350 | D37: 1 | E37: Estensione garanzia 12 mesi Agg.
A38: 10L2-SO-24M | B38: OpzEstensione24 | C38: 700 | D38: 1 | E38: Estensione garanzia 24 mesi Agg.
A40: 10L2-DL580G9-U | B40: Server enterprise | C40: 7444.5 | D40: 1 | E40: HPE ProLiant DL580 Gen9 Server enterprise V4 (2CPU Intel® Xeon® E7-4830 v4, 64GB RDIMM, 2xHDD 300GB 15k RPM SAS 12Gbps 2.5in)
A41: ="" ->  | B41: ="" ->  | C41: ="" ->  | D41: ="" ->  | E41: ="" -> 
A42: 10L2-DL580G92 | B42: Server enterprise | C42: 7444.5 | D42: 1 | E42: HPE ProLiant DL580 Gen9 Server enterprise V4 (2CPU Intel® Xeon® E7-4830 v4, 64GB RDIMM, 2xHDD 300GB 15k RPM SAS 12Gbps 2.5in)
A43: 10L2-DL580G94 | B43: Server enterprise | C43: 7444.5 | D43: 1 | E43: HPE ProLiant DL580 Gen9 Server enterprise V4 (2CPU Intel® Xeon® E7-4830 v4, 64GB RDIMM, 2xHDD 300GB 15k RPM SAS 12Gbps 2.5in)
A44: 10L2-WIN1 | B44: OpzWinServ1 | C44: 540 | D44: 1 | E44: Microsoft® Windows Server 2012 R2, Standard Edition, 2 Socket, 2Vm, ROK, COA + Media
A45: 10L2-WIN2 | B45: OpzWinServ2 | C45: 540 | D45: 1 | E45: Microsoft® Windows Server 2012 R2, Standard Edition, 2 Socket, 2Vm, Additional License
A46: 10L2-WINDC1 | B46: OpzWinServ DC1 | C46: 2440 | D46: 1 | E46: Microsoft® Windows Server 2012 R2, Datacenter Edition, 2 Socket, unlimited virtualization rights, ROK, COA + Media
A47: 10L2-WINDC2 | B47: OpzWinServ DC2 | C47: 2440 | D47: 1 | E47: Microsoft® Windows Server 2012 R2, Datacenter Edition, 2 Socket, unlimited virtualization rights, Additional License
A48: 10L2-CALDEV | B48: OpzDeviceCal | C48: 22 | D48: 1 | E48: MS Windows Server 2012 R2, CAL 1 DEV (1-pack fo Windows Server 2012 R2 Device CALs (Standard or Datacenter))
A49: 10L2-CALUSER | B49: OpzUserCal | C49: 24 | D49: 1 | E49: MS Windows Server 2012 R2, CAL 1 USR (1-pack fo Windows Server 2012 R2 User CALs (Standard or Datacenter))
A50: 10L2-LINUX | B50: OpzOpenSource | C50: 45 | E50: DVD Linux Centos 7.x
A51: 10L2-CPU-E-U | B51: Opz2P | C51: 3601 | D51: 2 | E51: Kit 2 CPU Intel® Xeon® E7-4830 v4 (Intel Xeon E7-4830 v4 2.0GHz,35M Cache,8.00GT/s QPI,Turbo,HT,14 core, 28 thread)
D52: 2 | E52: HP DL580 Gen9 12 DIMMs Memory Cartridge
A53: 10L2-CPU-E4-U | B53: Opz2P | C53: 3601 | D53: 2 | E53: Kit 2 CPU Intel® Xeon® E7-4830 v4 - 4MC (Intel Xeon E7-4830 v4 2.0GHz,35M Cache,8.00GT/s QPI,Turbo,HT,14 core, 28 thread)
D54: 4 | E54: HP DL580 Gen9 12 DIMMs Memory Cartridge
A55: 10L2-CPU-E2-U | B55: Opz2P | C55: 3601 | D55: 2 | E55: Kit 2 CPU Intel® Xeon® E7-4830 v4 - 2MC (Intel Xeon E7-4830 v4 2.0GHz,35M Cache,8.00GT/s QPI,Turbo,HT,14 core, 28 thread)
D56: 2 | E56: HP DL580 Gen9 12 DIMMs Memory Cartridge
A57: 10L2-CPU-E0-U | B57: Opz2P | C57: 3601 | D57: 2 | E57: Kit 2 CPU Intel® Xeon® E7-4830 v4 (Intel Xeon E7-4830 v4 2.0GHz,35M Cache,8.00GT/s QPI,Turbo,HT,14 core, 28 thread)
D58: 0 | E58: HP DL580 Gen9 12 DIMMs Memory Cartridge
A59: 10L2-16GB-U | B59: OpzRam16 | C59: 141 | D59: 1 | E59: Kit Upgrade Ram 16GB V4 (16GB RDIMM, 2400MT/s, Dual Rank x4)
A60: 10L2-32GB-U | B60: OpzRam32 | C60: 320 | D60: 1 | E60: Kit Upgrade Ram 32GB V4 (32GB RDIMM, 2400MT/s, Dual Rank x4)
A61: 10L2B-32GB-L | B61: OpzRam32 | C61: 320 | D61: 1 | E61: Upgrade KIT RAM 32GB-L
A62: 10L2-64GB-U | B62: OpzRam64 | C62: 652 | D62: 1 | E62: Kit Upgrade Ram 64GB V4 (64GB RDIMM, 2400MT/s, Dual Rank x4)
A63: 10L2-LAN1GB | B63: OpzGigabit | C63: 35 | D63: 1 | E63: Scheda LAN Gigabit (HPE Ethernet 1Gb 2P 332T Adptr)
A64: 10L2-LAN10GB | B64: OpzGigabit 10GB | C64: 716 | D64: 1 | E64: Scheda LAN 10 Gigabit (HPE Ethernet 10Gb 2P 530SFP)
D65: 2 | E65: HP BLc 10G SFP+ SR Transceiver
A66: 10L2-CNA10 | B66: OpzGigabit 10GB CNA | C66: 778 | D66: 1 | E66: Scheda CNA (HPE StoreFabric CN1200E 10Gb CNA)
D67: 2 | E67: HPE BLc 10G SFP+ SR Transceiver
A68: 10L2-HDD300GB | B68: OpzStorage300 | C68: 140 | D68: 1 | E68: HDD 300Gb SAS (HPE HDD 300GB 12G SAS 15K 2.5" )
A69: 10L2-HDD1TB | B69: OpzStorage1Tb | C69: 278 | D69: 1 | E69: HDD 1TB NLSAS (HPE HDD 1TB 6G SAS 7.2K 2.5")
A70: 10L2-FC | B70: OpzFibreChannel | C70: 889 | D70: 1 | E70: Scheda FC (HPE 82Q 8Gb Dual Port PCI-e FC HBA)
A71: 10L2-UPS | B71: OpzUPS 3000VA | C71: 428 | D71: 1 | E71: UPS MSR 3000 VA
A72: 10L2-GUI | B72: OpzGUIRack | C72: 466 | D72: 1 | E72: Console KVM GUI per rack
A73: 10L2-KVMIP | B73: OpzSWGUIRack | C73: 550 | D73: 1 | E73: KVM Switch IP per GUI con cavi
A74: 10L2-RACK | B74: OpzRack | C74: 503 | E74: Armadio Rack 42U
A75: 10L2-SO-WIN | B75: ServOpzSysManWindows | C75: 200 | D75: 1 | E75: System-Network Mng. svc Windows
A76: 10L2-SO-LINUX | B76: ServOpzSysManOS | C76: 200 | D76: 1 | E76: System-Network Mng. svc Linux
A77: 10L2-SO-PREV | B77: Manutenzione Preventiva | C77: 200 | D77: 1 | E77: Servizi di manutenzione Preventiva
A78: 10L2-SO-HDD | B78: Hard-Disk retention | C78: 300 | D78: 1 | E78: Servizio HDD Retention
D79: 1 | E79: 3Yr Data Protection - Keep Your Hard Drive
D80: 1 | E80: 4Yr Data Protection - Keep Your Hard Drive
D81: 1 | E81: 5Yr Data Protection - Keep Your Hard Drive
A82: 10L2-SO-12M | B82: OpzEstensione12 | C82: 350 | D82: 1 | E82: Estensione garanzia 12 mesi Agg.
A83: 10L2-SO-24M | B83: OpzEstensione24 | C83: 700 | D83: 1 | E83: Estensione garanzia 24 mesi Agg.
A85: 10L1-T630 | B85: Server Tower | C85: 2340 | D85: 1 | E85: Server DELL PowerEdge T630 (1CPU Intel® Xeon® E5-2650 v3, 32GB RDIMM, 2xHDD 300GB 10K RPM SAS 12Gbps 2.5in)
A86: ="" ->  | B86: ="" ->  | C86: ="" ->  | D86: ="" ->  | E86: ="" -> 
A87: 10L1-WIN | B87: OpzWinServ1 | C87: 505 | D87: 1 | E87: Kit Windows Server 2012, Standard Edition, 2 Socket, 2VM, ROK, COA + Media
A88: 10L1-CALUSER | B88: OpzUserCal | C88: 25 | D88: 1 | E88: 1-pack of Windows Server 2012 User CALs (Standard or Datacenter)
D89: 1 | E89: CS_Consip9_Windows Server CAL 2012 Italian 1pk DSP OEI 1 Clt User CAL
A90: 10L1-CALDEV | B90: OpzDeviceCal | C90: 25 | D90: 1 | E90: 1-pack of Windows Server 2012 Device CALs (Standard or Datacenter)
D91: 1 | E91: CS_Consip9_Windows Server CAL 2012 Italian 1pk DSP OEI 1 Clt Device CAL
A92: 10L1-LINUX | B92: OpzOpenSource | C92: 45
A93: 10L1-CPU-T | B93: Opz1P | C93: 800 | D93: 1 | E93: Intel Xeon E5-2650 v3 2.3GHz,25M Cache,9.60GT/s QPI,Turbo,HT,10C/20T (105W) Max Mem 2133MHz,Customer Kit
D94: 1 | E94: Kit - 105W Heatsink for T630
A96: 10L1-16GB | B96: OpzRam16 | C96: 160 | D96: 1 | E96: 16GB RDIMM, 2133 MT/s, Dual Rank, x4 Data Width,CusKit
A97: 10L1-32GB | B97: OpzRam32 | C97: 320 | D97: 1 | E97: 32GB RDIMM, 2133 MT/s, Low Volt, Dual Rank, x4 Data Width
A98: 10L1-32GB-L | B98: OpzRam32 | C98: 320 | D98: 1 | E98: 32GB LRDIMM, 2133 MT/s, Quad Rank, x4 Data Width,CusKit
A99: 10L1-64GB | B99: OpzRam64 | C99: 644 | D99: 1 | E99: Modulo di memoria sostitutivo certificato Dell 64 GB per alcuni sistemi Dell - LRDIMM 4Rx4 a 2.133 MHz
A101: 10L1-LAN1GB | B101: OpzGigabit | C101: 35 | D101: 1 | E101: Broadcom 5720 DP 1Gb Network Interface Card,Full Height,CusKit
A104: 10L1-LAN10GB | B104: OpzGigabit 10GB | C104: 417 | D104: 1 | E104: QLogic 57810 Dual Port 10Gb Direct Attach/SFP+ Network Adapter,Full Height,CusKit
D105: 2 | E105: PowerEdge SFP+, 10GbE SR/SX, Optical Tranceiver, LC Connector, for Intel and Broadcom,CusKit
A110: 10L1-HDD300GB-T | B110: OpzStorage300 | C110: 91 | D110: 1 | E110: 300GB 10K RPM SAS 12Gbps 2.5in Hot-plug Hard Drive,CusKit
A111: 10L1-HDD1TB | B111: OpzStorage1Tb | C111: 296 | D111: 1 | E111: 1TB 7.2K RPM NLSAS 6Gbps 2.5in Hot-plug Hard Drive,13G,CusKit
A113: 10L1-FC | B113: OpzFibreChannel | C113: 940 | D113: 1 | E113: Emulex LPE 12002, Dual Port 8Gb Fibre Channel HBA,Full Height,CusKit
A114: 10L1-RDX | B114: OpzRDX | C114: 365 | D114: 1 | E114: Unità di backup RDX (esterno) + 3 cartucce da 500GB
A116: 10L1-UPS-T | B116: OpzUPS 3000VA | C116: 407 | D116: 1 | E116: Riello - UPS MSR3000EVO 3000VA Tower (SNMP+USB+RS232)
A120: 10L1-GUI-T | B120: OpzGUIDesk | C120: 96 | D120: 1 | E120: Dell: Kit Monitor 19" + Mouse + Keyboard
D121: 1 | E121: Mice : Dell USB Dual Tone Mouse - Grey - 2 button & Scrollwheel - kit
D122: 1 | E122: Dell 19 Monitor | E1916H - 47cm(18.5") Black ITL
A125: 10L1-SO-WIN | B125: ServOpzSysManWindows | C125: 193 | D125: 1 | E125: Servizio Specialistico di System and Network Management per sistema opertivo Windows, erogato on site.
A126: 10L1-SO-LINUX | B126: ServOpzSysManOS | C126: 193 | D126: 1 | E126: Servizio Specialistico di System and Network Management per sistema opertivo Linux, erogato on site.
A127: 10L1-SO-PREV | B127: Manutenzione Preventiva | C127: 193 | D127: 1 | E127: Servizi specialistici sistemistici per aggiornare e prevenire malfunzionamenti
A128: 10L1-SO-HDD | B128: Hard-Disk retention | C128: 150 | D128: 1 | E128: Data Protection - Keep Your Hard Drive
D129: 1 | E129: 3Yr Data Protection - Keep Your Hard Drive
D130: 1 | E130: 4Yr Data Protection - Keep Your Hard Drive
D131: 1 | E131: 5Yr Data Protection - Keep Your Hard Drive
A132: 10L1-SO-12M-T | B132: OpzEstensione12 | C132: 175 | D132: 1 | E132: Estensione della manutenzione in garanzia per ulteriori 12 mesi
A133: 10L1-SO-24M-T | B133: OpzEstensione24 | C133: 350 | D133: 1 | E133: Estensione della manutenzione in garanzia per ulteriori 24 mesi

Sheet Processor (hidden)
A1: Additional Processor
A2: Server DL560 | C2: CPU-A
A3: No Additional Processor | B3: 0 | C3: ="" ->  | E3: ="" ->  | F3: ="" ->  | G3: ="" ->  | H3: ="" -> 
A4: HPE DL560 Gen9 E5-4620v4 Kit | B4: 2 | C4: 10L2-CPU-P-U | D4: S10L2-DL560-CPU-U | E4: 830267-B21 | F4: HPE DL560 Gen9 CPU Mezz Board w/ Mech Kit | G4: 1 | H4: 795107-B21 | L4: 2749
A6: Server DL580 | C6: CPU-B
A7: No Additional Processor | B7: 0 | C7: ="" ->  | E7: ="" ->  | F7: ="" ->  | G7: ="" ->  | H7: ="" ->  | L7: ="" -> 
A8: HPE DL580 Gen9 E7-4830v4 1P Kit | B8: 2 | C8: 10L2-CPU-E-U | D8: S10L2-DL580-CPU-U | E8: 816653-B21 | F8: HPE DL580 Gen9 12 DIMMs Memory Cartridge | G8: 2 | H8: 788360-B21 | L8: 3601
A10: Server T630 | C10: CPU-C
A11: No Additional Processor | B11: 0 | C11: ="" ->  | E11: [374-BBBX] | F11: ="" ->  | G11: ="" ->  | H11: ="" ->  | L11: ="" -> 
A12: Intel Xeon E5-2650 v3 2.3GHz,25M Cache,9.60GT/s QPI,Turbo,HT,10C/20T (105W) Max Mem 2133MHz,Customer Kit | B12: 1 | C12: 10L1-CPU-T | D12: S10L1-T630-CPU | E12: [338-BFCF] | F12: Kit - 105W Heatsink for T630 | G12: 1 | H12: [412-AADU] | L12: 800

Sheet Memory (hidden)
B1: Total Memory
B3: HPE 16GB 2Rx4 PC4-2400T-R Kit | C3: 1 | D3: 10L2-16GB-U | E3: S10L2-DL560-16GB-U | F3: 836220-B21 | G3: 141
B4: HPE 32GB 2Rx4 PC4-2400T-R Kit | C4: 1 | D4: 10L2-32GB-U | E4: S10L2-DL560-32GB-U | F4: 805351-B21 | G4: 320
B5: HP 64GB 4Rx4 PC4-2133P-L Kit | C5: 1 | D5: 10L2A-64GB | E5: S10L2-DL560-64GB-U | F5: 726724-B21 | G5: 652
B6: HPE 16GB 2Rx4 PC4-2400T-R Kit | C6: 1 | D6: 10L2-16GB-U | E6: S10L2-DL580-16GB-U | F6: 836220-B21 | G6: 141
B7: HPE 32GB 2Rx4 PC4-2400T-R Kit | C7: 1 | D7: 10L2-32GB-U | E7: S10L2-DL580-32GB-U | F7: 805351-B21 | G7: 320
B8: HP 32GB 4Rx4 PC4-2133P-L Kit | C8: 1 | D8: 10L2B-32GB-L | E8: S10L2-DL580-32GB-L | F8: 726722-B21 | G8: 320
B9: HP 64GB 4Rx4 PC4-2133P-L Kit | C9: 1 | D9: 10L2B-64GB-L | E9: S10L2-DL580-64GB-L | F9: 726724-B21 | G9: 652
A12: 2CPU | B12: MEMORY A
A13: 64 | B13: ="" ->  | C13: ="" ->  | D13: ="" ->  | E13: ="" ->  | F13: ="" ->  | G13: ="" ->  | H13: HPE 32GB 2Rx4 PC4-2400T-R Kit | I13: 2 | J13: 805351-B21 | K13: ="" ->  | L13: ="" ->  | M13: ="" ->  | N13: ="" ->  | O13: ="" ->  | P13: ="" -> 
A14: 96 (16GB) | B14: HPE 16GB 2Rx4 PC4-2400T-R Kit | C14: 2 | D14: 10L2-16GB-U | E14: S10L2-DL560-16GB | F14: 836220-B21 | G14: =$G$3*C14 -> 282 | H14: HPE 32GB 2Rx4 PC4-2400T-R Kit | I14: 2 | J14: 805351-B21 | K14: ="" ->  | L14: ="" ->  | M14: ="" ->  | N14: ="" ->  | O14: ="" ->  | P14: ="" -> 
A15: 128 | B15: ="" ->  | C15: ="" ->  | D15: ="" ->  | E15: ="" ->  | F15: ="" ->  | G15: ="" ->  | H15: HPE 32GB 2Rx4 PC4-2400T-R Kit | I15: 2 | J15: 805351-B21 | K15: HPE 32GB 2Rx4 PC4-2400T-R Kit | L15: 2 | M15: 10L2-32GB-U | N15: S10L2-DL560-32GB | O15: 805351-B21 | P15: =$G$4*L15 -> 640
A16: 128 (16GB) | B16: HPE 16GB 2Rx4 PC4-2400T-R Kit | C16: 4 | D16: 10L2-16GB-U | E16: S10L2-DL560-16GB | F16: 836220-B21 | G16: =$G$3*C16 -> 564 | H16: HPE 32GB 2Rx4 PC4-2400T-R Kit | I16: 2 | J16: 805351-B21 | K16: ="" ->  | L16: ="" ->  | M16: ="" ->  | N16: ="" ->  | O16: ="" ->  | P16: ="" -> 
A17: 160 (16GB) | B17: HPE 16GB 2Rx4 PC4-2400T-R Kit | C17: 6 | D17: 10L2-16GB-U | E17: S10L2-DL560-16GB | F17: 836220-B21 | G17: =$G$3*C17 -> 846 | H17: HPE 32GB 2Rx4 PC4-2400T-R Kit | I17: 2 | J17: 805351-B21 | K17: ="" ->  | L17: ="" ->  | M17: ="" ->  | N17: ="" ->  | O17: ="" ->  | P17: ="" -> 
A18: 192 | B18: ="" ->  | C18: ="" ->  | D18: ="" ->  | E18: ="" ->  | F18: ="" ->  | G18: ="" ->  | H18: HPE 32GB 2Rx4 PC4-2400T-R Kit | I18: 2 | J18: 805351-B21 | K18: HPE 32GB 2Rx4 PC4-2400T-R Kit | L18: 4 | M18: 10L2-32GB-U | N18: S10L2-DL560-32GB | O18: 805351-B21 | P18: =$G$4*L18 -> 1280
A19: 192 (16GB) | B19: HPE 16GB 2Rx4 PC4-2400T-R Kit | C19: 8 | D19: 10L2-16GB-U | E19: S10L2-DL560-16GB | F19: 836220-B21 | G19: =$G$3*C19 -> 1128 | H19: HPE 32GB 2Rx4 PC4-2400T-R Kit | I19: 2 | J19: 805351-B21 | K19: ="" ->  | L19: ="" ->  | M19: ="" ->  | N19: ="" ->  | O19: ="" ->  | P19: ="" -> 
A20: 256 | B20: ="" ->  | C20: ="" ->  | D20: ="" ->  | E20: ="" ->  | F20: ="" ->  | G20: ="" ->  | H20: HPE 32GB 2Rx4 PC4-2400T-R Kit | I20: 2 | J20: 805351-B21 | K20: HPE 32GB 2Rx4 PC4-2400T-R Kit | L20: 6 | M20: 10L2-32GB-U | N20: S10L2-DL560-32GB | O20: 805351-B21 | P20: =$G$4*L20 -> 1920
A21: 256 (16GB) | B21: HPE 16GB 2Rx4 PC4-2400T-R Kit | C21: 12 | D21: 10L2-16GB-U | E21: S10L2-DL560-16GB | F21: 836220-B21 | G21: =$G$3*C21 -> 1692 | H21: HPE 32GB 2Rx4 PC4-2400T-R Kit | I21: 2 | J21: 805351-B21 | K21: ="" ->  | L21: ="" ->  | M21: ="" ->  | N21: ="" ->  | O21: ="" ->  | P21: ="" -> 
A22: 320 | B22: ="" ->  | C22: ="" ->  | D22: ="" ->  | E22: ="" ->  | F22: ="" ->  | G22: ="" ->  | H22: HPE 32GB 2Rx4 PC4-2400T-R Kit | I22: 2 | J22: 805351-B21 | K22: HPE 32GB 2Rx4 PC4-2400T-R Kit | L22: 8 | M22: 10L2-32GB-U | N22: S10L2-DL560-32GB | O22: 805351-B21 | P22: =$G$4*L22 -> 2560
A23: 320 (16GB) | B23: HPE 16GB 2Rx4 PC4-2400T-R Kit | C23: 16 | D23: 10L2-16GB-U | E23: S10L2-DL560-16GB | F23: 836220-B21 | G23: =$G$3*C23 -> 2256 | H23: HPE 32GB 2Rx4 PC4-2400T-R Kit | I23: 2 | J23: 805351-B21 | K23: ="" ->  | L23: ="" ->  | M23: ="" ->  | N23: ="" ->  | O23: ="" ->  | P23: ="" -> 
A24: 384 | B24: ="" ->  | C24: ="" ->  | D24: ="" ->  | E24: ="" ->  | F24: ="" ->  | G24: ="" ->  | H24: HPE 32GB 2Rx4 PC4-2400T-R Kit | I24: 2 | J24: 805351-B21 | K24: HPE 32GB 2Rx4 PC4-2400T-R Kit | L24: 10 | M24: 10L2-32GB-U | N24: S10L2-DL560-32GB | O24: 805351-B21 | P24: =$G$4*L24 -> 3200
A25: 384 (16GB) | B25: HPE 16GB 2Rx4 PC4-2400T-R Kit | C25: 20 | D25: 10L2-16GB-U | E25: S10L2-DL560-16GB | F25: 836220-B21 | G25: =$G$3*C25 -> 2820 | H25: HPE 32GB 2Rx4 PC4-2400T-R Kit | I25: 2 | J25: 805351-B21 | K25: ="" ->  | L25: ="" ->  | M25: ="" ->  | N25: ="" ->  | O25: ="" ->  | P25: ="" -> 
A26: 512 | B26: ="" ->  | C26: ="" ->  | D26: ="" ->  | E26: ="" ->  | F26: ="" ->  | G26: ="" ->  | H26: HPE 32GB 2Rx4 PC4-2400T-R Kit | I26: 2 | J26: 805351-B21 | K26: HPE 32GB 2Rx4 PC4-2400T-R Kit | L26: 14 | M26: 10L2-32GB-U | N26: S10L2-DL560-32GB | O26: 805351-B21 | P26: =$G$4*L26 -> 4480
A27: 640 | B27: ="" ->  | C27: ="" ->  | D27: ="" ->  | E27: ="" ->  | F27: ="" ->  | G27: ="" ->  | H27: HPE 32GB 2Rx4 PC4-2400T-R Kit | I27: 2 | J27: 805351-B21 | K27: HPE 32GB 2Rx4 PC4-2400T-R Kit | L27: 18 | M27: 10L2-32GB-U | N27: S10L2-DL560-32GB | O27: 805351-B21 | P27: =$G$4*L27 -> 5760
A28: 768 | B28: ="" ->  | C28: ="" ->  | D28: ="" ->  | E28: ="" ->  | F28: ="" ->  | G28: ="" ->  | H28: HPE 32GB 2Rx4 PC4-2400T-R Kit | I28: 2 | J28: 805351-B21 | K28: HPE 32GB 2Rx4 PC4-2400T-R Kit | L28: 22 | M28: 10L2-32GB-U | N28: S10L2-DL560-32GB | O28: 805351-B21 | P28: =$G$4*L28 -> 7040
A29: 4CPU
A30: 64 | B30: ="" ->  | C30: ="" ->  | D30: ="" ->  | E30: ="" ->  | F30: ="" ->  | G30: ="" ->  | H30: HPE 32GB 2Rx4 PC4-2400T-R Kit | I30: 2 | J30: 805351-B21 | K30: ="" ->  | L30: ="" ->  | M30: ="" ->  | N30: ="" ->  | O30: ="" ->  | P30: ="" -> 
A31: 128 | B31: ="" ->  | C31: ="" ->  | D31: ="" ->  | E31: ="" ->  | F31: ="" ->  | G31: ="" ->  | H31: HPE 32GB 2Rx4 PC4-2400T-R Kit | I31: 2 | J31: 805351-B21 | K31: HPE 32GB 2Rx4 PC4-2400T-R Kit | L31: 2 | M31: 10L2-32GB-U | N31: S10L2-DL560-32GB | O31: 805351-B21 | P31: =$G$4*L31 -> 640
A32: 192 (16GB) | B32: HPE 16GB 2Rx4 PC4-2400T-R Kit | C32: 4 | D32: 10L2-16GB-U | E32: S10L2-DL560-16GB | F32: 836220-B21 | G32: =$G$3*C32 -> 564 | H32: HPE 32GB 2Rx4 PC4-2400T-R Kit | I32: 2 | J32: 805351-B21 | K32: HPE 32GB 2Rx4 PC4-2400T-R Kit | L32: 2 | M32: 10L2-32GB-U | N32: S10L2-DL560-32GB | O32: 805351-B21 | P32: 640
A33: 256 | B33: ="" ->  | C33: ="" ->  | D33: ="" ->  | E33: ="" ->  | F33: ="" ->  | G33: ="" ->  | H33: HPE 32GB 2Rx4 PC4-2400T-R Kit | I33: 2 | J33: 805351-B21 | K33: HPE 32GB 2Rx4 PC4-2400T-R Kit | L33: 6 | M33: 10L2-32GB-U | N33: S10L2-DL560-32GB | O33: 805351-B21 | P33: 1920
A34: 256 (16GB) | B34: HPE 16GB 2Rx4 PC4-2400T-R Kit | C34: 8 | D34: 10L2-16GB-U | E34: S10L2-DL560-16GB | F34: 836220-B21 | G34: =$G$3*C34 -> 1128 | H34: HPE 32GB 2Rx4 PC4-2400T-R Kit | I34: 2 | J34: 805351-B21 | K34: HPE 32GB 2Rx4 PC4-2400T-R Kit | L34: 2 | M34: 10L2-32GB-U | N34: S10L2-DL560-32GB | O34: 805351-B21 | P34: 640
A35: 320 | B35: ="" ->  | C35: ="" ->  | D35: ="" ->  | E35: ="" ->  | F35: ="" ->  | G35: ="" ->  | H35: HPE 32GB 2Rx4 PC4-2400T-R Kit | I35: 2 | J35: 805351-B21 | K35: HPE 32GB 2Rx4 PC4-2400T-R Kit | L35: 8 | M35: 10L2-32GB-U | N35: S10L2-DL560-32GB | O35: 805351-B21 | P35: 2560
A36: 320 (16GB) | B36: HPE 16GB 2Rx4 PC4-2400T-R Kit | C36: 12 | D36: 10L2-16GB-U | E36: S10L2-DL560-16GB | F36: 836220-B21 | G36: =$G$3*C36 -> 1692 | H36: HPE 32GB 2Rx4 PC4-2400T-R Kit | I36: 2 | J36: 805351-B21 | K36: HPE 32GB 2Rx4 PC4-2400T-R Kit | L36: 2 | M36: 10L2-32GB-U | N36: S10L2-DL560-32GB | O36: 805351-B21 | P36: 640
A37: 384 | B37: ="" ->  | C37: ="" ->  | D37: ="" ->  | E37: ="" ->  | F37: ="" ->  | G37: ="" ->  | H37: HPE 32GB 2Rx4 PC4-2400T-R Kit | I37: 2 | J37: 805351-B21 | K37: HPE 32GB 2Rx4 PC4-2400T-R Kit | L37: 10 | M37: 10L2-32GB-U | N37: S10L2-DL560-32GB | O37: 805351-B21 | P37: 3200
A38: 384 (16GB) | B38: HPE 16GB 2Rx4 PC4-2400T-R Kit | C38: 16 | D38: 10L2-16GB-U | E38: S10L2-DL560-16GB | F38: 836220-B21 | G38: =$G$3*C38 -> 2256 | H38: HPE 32GB 2Rx4 PC4-2400T-R Kit | I38: 2 | J38: 805351-B21 | K38: HPE 32GB 2Rx4 PC4-2400T-R Kit | L38: 2 | M38: 10L2-32GB-U | N38: S10L2-DL560-32GB | O38: 805351-B21 | P38: 640
A39: 512 | B39: ="" ->  | C39: ="" ->  | D39: ="" ->  | E39: ="" ->  | F39: ="" ->  | G39: ="" ->  | H39: HPE 32GB 2Rx4 PC4-2400T-R Kit | I39: 2 | J39: 805351-B21 | K39: HPE 32GB 2Rx4 PC4-2400T-R Kit | L39: 14 | M39: 10L2-32GB-U | N39: S10L2-DL560-32GB | O39: 805351-B21 | P39: 4480
A40: 512 (16GB) | B40: HPE 16GB 2Rx4 PC4-2400T-R Kit | C40: 24 | D40: 10L2-16GB-U | E40: S10L2-DL560-16GB | F40: 836220-B21 | G40: =$G$3*C40 -> 3384 | H40: HPE 32GB 2Rx4 PC4-2400T-R Kit | I40: 2 | J40: 805351-B21 | K40: HPE 32GB 2Rx4 PC4-2400T-R Kit | L40: 2 | M40: 10L2-32GB-U | N40: S10L2-DL560-32GB | O40: 805351-B21 | P40: 640
A41: 640 | B41: ="" ->  | C41: ="" ->  | D41: ="" ->  | E41: ="" ->  | F41: ="" ->  | G41: ="" ->  | H41: HPE 32GB 2Rx4 PC4-2400T-R Kit | I41: 2 | J41: 805351-B21 | K41: HPE 32GB 2Rx4 PC4-2400T-R Kit | L41: 18 | M41: 10L2-32GB-U | N41: S10L2-DL560-32GB | O41: 805351-B21 | P41: 5760
A42: 640 (16GB) | B42: HPE 16GB 2Rx4 PC4-2400T-R Kit | C42: 32 | D42: 10L2-16GB-U | E42: S10L2-DL560-16GB | F42: 836220-B21 | G42: =$G$3*C42 -> 4512 | H42: HPE 32GB 2Rx4 PC4-2400T-R Kit | I42: 2 | J42: 805351-B21 | K42: HPE 32GB 2Rx4 PC4-2400T-R Kit | L42: 2 | M42: 10L2-32GB-U | N42: S10L2-DL560-32GB | O42: 805351-B21 | P42: 640
A43: 768 | B43: ="" ->  | C43: ="" ->  | D43: ="" ->  | E43: ="" ->  | F43: ="" ->  | G43: ="" ->  | H43: HPE 32GB 2Rx4 PC4-2400T-R Kit | I43: 2 | J43: 805351-B21 | K43: HPE 32GB 2Rx4 PC4-2400T-R Kit | L43: 22 | M43: 10L2-32GB-U | N43: S10L2-DL560-32GB | O43: 805351-B21 | P43: 7040
A44: 768 (16GB) | B44: HPE 16GB 2Rx4 PC4-2400T-R Kit | C44: 40 | D44: 10L2-16GB-U | E44: S10L2-DL560-16GB | F44: 836220-B21 | G44: =$G$3*C44 -> 5640 | H44: HPE 32GB 2Rx4 PC4-2400T-R Kit | I44: 2 | J44: 805351-B21 | K44: HPE 32GB 2Rx4 PC4-2400T-R Kit | L44: 2 | M44: 10L2-32GB-U | N44: S10L2-DL560-32GB | O44: 805351-B21 | P44: 640
A45: 1280 | B45: ="" ->  | C45: ="" ->  | D45: ="" ->  | E45: ="" ->  | F45: ="" ->  | G45: ="" ->  | H45: HPE 32GB 2Rx4 PC4-2400T-R Kit | I45: 2 | J45: 805351-B21 | K45: HPE 32GB 2Rx4 PC4-2400T-R Kit | L45: 38 | M45: 10L2-32GB-U | N45: S10L2-DL560-32GB | O45: 805351-B21 | P45: 12160
A46: 1536 | B46: ="" ->  | C46: ="" ->  | D46: ="" ->  | E46: ="" ->  | F46: ="" ->  | G46: ="" ->  | H46: HPE 32GB 2Rx4 PC4-2400T-R Kit | I46: 2 | J46: 805351-B21 | K46: HPE 32GB 2Rx4 PC4-2400T-R Kit | L46: 46 | M46: 10L2-32GB-U | N46: S10L2-DL560-32GB | O46: 805351-B21 | P46: 14720
B48: MEMORY B
A49: 2CPU | B49: UPGRADE 16GB | H49: MEMORIA BASE | K49: UPGRADE 32GB | T49: Memoria Totale | U49: Prezzo Totale Memorie | V49: Memory Cartridge Totali | W49: DIMM Slot | X49: 32 | Y49: 16 | Z49: 16
A50: 64 | B50: ="" ->  | C50: ="" ->  | D50: ="" ->  | E50: ="" ->  | F50: ="" ->  | G50: ="" ->  | H50: HPE 16GB 2Rx4 PC4-2400T-R Kit | I50: 4 | J50: 836220-B21 | K50: ="" ->  | L50: ="" ->  | M50: ="" ->  | N50: ="" ->  | O50: ="" ->  | P50: ="" ->  | Q50: HP DL580 Gen9 12 DIMMs Memory Cartridge | R50: 788360-B21 | S50: 2 | T50: =A50 -> 64 | V50: =S50 -> 2 | W50: =AA50 -> 4 | X50: =IF(L50="",0,L50) -> 0 | Y50: =IF(I50="",0,I50) -> 4 | Z50: =IF(C50="",0,C50) -> 0 | AA50: =SUM(X50:Z50) -> 4
A51: 128 | B51: HPE 16GB 2Rx4 PC4-2400T-R Kit | C51: 4 | D51: 10L2-16GB-U | E51: S10L2-DL560-16GB-U | F51: 836220-B21 | G51: =$G$3*C51 -> 564 | H51: HPE 16GB 2Rx4 PC4-2400T-R Kit | I51: 4 | J51: 836220-B21 | K51: ="" ->  | L51: ="" ->  | M51: ="" ->  | N51: ="" ->  | O51: ="" ->  | P51: ="" ->  | Q51: HP DL580 Gen9 12 DIMMs Memory Cartridge | R51: 788360-B21 | S51: 2 | T51: 128 | V51: =S51 -> 2 | W51: 8 | X51: 0 | Y51: 4 | Z51: 4 | AA51: 8
A52: 192 | B52: ="" ->  | C52: ="" ->  | D52: ="" ->  | E52: ="" ->  | F52: ="" ->  | G52: ="" ->  | H52: HPE 16GB 2Rx4 PC4-2400T-R Kit | I52: 4 | J52: 836220-B21 | K52: HPE 32GB 2Rx4 PC4-2400T-R Kit | L52: 4 | M52: 10L2-32GB-U | N52: S10L2-DL560-32GB-U | O52: 805351-B21 | P52: =$G$4*L52 -> 1280 | Q52: HP DL580 Gen9 12 DIMMs Memory Cartridge | R52: 788360-B21 | S52: 2 | T52: 192 | V52: 2 | W52: 8 | X52: 4 | Y52: 4 | Z52: 0 | AA52: 8
A53: 256 | B53: HPE 16GB 2Rx4 PC4-2400T-R Kit | C53: 4 | D53: 10L2-16GB-U | E53: S10L2-DL560-16GB-U | F53: 836220-B21 | G53: =$G$3*C53 -> 564 | H53: HPE 16GB 2Rx4 PC4-2400T-R Kit | I53: 4 | J53: 836220-B21 | K53: HPE 32GB 2Rx4 PC4-2400T-R Kit | L53: 4 | M53: 10L2-32GB-U | N53: S10L2-DL560-32GB-U | O53: 805351-B21 | P53: 1280 | Q53: HP DL580 Gen9 12 DIMMs Memory Cartridge | R53: 788360-B21 | S53: 2 | T53: 256 | V53: 2 | W53: 12 | X53: 4 | Y53: 4 | Z53: 4 | AA53: 12
A54: 320 | B54: ="" ->  | C54: ="" ->  | D54: ="" ->  | E54: ="" ->  | F54: ="" ->  | G54: ="" ->  | H54: HPE 16GB 2Rx4 PC4-2400T-R Kit | I54: 4 | J54: 836220-B21 | K54: HPE 32GB 2Rx4 PC4-2400T-R Kit | L54: 8 | M54: 10L2-32GB-U | N54: S10L2-DL560-32GB-U | O54: 805351-B21 | P54: 2560 | Q54: HP DL580 Gen9 12 DIMMs Memory Cartridge | R54: 788360-B21 | S54: 2 | T54: 320 | V54: 2 | W54: 12 | X54: 8 | Y54: 4 | Z54: 0 | AA54: 12
A55: 384 | B55: HPE 16GB 2Rx4 PC4-2400T-R Kit | C55: 4 | D55: 10L2-16GB-U | E55: S10L2-DL560-16GB-U | F55: 836220-B21 | G55: =$G$3*C55 -> 564 | H55: HPE 16GB 2Rx4 PC4-2400T-R Kit | I55: 4 | J55: 836220-B21 | K55: HPE 32GB 2Rx4 PC4-2400T-R Kit | L55: 8 | M55: 10L2-32GB-U | N55: S10L2-DL560-32GB-U | O55: 805351-B21 | P55: 2560 | Q55: HP DL580 Gen9 12 DIMMs Memory Cartridge | R55: 788360-B21 | S55: 2 | T55: 384 | V55: 2 | W55: 16 | X55: 8 | Y55: 4 | Z55: 4 | AA55: 16
A56: 448 | B56: ="" ->  | C56: ="" ->  | D56: ="" ->  | E56: ="" ->  | F56: ="" ->  | G56: ="" ->  | H56: HPE 16GB 2Rx4 PC4-2400T-R Kit | I56: 4 | J56: 836220-B21 | K56: HPE 32GB 2Rx4 PC4-2400T-R Kit | L56: 12 | M56: 10L2-32GB-U | N56: S10L2-DL560-32GB-U | O56: 805351-B21 | P56: 3840 | Q56: HP DL580 Gen9 12 DIMMs Memory Cartridge | R56: 788360-B21 | S56: 2 | T56: 448 | V56: 2 | W56: 16 | X56: 12 | Y56: 4 | Z56: 0 | AA56: 16
A57: 512 | B57: HPE 16GB 2Rx4 PC4-2400T-R Kit | C57: 4 | D57: 10L2-16GB-U | E57: S10L2-DL560-16GB-U | F57: 836220-B21 | G57: =$G$3*C57 -> 564 | H57: HPE 16GB 2Rx4 PC4-2400T-R Kit | I57: 4 | J57: 836220-B21 | K57: HPE 32GB 2Rx4 PC4-2400T-R Kit | L57: 12 | M57: 10L2-32GB-U | N57: S10L2-DL560-32GB-U | O57: 805351-B21 | P57: 3840 | Q57: HP DL580 Gen9 12 DIMMs Memory Cartridge | R57: 788360-B21 | S57: 2 | T57: 512 | V57: 2 | W57: 20 | X57: 12 | Y57: 4 | Z57: 4 | AA57: 20
A58: 576 | B58: ="" ->  | C58: ="" ->  | D58: ="" ->  | E58: ="" ->  | F58: ="" ->  | G58: ="" ->  | H58: HPE 16GB 2Rx4 PC4-2400T-R Kit | I58: 4 | J58: 836220-B21 | K58: HPE 32GB 2Rx4 PC4-2400T-R Kit | L58: 16 | M58: 10L2-32GB-U | N58: S10L2-DL560-32GB-U | O58: 805351-B21 | P58: =$G$4*L58 -> 5120 | Q58: HP DL580 Gen9 12 DIMMs Memory Cartridge | R58: 788360-B21 | S58: 2 | T58: 576 | V58: 2 | W58: 20 | X58: 16 | Y58: 4 | Z58: 0 | AA58: 20
A59: 640 | B59: HPE 16GB 2Rx4 PC4-2400T-R Kit | C59: 4 | D59: 10L2-16GB-U | E59: S10L2-DL560-16GB-U | F59: 836220-B21 | G59: =$G$3*C59 -> 564 | H59: HPE 16GB 2Rx4 PC4-2400T-R Kit | I59: 4 | J59: 836220-B21 | K59: HPE 32GB 2Rx4 PC4-2400T-R Kit | L59: 16 | M59: 10L2-32GB-U | N59: S10L2-DL560-32GB-U | O59: 805351-B21 | P59: 5120 | Q59: HP DL580 Gen9 12 DIMMs Memory Cartridge | R59: 788360-B21 | S59: 2 | T59: 640 | V59: 2 | W59: 24 | X59: 16 | Y59: 4 | Z59: 4 | AA59: 24
A60: 704 | B60: ="" ->  | C60: ="" ->  | D60: ="" ->  | E60: ="" ->  | F60: ="" ->  | G60: ="" ->  | H60: HPE 16GB 2Rx4 PC4-2400T-R Kit | I60: 4 | J60: 836220-B21 | K60: HPE 32GB 2Rx4 PC4-2400T-R Kit | L60: 20 | M60: 10L2-32GB-U | N60: S10L2-DL560-32GB-U | O60: 805351-B21 | P60: 6400 | Q60: HP DL580 Gen9 12 DIMMs Memory Cartridge | R60: 788360-B21 | S60: 2 | T60: 704 | V60: 2 | W60: 24 | X60: 20 | Y60: 4 | Z60: 0 | AA60: 24
A61: 768 | B61: ="" ->  | C61: ="" ->  | D61: ="" ->  | E61: ="" ->  | F61: ="" ->  | G61: ="" ->  | H61: ="" ->  | I61: ="" ->  | J61: ="" ->  | K61: HPE 32GB 2Rx4 PC4-2400T-R Kit | L61: 24 | M61: 10L2-32GB-U | N61: S10L2-DL560-32GB-U | O61: 805351-B21 | P61: 7680 | Q61: HP DL580 Gen9 12 DIMMs Memory Cartridge | R61: 788360-B21 | S61: 2 | T61: 768 | V61: 2 | W61: 24 | X61: 24 | Y61: 0 | Z61: 0 | AA61: 24
A62: 896 | B62: HPE 16GB 2Rx4 PC4-2400T-R Kit | C62: 4 | D62: 10L2-16GB-U | E62: S10L2-DL560-16GB-U | F62: 836220-B21 | G62: =$G$3*C62 -> 564 | H62: HPE 16GB 2Rx4 PC4-2400T-R Kit | I62: 4 | J62: 836220-B21 | K62: HPE 32GB 2Rx4 PC4-2400T-R Kit | L62: 24 | M62: 10L2-32GB-U | N62: S10L2-DL560-32GB-U | O62: 805351-B21 | P62: 7680 | Q62: HP DL580 Gen9 12 DIMMs Memory Cartridge | R62: 788360-B21 | S62: 4 | T62: 896 | V62: 4 | W62: 32 | X62: 24 | Y62: 4 | Z62: 4 | AA62: 32
A63: 1024 | B63: HPE 16GB 2Rx4 PC4-2400T-R Kit | C63: 12 | D63: 10L2-16GB-U | E63: S10L2-DL560-16GB-U | F63: 836220-B21 | G63: 1692 | H63: HPE 16GB 2Rx4 PC4-2400T-R Kit | I63: 4 | J63: 836220-B21 | K63: HPE 32GB 2Rx4 PC4-2400T-R Kit | L63: 24 | M63: 10L2-32GB-U | N63: S10L2-DL560-32GB-U | O63: 805351-B21 | P63: 7680 | Q63: HP DL580 Gen9 12 DIMMs Memory Cartridge | R63: 788360-B21 | S63: 4 | T63: 1024 | V63: 4 | W63: 40 | X63: 24 | Y63: 4 | Z63: 12 | AA63: 40
A64: 1152 | B64: HPE 16GB 2Rx4 PC4-2400T-R Kit | C64: 4 | D64: 10L2-16GB-U | E64: S10L2-DL560-16GB-U | F64: 836220-B21 | G64: =$G$3*C64 -> 564 | H64: HPE 16GB 2Rx4 PC4-2400T-R Kit | I64: 4 | J64: 836220-B21 | K64: HPE 32GB 2Rx4 PC4-2400T-R Kit | L64: 32 | M64: 10L2-32GB-U | N64: S10L2-DL560-32GB-U | O64: 805351-B21 | P64: =$G$4*L64 -> 10240 | Q64: HP DL580 Gen9 12 DIMMs Memory Cartridge | R64: 788360-B21 | S64: 4 | T64: 1152 | V64: 4 | W64: 40 | X64: 32 | Y64: 4 | Z64: 4 | AA64: 40
A65: 1280 | B65: HPE 16GB 2Rx4 PC4-2400T-R Kit | C65: 12 | D65: 10L2-16GB-U | E65: S10L2-DL560-16GB-U | F65: 836220-B21 | G65: =$G$3*C65 -> 1692 | H65: HPE 16GB 2Rx4 PC4-2400T-R Kit | I65: 4 | J65: 836220-B21 | K65: HPE 32GB 2Rx4 PC4-2400T-R Kit | L65: 32 | M65: 10L2-32GB-U | N65: S10L2-DL560-32GB-U | O65: 805351-B21 | P65: 10240 | Q65: HP DL580 Gen9 12 DIMMs Memory Cartridge | R65: 788360-B21 | S65: 4 | T65: 1280 | V65: 4 | W65: 48 | X65: 32 | Y65: 4 | Z65: 12 | AA65: 48
A66: 1408 | B66: HPE 16GB 2Rx4 PC4-2400T-R Kit | C66: 4 | D66: 10L2-16GB-U | E66: S10L2-DL560-16GB-U | F66: 836220-B21 | G66: =$G$3*C66 -> 564 | H66: HPE 16GB 2Rx4 PC4-2400T-R Kit | I66: 4 | J66: 836220-B21 | K66: HPE 32GB 2Rx4 PC4-2400T-R Kit | L66: 40 | M66: 10L2-32GB-U | N66: S10L2-DL560-32GB-U | O66: 805351-B21 | P66: 12800 | Q66: HP DL580 Gen9 12 DIMMs Memory Cartridge | R66: 788360-B21 | S66: 4 | T66: 1408 | V66: 4 | W66: 48 | X66: 40 | Y66: 4 | Z66: 4 | AA66: 48
A67: 1536 | B67: ="" ->  | C67: ="" ->  | D67: ="" ->  | E67: ="" ->  | F67: ="" ->  | G67: ="" ->  | H67: ="" ->  | I67: ="" ->  | J67: ="" ->  | K67: HPE 32GB 2Rx4 PC4-2400T-R Kit | L67: 48 | M67: 10L2-32GB-U | N67: S10L2-DL560-32GB-U | O67: 805351-B21 | P67: 15360 | Q67: HP DL580 Gen9 12 DIMMs Memory Cartridge | R67: 788360-B21 | S67: 4 | T67: 1536 | V67: 4 | W67: 48 | X67: 48 | Y67: 0 | Z67: 0 | AA67: 48
A68: 4CPU
A69: 128 | B69: HPE 16GB 2Rx4 PC4-2400T-R Kit | C69: 4 | D69: 10L2-16GB-U | E69: S10L2-DL560-16GB-U | F69: 836220-B21 | G69: =$G$3*C69 -> 564 | H69: HPE 16GB 2Rx4 PC4-2400T-R Kit | I69: 4 | J69: 836220-B21 | K69: ="" ->  | L69: ="" ->  | M69: ="" ->  | N69: ="" ->  | O69: ="" ->  | P69: ="" ->  | Q69: HP DL580 Gen9 12 DIMMs Memory Cartridge | R69: 788360-B21 | S69: 4 | T69: =A69 -> 128 | V69: 4 | W69: =AA69 -> 8 | X69: =IF(L69="",0,L69) -> 0 | Y69: =IF(I69="",0,I69) -> 4 | Z69: =IF(C69="",0,C69) -> 4 | AA69: =SUM(X69:Z69) -> 8
A70: 256 | B70: HPE 16GB 2Rx4 PC4-2400T-R Kit | C70: 12 | D70: 10L2-16GB-U | E70: S10L2-DL560-16GB-U | F70: 836220-B21 | G70: 1692 | H70: HPE 16GB 2Rx4 PC4-2400T-R Kit | I70: 4 | J70: 836220-B21 | K70: ="" ->  | L70: ="" ->  | M70: ="" ->  | N70: ="" ->  | O70: ="" ->  | P70: ="" ->  | Q70: HP DL580 Gen9 12 DIMMs Memory Cartridge | R70: 788360-B21 | S70: 4 | T70: 256 | V70: 4 | W70: 16 | X70: 0 | Y70: 4 | Z70: 12 | AA70: 16
A71: 384 | B71: HPE 16GB 2Rx4 PC4-2400T-R Kit | C71: 4 | D71: 10L2-16GB-U | E71: S10L2-DL560-16GB-U | F71: 836220-B21 | G71: 564 | H71: HPE 16GB 2Rx4 PC4-2400T-R Kit | I71: 4 | J71: 836220-B21 | K71: HPE 32GB 2Rx4 PC4-2400T-R Kit | L71: 8 | M71: 10L2-32GB-U | N71: S10L2-DL560-32GB-U | O71: 805351-B21 | P71: =$G$4*L71 -> 2560 | Q71: HP DL580 Gen9 12 DIMMs Memory Cartridge | R71: 788360-B21 | S71: 4 | T71: 384 | V71: 4 | W71: 16 | X71: 8 | Y71: 4 | Z71: 4 | AA71: 16
A72: 512 | B72: HPE 16GB 2Rx4 PC4-2400T-R Kit | C72: 12 | D72: 10L2-16GB-U | E72: S10L2-DL560-16GB-U | F72: 836220-B21 | G72: 1692 | H72: HPE 16GB 2Rx4 PC4-2400T-R Kit | I72: 4 | J72: 836220-B21 | K72: HPE 32GB 2Rx4 PC4-2400T-R Kit | L72: 8 | M72: 10L2-32GB-U | N72: S10L2-DL560-32GB-U | O72: 805351-B21 | P72: =$G$4*L72 -> 2560 | Q72: HP DL580 Gen9 12 DIMMs Memory Cartridge | R72: 788360-B21 | S72: 4 | T72: 512 | V72: 4 | W72: 24 | X72: 8 | Y72: 4 | Z72: 12 | AA72: 24
A73: 640 | B73: HPE 16GB 2Rx4 PC4-2400T-R Kit | C73: 4 | D73: 10L2-16GB-U | E73: S10L2-DL560-16GB-U | F73: 836220-B21 | G73: 564 | H73: HPE 16GB 2Rx4 PC4-2400T-R Kit | I73: 4 | J73: 836220-B21 | K73: HPE 32GB 2Rx4 PC4-2400T-R Kit | L73: 16 | M73: 10L2-32GB-U | N73: S10L2-DL560-32GB-U | O73: 805351-B21 | P73: =$G$4*L73 -> 5120 | Q73: HP DL580 Gen9 12 DIMMs Memory Cartridge | R73: 788360-B21 | S73: 4 | T73: 640 | V73: 4 | W73: 24 | X73: 16 | Y73: 4 | Z73: 4 | AA73: 24
A74: 768 | B74: HPE 16GB 2Rx4 PC4-2400T-R Kit | C74: 12 | D74: 10L2-16GB-U | E74: S10L2-DL560-16GB-U | F74: 836220-B21 | G74: 1692 | H74: HPE 16GB 2Rx4 PC4-2400T-R Kit | I74: 4 | J74: 836220-B21 | K74: HPE 32GB 2Rx4 PC4-2400T-R Kit | L74: 16 | M74: 10L2-32GB-U | N74: S10L2-DL560-32GB-U | O74: 805351-B21 | P74: =$G$4*L74 -> 5120 | Q74: HP DL580 Gen9 12 DIMMs Memory Cartridge | R74: 788360-B21 | S74: 4 | T74: 768 | V74: 4 | W74: 32 | X74: 16 | Y74: 4 | Z74: 12 | AA74: 32
A75: 896 | B75: HPE 16GB 2Rx4 PC4-2400T-R Kit | C75: 4 | D75: 10L2-16GB-U | E75: S10L2-DL560-16GB-U | F75: 836220-B21 | G75: 564 | H75: HPE 16GB 2Rx4 PC4-2400T-R Kit | I75: 4 | J75: 836220-B21 | K75: HPE 32GB 2Rx4 PC4-2400T-R Kit | L75: 24 | M75: 10L2-32GB-U | N75: S10L2-DL560-32GB-U | O75: 805351-B21 | P75: =$G$4*L75 -> 7680 | Q75: HP DL580 Gen9 12 DIMMs Memory Cartridge | R75: 788360-B21 | S75: 4 | T75: 896 | V75: 4 | W75: 32 | X75: 24 | Y75: 4 | Z75: 4 | AA75: 32
A76: 1024 | B76: HPE 16GB 2Rx4 PC4-2400T-R Kit | C76: 12 | D76: 10L2-16GB-U | E76: S10L2-DL560-16GB-U | F76: 836220-B21 | G76: =$G$3*C76 -> 1692 | H76: HPE 16GB 2Rx4 PC4-2400T-R Kit | I76: 4 | J76: 836220-B21 | K76: HPE 32GB 2Rx4 PC4-2400T-R Kit | L76: 24 | M76: 10L2-32GB-U | N76: S10L2-DL560-32GB-U | O76: 805351-B21 | P76: 7680 | Q76: HP DL580 Gen9 12 DIMMs Memory Cartridge | R76: 788360-B21 | S76: 4 | T76: 1024 | V76: 4 | W76: 40 | X76: 24 | Y76: 4 | Z76: 12 | AA76: 40
A77: 1152 | B77: HPE 16GB 2Rx4 PC4-2400T-R Kit | C77: 4 | D77: 10L2-16GB-U | E77: S10L2-DL560-16GB-U | F77: 836220-B21 | G77: =$G$3*C77 -> 564 | H77: HPE 16GB 2Rx4 PC4-2400T-R Kit | I77: 4 | J77: 836220-B21 | K77: HPE 32GB 2Rx4 PC4-2400T-R Kit | L77: 32 | M77: 10L2-32GB-U | N77: S10L2-DL560-32GB-U | O77: 805351-B21 | P77: =$G$4*L77 -> 10240 | Q77: HP DL580 Gen9 12 DIMMs Memory Cartridge | R77: 788360-B21 | S77: 4 | T77: 1152 | V77: 4 | W77: 40 | X77: 32 | Y77: 4 | Z77: 4 | AA77: 40
A78: 1280 | B78: HPE 16GB 2Rx4 PC4-2400T-R Kit | C78: 12 | D78: 10L2-16GB-U | E78: S10L2-DL560-16GB-U | F78: 836220-B21 | G78: =$G$3*C78 -> 1692 | H78: HPE 16GB 2Rx4 PC4-2400T-R Kit | I78: 4 | J78: 836220-B21 | K78: HPE 32GB 2Rx4 PC4-2400T-R Kit | L78: 32 | M78: 10L2-32GB-U | N78: S10L2-DL560-32GB-U | O78: 805351-B21 | P78: 10240 | Q78: HP DL580 Gen9 12 DIMMs Memory Cartridge | R78: 788360-B21 | S78: 4 | T78: 1280 | V78: 4 | W78: 48 | X78: 32 | Y78: 4 | Z78: 12 | AA78: 48
A79: 1408 | B79: HPE 16GB 2Rx4 PC4-2400T-R Kit | C79: 4 | D79: 10L2-16GB-U | E79: S10L2-DL560-16GB-U | F79: 836220-B21 | G79: =$G$3*C79 -> 564 | H79: HPE 16GB 2Rx4 PC4-2400T-R Kit | I79: 4 | J79: 836220-B21 | K79: HPE 32GB 2Rx4 PC4-2400T-R Kit | L79: 40 | M79: 10L2-32GB-U | N79: S10L2-DL560-32GB-U | O79: 805351-B21 | P79: 12800 | Q79: HP DL580 Gen9 12 DIMMs Memory Cartridge | R79: 788360-B21 | S79: 4 | T79: 1408 | V79: 4 | W79: 48 | X79: 40 | Y79: 4 | Z79: 4 | AA79: 48
A80: 1536 | B80: ="" ->  | C80: ="" ->  | D80: ="" ->  | E80: ="" ->  | F80: ="" ->  | G80: ="" ->  | H80: ="" ->  | I80: ="" ->  | J80: ="" ->  | K80: HPE 32GB 2Rx4 PC4-2400T-R Kit | L80: 48 | M80: 10L2-32GB-U | N80: S10L2-DL560-32GB-U | O80: 805351-B21 | P80: 15360 | Q80: HP DL580 Gen9 12 DIMMs Memory Cartridge | R80: 788360-B21 | S80: 4 | T80: 1536 | V80: 4 | W80: 48 | X80: 48 | Y80: 0 | Z80: 0 | AA80: 48
A81: 1792 | B81: HPE 16GB 2Rx4 PC4-2400T-R Kit | C81: 12 | D81: 10L2B-16GB | E81: S10L2-DL560-16GB-U | F81: 836220-B21 | G81: =$G$3*C81 -> 1692 | H81: HPE 16GB 2Rx4 PC4-2400T-R Kit | I81: 4 | J81: 836220-B21 | K81: HPE 32GB 2Rx4 PC4-2400T-R Kit | L81: 48 | M81: 10L2-32GB-U | N81: S10L2-DL560-32GB-U | O81: 805351-B21 | P81: =$G$4*L81 -> 15360 | Q81: HP DL580 Gen9 12 DIMMs Memory Cartridge | R81: 788360-B21 | S81: 8 | T81: =A81 -> 1792 | V81: 8 | W81: =AA81 -> 64 | X81: =IF(L81="",0,L81) -> 48 | Y81: =IF(I81="",0,I81) -> 4 | Z81: =IF(C81="",0,C81) -> 12 | AA81: =SUM(X81:Z81) -> 64
A82: 2048 | B82: HPE 16GB 2Rx4 PC4-2400T-R Kit | C82: 28 | D82: 10L2B-16GB | E82: S10L2-DL560-16GB-U | F82: 836220-B21 | G82: =$G$3*C82 -> 3948 | H82: HPE 16GB 2Rx4 PC4-2400T-R Kit | I82: 4 | J82: 836220-B21 | K82: HPE 32GB 2Rx4 PC4-2400T-R Kit | L82: 48 | M82: 10L2-32GB-U | N82: S10L2-DL560-32GB-U | O82: 805351-B21 | P82: =$G$4*L82 -> 15360 | Q82: HP DL580 Gen9 12 DIMMs Memory Cartridge | R82: 788360-B21 | S82: 8 | T82: =A82 -> 2048 | V82: 8 | W82: 80 | X82: 48 | Y82: 4 | Z82: 28 | AA82: 80
A83: 2304 | B83: HPE 16GB 2Rx4 PC4-2400T-R Kit | C83: 12 | D83: 10L2B-16GB | E83: S10L2-DL560-16GB-U | F83: 836220-B21 | G83: =$G$3*C83 -> 1692 | H83: HPE 16GB 2Rx4 PC4-2400T-R Kit | I83: 4 | J83: 836220-B21 | K83: HPE 32GB 2Rx4 PC4-2400T-R Kit | L83: 64 | M83: 10L2-32GB-U | N83: S10L2-DL560-32GB-U | O83: 805351-B21 | P83: =$G$4*L83 -> 20480 | Q83: HP DL580 Gen9 12 DIMMs Memory Cartridge | R83: 788360-B21 | S83: 8 | T83: 2304 | V83: 8 | W83: 80 | X83: 64 | Y83: 4 | Z83: 12 | AA83: 80
A84: 2560 | B84: HPE 16GB 2Rx4 PC4-2400T-R Kit | C84: 28 | D84: 10L2B-16GB | E84: S10L2-DL560-16GB-U | F84: 836220-B21 | G84: =$G$3*C84 -> 3948 | H84: HPE 16GB 2Rx4 PC4-2400T-R Kit | I84: 4 | J84: 836220-B21 | K84: HPE 32GB 2Rx4 PC4-2400T-R Kit | L84: 64 | M84: 10L2-32GB-U | N84: S10L2-DL560-32GB-U | O84: 805351-B21 | P84: =$G$4*L84 -> 20480 | Q84: HP DL580 Gen9 12 DIMMs Memory Cartridge | R84: 788360-B21 | S84: 8 | T84: 2560 | V84: 8 | W84: 96 | X84: 64 | Y84: 4 | Z84: 28 | AA84: 96
A85: 2816 | B85: HPE 16GB 2Rx4 PC4-2400T-R Kit | C85: 12 | D85: 10L2B-16GB | E85: S10L2-DL560-16GB-U | F85: 836220-B21 | G85: =$G$3*C85 -> 1692 | H85: HPE 16GB 2Rx4 PC4-2400T-R Kit | I85: 4 | J85: 836220-B21 | K85: HPE 32GB 2Rx4 PC4-2400T-R Kit | L85: 80 | M85: 10L2-32GB-U | N85: S10L2-DL560-32GB-U | O85: 805351-B21 | P85: =$G$4*L85 -> 25600 | Q85: HP DL580 Gen9 12 DIMMs Memory Cartridge | R85: 788360-B21 | S85: 8 | T85: 2816 | V85: 8 | W85: 96 | X85: 80 | Y85: 4 | Z85: 12 | AA85: 96
A86: 3072 | K86: HPE 32GB 2Rx4 PC4-2400T-R Kit | L86: 96 | M86: 10L2-32GB-U | N86: S10L2-DL560-32GB-U | O86: 805351-B21 | P86: =$G$4*L86 -> 30720 | Q86: HP DL580 Gen9 12 DIMMs Memory Cartridge | R86: 788360-B21 | S86: 8 | T86: 3072 | V86: 8 | W86: 96 | X86: 96 | Y86: 0 | Z86: 0 | AA86: 96
A89: 1CPU | B89: MEMORY C
A90: 32
A91: 64
A92: 128
A93: 160
A94: 192
A95: 256
A96: 2CPU
A97: 32
A98: 64
A99: 128
A100: 160
A101: 192
A102: 256
A103: 320
A104: 384
A105: 512
M113: 44GB8

Sheet Operating System (hidden)
A1: Operating System
A2: DL560
A3: No Operating System | B3: ="" ->  | C3: ="" ->  | D3: ="" ->  | E3: ="" ->  | F3: ="" ->  | G3: None | H3: ="" ->  | I3: ="" ->  | J3: ="" ->  | K3: ="" ->  | M3: None | N3: ="" ->  | O3: ="" ->  | P3: ="" ->  | Q3: ="" -> 
A4: Kit Windows Server 2012 R2, Standard Edition, 2 Socket, 2VM, ROK | B4: 1 | C4: 10L2-WIN1 | D4: S10L2-DL560-WIN1 | E4: 748921-B21 | F4: 540 | G4: 1-pack of Windows Server 2012 User CALs (Standard or Datacenter) | H4: 1 | I4: 10L2-CALUSER | J4: S10L2-DL560-USR | K4: 701608-A21 | L4: 24 | M4: 1-pack of Windows Server 2012 Device CALs (Standard or Datacenter) | N4: 1 | O4: 10L2-CALDEV | P4: S10L2-DL560-DEV | Q4: 701609-A21 | R4: 22
A5: Kit Windows Server 2012 R2, Datacenter Edition, 2 Socket, ROK | B5: 1 | C5: 10L2-WINDC1 | D5: S10L2-DL560-WINDC1 | E5: 748922-B21 | F5: 2440 | G5: 1-pack of Windows Server 2012 User CALs (Standard or Datacenter) | H5: 1 | I5: 10L2-CALUSER | J5: S10L2-DL560-USR | K5: 701608-A21 | L5: 24 | M5: 1-pack of Windows Server 2012 Device CALs (Standard or Datacenter) | N5: 1 | O5: 10L2-CALDEV | P5: S10L2-DL560-DEV | Q5: 701609-A21 | R5: 22
A6: CentOS 7.0 | B6: 1 | C6: 10L2-LINUX | D6: S10L2-DL560-LINUX | E6: ="" ->  | F6: 45 | G6: None | H6: ="" ->  | I6: ="" ->  | J6: ="" ->  | K6: ="" ->  | M6: None | N6: ="" ->  | O6: ="" ->  | P6: ="" ->  | Q6: ="" -> 
A9: R730xd
A10: No Operating System | B10: ="" ->  | C10: ="" ->  | D10: ="" ->  | E10: ="" ->  | F10: ="" ->  | G10: None | H10: ="" ->  | I10: ="" ->  | J10: ="" ->  | K10: ="" ->  | M10: None | N10: ="" ->  | O10: ="" ->  | P10: ="" ->  | Q10: ="" -> 
A11: Kit Windows Server 2012 R2, Standard Edition, 2 Socket, 2VM, ROK | B11: 1 | C11: 10L2-WIN1 | D11: S10L2-DL580-WIN1 | E11: 748921-B21 | F11: 540 | G11: 1-pack of Windows Server 2012 User CALs (Standard or Datacenter) | H11: 1 | I11: 10L2-CALUSER | J11: S10L2-DL580-USR | K11: 701608-A21 | L11: 24 | M11: 1-pack of Windows Server 2012 Device CALs (Standard or Datacenter) | N11: 1 | O11: 10L2-CALDEV | P11: S10L2-DL580-DEV | Q11: 701609-A21 | R11: 22
A12: Kit Windows Server 2012 R2, Datacenter Edition, 2 Socket, ROK | B12: 1 | C12: 10L2-WINDC1 | D12: S10L2-DL580-WINDC1 | E12: 748922-B21 | F12: 2440 | G12: 1-pack of Windows Server 2012 User CALs (Standard or Datacenter) | H12: 1 | I12: 10L2-CALUSER | J12: S10L2-DL580-USR | K12: 701608-A21 | L12: 24 | M12: 1-pack of Windows Server 2012 Device CALs (Standard or Datacenter) | N12: 1 | O12: 10L2-CALDEV | P12: S10L2-DL580-DEV | Q12: 701609-A21 | R12: 22
A13: CentOS 7.0 | B13: 1 | C13: 10L2-LINUX | D13: S10L2-DL580-LINUX | E13: ="" ->  | F13: 45 | G13: None | H13: ="" ->  | I13: ="" ->  | J13: ="" ->  | K13: ="" ->  | M13: None | N13: ="" ->  | O13: ="" ->  | P13: ="" ->  | Q13: ="" -> 
A16: T630
A17: No Operating System | B17: ="" ->  | C17: ="" ->  | D17: ="" ->  | E17: [611-BBBF] | F17: ="" ->  | G17: None | H17: ="" ->  | I17: ="" ->  | J17: ="" ->  | K17: ="" ->  | M17: None | N17: ="" ->  | O17: ="" ->  | P17: ="" ->  | Q17: ="" -> 
A18: Kit Windows Server 2012, Standard Edition, 2 Socket, 2VM, ROK, COA + Media | B18: 1 | C18: 10L1-WIN | D18: S10L1-T630-WIN | E18: [638-BBBD] | F18: 505 | G18: 1-pack of Windows Server 2012 User CALs (Standard or Datacenter) | H18: 1 | I18: 10L1-CALUSER | J18: S10L1-T630-USR | K18: [618-10778] | L18: 25 | M18: 1-pack of Windows Server 2012 Device CALs (Standard or Datacenter) | N18: 1 | O18: 10L1-CALDEV | P18: S10L1-T630-DEV | Q18: [618-10777] | R18: 25
A19: CentOS 7.0 | B19: 1 | C19: 10L1-LINUX | D19: S10L1-T630-LINUX | E19: ="" ->  | F19: 45 | G19: None | H19: ="" ->  | I19: ="" ->  | J19: ="" ->  | K19: ="" ->  | M19: None | N19: ="" ->  | O19: ="" ->  | P19: ="" ->  | Q19: ="" -> 

Sheet HDD (hidden)
A1: Hard Drives
A2: DL560
A3: HP 300GB 12G SAS 15K 2.5in SC ENT HDD | C3: 10L2-HDD300GB | D3: S10L2-DL560-HDD300 | E3: 759208-B21 | F3: 140
A4: HP 1TB 6G SAS 7.2K 2.5in SC MDL HDD | C4: 10L2-HDD1TB | D4: S10L2-DL560-HDD1000 | E4: 652749-B21 | F4: 278
B5: DL560 | C5: DL560 2 | D5: DL560 3
A6: HDD max | B6: 8 | C6: 8 | D6: 8
A7: HDD 300GB Base | B7: 2 | C7: 2 | D7: 2 | E7: Hot Spare for 300GB HDD | F7: ='Server10 Lotto2 DL560'!$C$66 -> No | G7: =IF(F7="Yes",1,0) -> 0 | H7: ='Server10 Lotto2 DL560 2'!$C$66 -> No | I7: =IF(H7="Yes",1,0) -> 0 | J7: ='Server10 Lotto2 DL560 3'!$C$66 -> No | K7: =IF(J7="Yes",1,0) -> 0
A8: HDD 300GB Selected | B8: ='Server10 Lotto2 DL560'!$C$60 -> 0 | C8: ='Server10 Lotto2 DL560 2'!$C$60 -> 0 | D8: ='Server10 Lotto2 DL560 2'!$C$60 -> 0
A9: HP 300GB 12G SAS 15K 2.5in SC ENT HDD | B9: 0 | C9: 0 | D9: 0
B10: 1 | C10: 1 | D10: 1
B11: 2 | C11: 2 | D11: 2
B12: 3 | C12: 3 | D12: 3
B13: 4 | C13: 4 | D13: 4
B14: 5 | C14: 5 | D14: 5
B15: 6 | C15: 6 | D15: 6
A16: HDD max | B16: 8 | C16: 8 | D16: 8
A17: HDD 300GB | B17: =B7+B8 -> 2 | C17: =C7+C8 -> 2 | D17: 2
A18: HDD 1TB Selected | B18: ='Server10 Lotto2 DL560'!$C$62 -> 0 | C18: ='Server10 Lotto2 DL560 2'!$C$62 -> 0 | D18: ='Server10 Lotto2 DL560 3'!$C$62 -> 0 | E18: Hot Spare for 1TB HDD | F18: ='Server10 Lotto2 DL560'!$C$70 -> No | G18: =IF(F18="Yes",1,0) -> 0 | H18: ='Server10 Lotto2 DL560 2'!$C$70 -> No | I18: =IF(H18="Yes",1,0) -> 0 | J18: ='Server10 Lotto2 DL560 3'!$C$70 -> No | K18: =IF(J18="Yes",1,0) -> 0
A19: HP 1TB 6G SAS 7.2K 2.5in SC MDL HDD | B19: =B$6-B$7-B$8 -> 6 | C19: =C$6-C$7-C$8 -> 6 | D19: 6
B20: =IF(B19-1<1,0,B19-1) -> 5 | C20: 5 | D20: 5
B21: 4 | C21: 4 | D21: 4
B22: 3 | C22: 3 | D22: 3
B23: 2 | C23: 2 | D23: 2
B24: 1 | C24: 1 | D24: 1
B25: 0 | C25: 0 | D25: 0
B26: 0
B27: 0
A29: Hot Spare | B29: Yes
B30: No
A32: RAID Configuration | D32: HDD 300GB DL560 | F32: HDD 1TB DL560 | H32: HDD 300GB DL560 2 | J32: HDD 1TB DL560 2 | L32: HDD 300GB DL560 3 | N32: HDD 1TB DL560 3
A33: RAID Personalizzato | B33: =IF($B$106<=8,0,"") -> 0 | C33: ="" ->  | D33: =IF($G$7=0,A33,"") -> RAID Personalizzato | E33: =IF($G$7=0,C33,"") ->  | F33: =IF($G$18=0,A33,"") -> RAID Personalizzato | G33: =IF($G$18=0,C33,"") ->  | H33: =IF(I7=0,$A$33,"") -> RAID Personalizzato | I33: =IF(I7=0,$C$33,"") ->  | J33: =IF(I18=0,$A$33,"") -> RAID Personalizzato | K33: =IF(I18=0,$C$33,"") ->  | L33: =IF(K7=0,$A$33,"") -> RAID Personalizzato | M33: =IF(K7=0,$C$33,"") ->  | N33: =IF(K18=0,$A$33,"") -> RAID Personalizzato | O33: =IF(K18=0,$C$33,"") -> 
A34: RAID non Configurato (1-8 HDDs) | B34: 1 | C34: ="" ->  | D34: =IF($G$7=0,A34,"") -> RAID non Configurato (1-8 HDDs) | E34: =IF($G$7=0,C34,"") ->  | F34: =IF($G$18=0,A34,"") -> RAID non Configurato (1-8 HDDs) | G34: =IF($G$18=0,C34,"") ->  | H34: =IF(I7=0,$A$34,"") -> RAID non Configurato (1-8 HDDs) | I34: =IF(I7=0,$C$34,"") ->  | J34: =IF(I18=0,$A$34,"") -> RAID non Configurato (1-8 HDDs) | K34: =IF(I18=0,$C$34,"") ->  | L34: =IF(K7=0,$A$34,"") -> RAID non Configurato (1-8 HDDs) | M34: =IF(K7=0,$C$34,"") ->  | N34: =IF(K18=0,$A$34,"") -> RAID non Configurato (1-8 HDDs) | O34: =IF(K18=0,$C$34,"") -> 
A35: RAID 0 (1-8 HDDs) | B35: 1 | C35: ="" ->  | D35: =IF($G$7=0,A35,"") -> RAID 0 (1-8 HDDs) | E35: =IF($G$7=0,C35,"") ->  | F35: =IF($G$18=0,A35,"") -> RAID 0 (1-8 HDDs) | G35: =IF($G$18=0,C35,"") ->  | H35: =IF(I7=0,$A$35,"") -> RAID 0 (1-8 HDDs) | I35: =IF(I7=0,$C$35,"") ->  | J35: =IF(I18=0,$A$35,"") -> RAID 0 (1-8 HDDs) | K35: =IF(I18=0,$C$35,"") ->  | L35: =IF(K7=0,$A$35,"") -> RAID 0 (1-8 HDDs) | M35: =IF(K7=0,$C$35,"") ->  | N35: =IF(K18=0,$A$35,"") -> RAID 0 (1-8 HDDs) | O35: =IF(K18=0,$C$35,"") -> 
A36: RAID 1 (2 HDDs) | B36: 1 | C36: ="" ->  | D36: =IF($B$7+$B$8-$G$7=2,A36,"") -> RAID 1 (2 HDDs) | E36: =IF($B$7+$B$8-$G$7=2,C36,"") ->  | F36: =IF($B$18-$G$18=2,A36,"") ->  | G36: =IF($B$18-$G$18=2,C36,"") ->  | H36: =IF($C$7+$C$8-I7=2,$A$36,"") -> RAID 1 (2 HDDs) | I36: =IF($C$7+$C$8-I7=2,$C$36,"") ->  | J36: =IF($C$18-I18=2,A36,"") ->  | K36: =IF($C$18-I18=2,$C$36,"") ->  | L36: =IF($C$7+$C$8-K7=2,$A$36,"") -> RAID 1 (2 HDDs) | M36: =IF($C$7+$C$8-K7=2,$C$36,"") ->  | N36: =IF($C$18-M18=2,E36,"") ->  | O36: =IF($D$18-K18=2,$C$36,"") -> 
A37: RAID 5 (da 3 a 10 HDDs) | B37: 1 | C37: ="" ->  | D37: =IF($B$7+$B$8-$G$7>=3,A37,"") ->  | E37: =IF($B$7+$B$8-$G$7>=3,C37,"") ->  | F37: =IF($B$18-$G$18>=3,A37,"") ->  | G37: =IF($B$18-$G$18>=3,C37,"") ->  | H37: =IF($C$7+$C$8-I7>=3,$A$37,"") ->  | I37: =IF($C$7+$C$8-I7>=3,$C$37,"") ->  | J37: =IF($C$18-I18>=3,$A$37,"") ->  | K37: =IF($C$18-I18>=3,$C$37,"") ->  | L37: =IF($D$7+$D$8-K7>=3,$A$37,"") ->  | M37: =IF($D$7+$D$8-K7>=3,$C$37,"") ->  | N37: =IF($D$18-K18>=3,$A$37,"") ->  | O37: =IF($D$18-K18>=3,$C$37,"") -> 
A38: RAID 10 (4-8 HDDs in pairs) | B38: 1 | C38: ="" ->  | D38: =IF($B$7+$B$8-$G$7=4,A38,"") ->  | E38: =IF($B$7+$B$8-$G$7=4,C38,"") ->  | F38: =IF($B$18-$G$18=4,A38,"") ->  | G38: =IF($B$18-$G$18=4,C38,"") ->  | H38: =IF($C$7+$C$8-I7=4,$A$38,"") ->  | I38: =IF($C$7+$C$8-I7=4,$C$38,"") ->  | J38: =IF($C$18-I18=4,$A$38,"") ->  | K38: =IF($C$18-I18=4,$C$38,"") ->  | L38: =IF($D$7+$D$8-K7=4,$A$38,"") ->  | M38: =IF($D$7+$D$8-K7=4,$C$38,"") ->  | N38: =IF($D$18-K18=4,$A$38,"") ->  | O38: =IF($D$18-K18=4,$C$38,"") -> 
A39: RAID 1+RAID 1 (2 + 2 HDDs) | B39: 1 | C39: ="" ->  | D39: =IF($B$7+$B$8-$G$7=4,A39,"") ->  | E39: =IF($B$7+$B$8-$G$7=4,C39,"") ->  | F39: =IF($B$18-$G$18=4,A39,"") ->  | G39: =IF($B$18-$G$18=4,C39,"") ->  | H39: =IF($C$7+$C$8-I7=4,$A$39,"") ->  | I39: =IF($C$7+$C$8-I7=4,$C$39,"") ->  | J39: =IF($C$18-I18=4,A39,"") ->  | K39: =IF($C$18-I18=4,$C$39,"") ->  | L39: =IF($D$7+$D$8-K7=4,$A$39,"") ->  | M39: =IF($D$7+$D$8-K7=4,$C$39,"") ->  | N39: =IF($D$18-K18=4,A39,"") ->  | O39: =IF($D$18-K18=4,$C$39,"") -> 
A40: RAID 1+RAID 5 (2 + 3-8 HDDs) | B40: 1 | C40: ="" ->  | D40: =IF($B$7+$B$8-$G$7>=5,A40,"") ->  | E40: =IF($B$7+$B$8-$G$7>=5,C40,"") ->  | F40: =IF($B$18-$G$18>=5,A40,"") ->  | G40: =IF($B$18-$G$18>=5,C40,"") ->  | H40: =IF($C$7+$C$8-I7>=5,$A$40,"") ->  | I40: =IF($C$7+$C$8-I7>=5,$C$40,"") ->  | J40: =IF($C$18-I18>=5,$A$40,"") ->  | K40: =IF($C$18-I18>=5,$C$40,"") ->  | L40: =IF($D$7+$D$8-K7>=5,$A$40,"") ->  | M40: =IF($D$7+$D$8-K7>=5,$C$40,"") ->  | N40: =IF($D$18-K18>=5,$A$40,"") ->  | O40: =IF($D$18-K18>=5,$C$40,"") -> 
A41: RAID 1 + RAID 10 (2 + 4 HDDs in pairs) | B41: 1 | C41: ="" ->  | D41: =IF($B$7+$B$8-$G$7=6,A41,"") ->  | E41: =IF($B$7+$B$8-$G$7=6,C41,"") ->  | F41: =IF($B$18-$G$18=6,A41,"") ->  | G41: =IF($B$18-$G$18=6,C41,"") ->  | H41: =IF($C$7+$C$8-I7=6,$A$41,"") ->  | I41: =IF($C$7+$C$8-I7=6,$C$41,"") ->  | J41: =IF($C$18-I18=6,A41,"") ->  | K41: =IF($C$18-I18=6,$C$41,"") ->  | L41: =IF($D$7+$D$8-M7=6,$A$41,"") ->  | M41: =IF($D$7+$D$8-M7=6,$C$41,"") ->  | N41: =IF($D$18-K18=6,A41,"") ->  | O41: =IF($D$18-K18=6,$C$41,"") -> 
A43: R730xd
A44: HP 300GB 12G SAS 15K 2.5in SC ENT HDD | C44: 10L2-HDD300GB | D44: S10L2-DL580-HDD300 | E44: 759208-B21 | F44: 140
A45: HP 1TB 6G SAS 7.2K 2.5in SC MDL HDD | C45: 10L2-HDD1TB | D45: S10L2-DL580-HDD1000 | E45: 652749-B21 | F45: 278
B46: ='Server10 Lotto2 DL580'!$C$66 -> No | C46: ='Server10 Lotto2 DL580 2'!$C$66 -> No | D46: ='Server10 Lotto2 DL580 3'!$C$66 -> No
A47: HDD max | B47: 10 | C47: 10 | D47: 10
A48: HDD 300GB Base | B48: 2 | C48: 2 | D48: 2
A49: Hot Spare for 300GB HDD | B49: =IF(B46="Yes",1,0) -> 0 | C49: =IF(C46="Yes",1,0) -> 0 | D49: =IF(D46="Yes",1,0) -> 0
A50: HDD 300GB Selected | B50: ='Server10 Lotto2 DL580'!$C$60 -> 0 | C50: ='Server10 Lotto2 DL580 2'!$C$60 -> 0 | D50: ='Server10 Lotto2 DL580 3'!$C$60 -> 0
A51: HP 300GB 12G SAS 15K 2.5in SC ENT HDD | B51: 0 | C51: 0 | D51: 0
B52: 1 | C52: 1 | D52: 1
B53: 2 | C53: 2 | D53: 2
B54: 3 | C54: 3 | D54: 3
B55: 4 | C55: 4 | D55: 4
B56: 5 | C56: 5 | D56: 5
B57: 6 | C57: 6 | D57: 6
B58: 7 | C58: 7 | D58: 7
B59: 8 | C59: 8 | D59: 8
B66: ='Server10 Lotto2 DL580'!$C$70 -> No | C66: ='Server10 Lotto2 DL580 2'!$C$70 -> No | D66: ='Server10 Lotto2 DL580 3'!$C$70 -> No
A67: HDD max | B67: 10 | C67: 10 | D67: 10
A68: HDD 300GB | B68: =B48+B50 -> 2 | C68: =C48+C50 -> 2 | D68: =D48+D50 -> 2
A69: Hot Spare for 1TB HDD | B69: =IF(B66="Yes",1,0) -> 0 | C69: =IF(C66="Yes",1,0) -> 0 | D69: =IF(D66="Yes",1,0) -> 0
A70: HDD 1TB Selected | B70: ='Server10 Lotto2 DL580'!$C$62 -> 0 | C70: ='Server10 Lotto2 DL580 2'!$C$62 -> 0 | D70: ='Server10 Lotto2 DL580 3'!$C$62 -> 0
A71: HP 1TB 6G SAS 7.2K 2.5in SC MDL HDD | B71: =$B$67-$B$68-$B$70 -> 8 | C71: =$C$67-$C$68-$C$70 -> 8 | D71: =$D$67-$D$68-$D$70 -> 8
B72: =IF(B71-1<1,0,B71-1) -> 7 | C72: 7 | D72: =IF(D71-1<1,0,D71-1) -> 7
B73: 6 | C73: 6 | D73: =IF(D72-1<1,0,D72-1) -> 6
B74: 5 | C74: 5 | D74: =IF(D73-1<1,0,D73-1) -> 5
B75: 4 | C75: 4 | D75: =IF(D74-1<1,0,D74-1) -> 4
B76: 3 | C76: 3 | D76: =IF(D75-1<1,0,D75-1) -> 3
B77: 2 | C77: 2 | D77: =IF(D76-1<1,0,D76-1) -> 2
B78: 1 | C78: 1 | D78: =IF(D77-1<1,0,D77-1) -> 1
B79: 0 | C79: 0 | D79: =IF(D78-1<1,0,D78-1) -> 0
A89: RAID Configuration | D89: HDD 300GB R730xd | F89: HDD 1TB R730xd | H89: HDD 300GB R730xd 2 | J89: HDD 1TB R730xd 2 | L89: HDD 300GB R730xd 3 | N89: HDD 1TB R730xd 3
A90: RAID Personalizzato | B90: =IF($B$106<=8,0,"") -> 0 | C90: [780-BBJC] | D90: =IF($B$49=0,A90,"") -> RAID Personalizzato | E90: =IF($B$49=0,C90,"") -> [780-BBJC] | F90: =IF($B$69=0,A90,"") -> RAID Personalizzato | G90: =IF($B$69=0,C90,"") -> [780-BBJC] | H90: =IF($C$49=0,A90,"") -> RAID Personalizzato | I90: =IF($C$49=0,C90,"") -> [780-BBJC] | J90: =IF($C$69=0,A90,"") -> RAID Personalizzato | K90: =IF($C$69=0,C90,"") -> [780-BBJC] | L90: =IF($D$49=0,A90,"") -> RAID Personalizzato | M90: =IF($D$49=0,C90,"") -> [780-BBJC] | N90: =IF($D$69=0,A90,"") -> RAID Personalizzato | O90: =IF($D$69=0,C90,"") -> [780-BBJC]
A91: RAID non Configurato (1-8 HDDs) | B91: 1 | C91: [780-BBJD] | D91: =IF($B$49=0,A91,"") -> RAID non Configurato (1-8 HDDs) | E91: =IF($B$49=0,C91,"") -> [780-BBJD] | F91: =IF($B$69=0,A91,"") -> RAID non Configurato (1-8 HDDs) | G91: =IF($B$69=0,C91,"") -> [780-BBJD] | H91: =IF($C$49=0,A91,"") -> RAID non Configurato (1-8 HDDs) | I91: =IF($C$49=0,C91,"") -> [780-BBJD] | J91: =IF($C$69=0,A91,"") -> RAID non Configurato (1-8 HDDs) | K91: =IF($C$69=0,C91,"") -> [780-BBJD] | L91: =IF($D$49=0,A91,"") -> RAID non Configurato (1-8 HDDs) | M91: =IF($D$49=0,C91,"") -> [780-BBJD] | N91: =IF($D$69=0,A91,"") -> RAID non Configurato (1-8 HDDs) | O91: =IF($D$69=0,C91,"") -> [780-BBJD]
A92: RAID 0 (1-8 HDDs) | B92: 1 | C92: [780-BBJF] | D92: =IF($B$49=0,A92,"") -> RAID 0 (1-8 HDDs) | E92: =IF($B$49=0,C92,"") -> [780-BBJF] | F92: =IF($B$69=0,A92,"") -> RAID 0 (1-8 HDDs) | G92: =IF($B$69=0,C92,"") -> [780-BBJF] | H92: =IF($C$49=0,A92,"") -> RAID 0 (1-8 HDDs) | I92: =IF($C$49=0,C92,"") -> [780-BBJF] | J92: =IF($C$69=0,A92,"") -> RAID 0 (1-8 HDDs) | K92: =IF($C$69=0,C92,"") -> [780-BBJF] | L92: =IF($D$49=0,A92,"") -> RAID 0 (1-8 HDDs) | M92: =IF($D$49=0,C92,"") -> [780-BBJF] | N92: =IF($D$69=0,A92,"") -> RAID 0 (1-8 HDDs) | O92: =IF($D$69=0,C92,"") -> [780-BBJF]
A93: RAID 1 (2 HDDs) | B93: 1 | C93: [780-BBJK] | D93: =IF($B$48+$B$50-$B$49=2,A93,"") -> RAID 1 (2 HDDs) | E93: =IF($B$48+$B$50-$B$49=2,C93,"") -> [780-BBJK] | F93: =IF($B$70-$B$69=2,A93,"") ->  | G93: =IF($B$70-$B$69=2,C93,"") ->  | H93: =IF($C$48+$C$50-$C$49=2,A93,"") -> RAID 1 (2 HDDs) | I93: =IF($C$48+$C$50-$C$49=2,C93,"") -> [780-BBJK] | J93: =IF($C$70-$C$69=2,A93,"") ->  | K93: =IF($C$70-$C$69=2,C93,"") ->  | L93: =IF($D$48+$D$50-$D$49=2,A93,"") -> RAID 1 (2 HDDs) | M93: =IF($D$48+$D$50-$D$49=2,C93,"") -> [780-BBJK] | N93: =IF($D$70-$D$69=2,A93,"") ->  | O93: =IF($D$70-$D$69=2,C93,"") -> 
A94: RAID 5 (da 3 a 10 HDDs) | B94: 1 | C94: [780-BBJL] | D94: =IF($B$48+$B$50-$B$49>=3,A94,"") ->  | E94: =IF($B$48+$B$50-$B$49>=3,C94,"") ->  | F94: =IF($B$70-$B$69>=3,A94,"") ->  | G94: =IF($B$70-$B$69>=3,C94,"") ->  | H94: =IF($C$48+$C$50-$C$49>=3,A94,"") ->  | I94: =IF($C$48+$C$50-$C$49>=3,C94,"") ->  | J94: =IF($C$70-$C$69>=3,A94,"") ->  | K94: =IF($C$70-$C$69>=3,C94,"") ->  | L94: =IF($D$48+$D$50-$D$49>=3,A94,"") ->  | M94: =IF($D$48+$D$50-$D$49>=3,C94,"") ->  | N94: =IF($D$70-$D$69>=3,A94,"") ->  | O94: =IF($D$70-$D$69>=3,C94,"") -> 
A95: RAID 10 (4-8 HDDs in pairs) | B95: 1 | C95: [780-BBJN] | D95: =IF($B$48+$B$50-$B$49=4,A95,"") ->  | E95: =IF($B$48+$B$50-$B$49=4,C95,"") ->  | F95: =IF($B$70-$B$69=4,A95,"") ->  | G95: =IF($B$70-$B$69=4,C95,"") ->  | H95: =IF($C$48+$C$50-$C$49=4,A95,"") ->  | I95: =IF($C$48+$C$50-$C$49=4,C95,"") ->  | J95: =IF($C$70-$C$69=4,A95,"") ->  | K95: =IF($C$70-$C$69=4,C95,"") ->  | L95: =IF($D$48+$D$50-$D$49=4,A95,"") ->  | M95: =IF($D$48+$D$50-$D$49=4,C95,"") ->  | N95: =IF($D$70-$D$69=4,A95,"") ->  | O95: =IF($D$70-$D$69=4,C95,"") -> 
A96: RAID 1+RAID 1 (2 + 2 HDDs) | B96: 1 | C96: [780-BBJO] | D96: =IF($B$48+$B$50-$B$49=4,A96,"") ->  | E96: =IF($B$48+$B$50-$B$49=4,C96,"") ->  | F96: =IF($B$70-$B$69=4,A96,"") ->  | G96: =IF($B$70-$B$69=4,C96,"") ->  | H96: =IF($C$48+$C$50-$C$49=4,A96,"") ->  | I96: =IF($C$48+$C$50-$C$49=4,C96,"") ->  | J96: =IF($C$70-$C$69=4,A96,"") ->  | K96: =IF($C$70-$C$69=4,C96,"") ->  | L96: =IF($D$48+$D$50-$D$49=4,A96,"") ->  | M96: =IF($D$48+$D$50-$D$49=4,C96,"") ->  | N96: =IF($D$70-$D$69=4,A96,"") ->  | O96: =IF($D$70-$D$69=4,C96,"") -> 
A97: RAID 1+RAID 5 (2 + 3-8 HDDs) | B97: 1 | C97: [780-BBJP] | D97: =IF($B$48+$B$50-$B$49>=5,A97,"") ->  | E97: =IF($B$48+$B$50-$B$49>=5,C97,"") ->  | F97: =IF($B$70-$B$69>=5,A97,"") ->  | G97: =IF($B$70-$B$69>=5,C97,"") ->  | H97: =IF($C$48+$C$50-$C$49>=5,A97,"") ->  | I97: =IF($C$48+$C$50-$C$49>=5,C97,"") ->  | J97: =IF($C$70-$C$69>=5,A97,"") ->  | K97: =IF($C$70-$C$69>=5,C97,"") ->  | L97: =IF($D$48+$D$50-$D$49>=5,A97,"") ->  | M97: =IF($D$48+$D$50-$D$49>=5,C97,"") ->  | N97: =IF($D$70-$D$69>=5,A97,"") ->  | O97: =IF($D$70-$D$69>=5,C97,"") -> 
A98: RAID 1 + RAID 10 (2 + 4 HDDs in pairs) | B98: 1 | C98: [780-BBJQ] | D98: =IF($B$48+$B$50-$B$49=6,A98,"") ->  | E98: =IF($B$48+$B$50-$B$49=6,C98,"") ->  | F98: =IF($B$70-$B$69=6,A98,"") ->  | G98: =IF($B$70-$B$69=6,C98,"") ->  | H98: =IF($C$48+$C$50-$C$49=6,A98,"") ->  | I98: =IF($C$48+$C$50-$C$49=6,C98,"") ->  | J98: =IF($C$70-$C$69=6,A98,"") ->  | K98: =IF($C$70-$C$69=6,C98,"") ->  | L98: =IF($D$48+$D$50-$D$49=6,A98,"") ->  | M98: =IF($D$48+$D$50-$D$49=6,C98,"") ->  | N98: =IF($D$70-$D$69=6,A98,"") ->  | O98: =IF($D$70-$D$69=6,C98,"") -> 
A105: T630
A106: 300GB 10K RPM SAS 12Gbps 2.5in Hot-plug Hard Drive,CusKit | C106: 10L1-HDD300GB-T | D106: S10L1-T630-HDD300 | E106: [400-AJOQ] | F106: 91
A107: 1TB 7.2K RPM NLSAS 6Gbps 2.5in Hot-plug Hard Drive,13G,CusKit | C107: 10L1-HDD1TB | D107: S10L1-T630-HDD1000 | E107: [400-AEFF] | F107: 296
A109: HDD max | B109: 32
A110: HDD 300GB Base | B110: 2
A111: HDD 300GB Selected | B111: =#REF! -> 
A112: 300GB 10K RPM SAS 12Gbps 2.5in Hot-plug Hard Drive,CusKit | B112: 0 | D112: Hot Spare for 300GB HDD | E112: =#REF! ->  | F112: =IF(E112="Yes",1,0) -> 
B113: 1
B114: 2
B115: 3
B116: 4
B117: 5
B118: 6
B119: 7
B120: 8
B121: 9
B122: 10
B123: 11
B124: 12
B125: 13
B126: 14
B127: 15
B128: 16
B129: 17
B130: 18
B131: 19
B132: 20
B133: 21
B134: 22
B135: 23
B136: 24
B137: 25
B138: 26
B139: 27
B140: 28
B141: 29
B142: 30
A143: HDD max | B143: 32
A144: HDD 300GB | B144: =B110+B111 -> 
A145: HDD 1TB Selected | B145: =#REF! ->  | D145: Hot Spare for 1TB HDD | E145: =#REF! ->  | F145: =IF(E145="Yes",1,0) -> 
A146: 1TB 7.2K RPM NLSAS 6Gbps 2.5in Hot-plug Hard Drive,13G,CusKit | B146: =$B$143-$B$144-$B$145 -> 
B147: =IF(B146-1<1,0,B146-1) -> 
B155: =IF(B154-1<1,0,B154-1) -> 
A178: RAID Configuration | D178: HDD 300GB | F178: HDD 1TB
A179: C1 - No RAID for H330 (1-8 HDDs) | B179: =IF($B$106<=8,0,"") -> 0 | C179: [780-BBJC] | D179: =IF($F$112=0,A179,"") ->  | E179: =IF($F$112=0,C179,"") ->  | F179: =IF($F$145=0,A179,"") ->  | G179: =IF($F$145=0,C179,"") -> 
A180: C10 - Unconfigured RAID for H330 (1-8 HDDs) | B180: 1 | C180: [780-BBJD] | D180: =IF($F$112=0,A180,"") ->  | E180: =IF($F$112=0,C180,"") ->  | F180: =IF($F$145=0,A180,"") ->  | G180: =IF($F$145=0,C180,"") -> 
A181: C2 - RAID 0 for H330 (1-8 HDDs) | B181: 1 | C181: [780-BBJF] | D181: =IF($F$112=0,A181,"") ->  | E181: =IF($F$112=0,C181,"") ->  | F181: =IF($F$145=0,A181,"") ->  | G181: =IF($F$145=0,C181,"") -> 
A182: C3 - RAID 1 for H330 (2 HDDs) | B182: 1 | C182: [780-BBJK] | D182: =IF($B$110+$B$111-$F$112=2,A182,"") ->  | E182: =IF($B$110+$B$111-$F$112=2,C182,"") ->  | F182: =IF($B$145-$F$145=2,A182,"") ->  | G182: =IF($B$145-$F$145=2,C182,"") -> 
A183: C4 - RAID 5 for H330 (3-8 HDDs) | B183: 1 | C183: [780-BBJL] | D183: =IF($B$110+$B$111-$F$112>=3,A183,"") ->  | E183: =IF($B$110+$B$111-$F$112>=3,C183,"") ->  | F183: =IF($B$145-$F$145>=3,A183,"") ->  | G183: =IF($B$145-$F$145>=3,C183,"") -> 
A184: C6 - RAID 10 forH330 (4-8 HDDs in pairs) | B184: 1 | C184: [780-BBJN] | D184: =IF($B$110+$B$111-$F$112=4,A184,"") ->  | E184: =IF($B$110+$B$111-$F$112=4,C184,"") ->  | F184: =IF($B$145-$F$145=4,A184,"") ->  | G184: =IF($B$145-$F$145=4,C184,"") -> 
A185: C7 - RAID 1+RAID 1 for H330 (2 + 2 HDDs) | B185: 1 | C185: [780-BBJO] | D185: =IF($B$110+$B$111-$F$112=4,A185,"") ->  | E185: =IF($B$110+$B$111-$F$112=4,C185,"") ->  | F185: =IF($B$145-$F$145=4,A185,"") ->  | G185: =IF($B$145-$F$145=4,C185,"") -> 
A186: C8 - RAID 1+RAID 5 for H330 (2 + 3-8 HDDs) | B186: 1 | C186: [780-BBJP] | D186: =IF($B$110+$B$111-$F$112>=5,A186,"") ->  | E186: =IF($B$110+$B$111-$F$112>=5,C186,"") ->  | F186: =IF($B$145-$F$145>=5,A186,"") ->  | G186: =IF($B$145-$F$145>=5,C186,"") -> 
A187: C9 - RAID 1+RAID 10 for H330 (2 + 4 HDDs in pairs) | B187: 1 | C187: [780-BBJQ] | D187: =IF($B$110+$B$111-$F$112=6,A187,"") ->  | E187: =IF($B$110+$B$111-$F$112=6,C187,"") ->  | F187: =IF($B$145-$F$145=6,A187,"") ->  | G187: =IF($B$145-$F$145=6,C187,"") -> 

Sheet PCI (hidden)
A1: Additional Card for PCIe Slot 1
A2: DL560
A3: None | B3: ="" ->  | C3: ="" ->  | D3: ="" ->  | E3: ="" ->  | F3: ="" ->  | G3: ="" ->  | H3: 0 | I3: ="" -> 
A4: HPE Ethernet 1Gb 2P 332T Adptr | B4: 1 | C4: 10L2-LAN1GB | D4: S10L1-DL560-LAN1 | E4: 615732-B21 | F4: 35 | H4: 0
A5: HPE Ethernet 10Gb 2P 530SFP+ Adptr | B5: 1 | C5: 10L2-LAN10GB | D5: S10L1-DL560-LAN10 | E5: 652503-B21 | F5: 716 | G5: HPE BLc 10G SFP+ SR Transceiver | H5: 2 | I5: 455883-B21
A6: HPE StoreFabric CN1200E 10Gb CNA | B6: 1 | C6: 10L2-CNA10 | D6: S10L1-DL560-CNA10 | E6: E7Y06A | F6: 778 | G6: HPE BLc 10G SFP+ SR Transceiver | H6: 2 | I6: 455883-B21
A7: HPE 82Q 8Gb Dual Port PCI-e FC HBA | B7: 1 | C7: 10L2-FC | D7: S10L1-DL560-FC | E7: AJ764A | F7: 889 | H7: 0
A9: Additional Card for PCIe Slot 2
A10: DL560
A11: None | H11: 0
A12: HPE Ethernet 1Gb 2P 332T Adptr | B12: 1 | C12: 10L2-LAN1GB | D12: S10L1-DL560-LAN1 | E12: 615732-B21 | F12: 35 | H12: 0
A13: HPE Ethernet 10Gb 2P 530SFP+ Adptr | B13: 1 | C13: 10L2-LAN10GB | D13: S10L1-DL560-LAN10 | E13: 652503-B21 | F13: 716 | G13: HPE BLc 10G SFP+ SR Transceiver | H13: 2 | I13: 455883-B21
A14: HPE StoreFabric CN1200E 10Gb CNA | B14: 1 | C14: 10L2-CNA10 | D14: S10L1-DL560-CNA10 | E14: E7Y06A | F14: 778 | G14: HPE BLc 10G SFP+ SR Transceiver | H14: 2 | I14: 455883-B21
A15: HPE 82Q 8Gb Dual Port PCI-e FC HBA | B15: 1 | C15: 10L2-FC | D15: S10L1-DL560-FC | E15: AJ764A | F15: 889 | H15: 0
A17: Additional Card for PCIe Slot 3
A18: DL560
A19: None | H19: 0
A20: HPE Ethernet 1Gb 2P 332T Adptr | B20: 1 | C20: 10L2-LAN1GB | D20: S10L1-DL560-LAN1 | E20: 615732-B21 | F20: 35 | H20: 0
A21: HPE Ethernet 10Gb 2P 530SFP+ Adptr | B21: 1 | C21: 10L2-LAN10GB | D21: S10L1-DL560-LAN10 | E21: 652503-B21 | F21: 716 | G21: HPE BLc 10G SFP+ SR Transceiver | H21: 2 | I21: 455883-B21
A22: HPE StoreFabric CN1200E 10Gb CNA | B22: 1 | C22: 10L2-CNA10 | D22: S10L1-DL560-CNA10 | E22: E7Y06A | F22: 778 | G22: HPE BLc 10G SFP+ SR Transceiver | H22: 2 | I22: 455883-B21
A23: HPE 82Q 8Gb Dual Port PCI-e FC HBA | B23: 1 | C23: 10L2-FC | D23: S10L1-DL560-FC | E23: AJ764A | F23: 889 | H23: 0
A25: Additional Card for PCIe Slot 4
A26: DL560
A27: None | H27: 0
A28: HPE Ethernet 1Gb 2P 332T Adptr | B28: 1 | C28: 10L2-LAN1GB | D28: S10L1-DL560-LAN1 | E28: 615732-B21 | F28: 35 | H28: 0
A29: HPE Ethernet 10Gb 2P 530SFP+ Adptr | B29: 1 | C29: 10L2-LAN10GB | D29: S10L1-DL560-LAN10 | E29: 652503-B21 | F29: 716 | G29: HPE BLc 10G SFP+ SR Transceiver | H29: 2 | I29: 455883-B21
A30: HPE StoreFabric CN1200E 10Gb CNA | B30: 1 | C30: 10L2-CNA10 | D30: S10L1-DL560-CNA10 | E30: E7Y06A | F30: 778 | G30: HPE BLc 10G SFP+ SR Transceiver | H30: 2 | I30: 455883-B21
A31: HPE 82Q 8Gb Dual Port PCI-e FC HBA | B31: 1 | C31: 10L2-FC | D31: S10L1-DL560-FC | E31: AJ764A | F31: 889 | H31: 0
A33: Additional Card for PCIe Slot 5
A34: DL560
A35: None | H35: 0
A36: HPE Ethernet 1Gb 2P 332T Adptr | B36: 1 | C36: 10L2-LAN1GB | D36: S10L1-DL560-LAN1 | E36: 615732-B21 | F36: 35 | H36: 0
A37: HPE Ethernet 10Gb 2P 530SFP+ Adptr | B37: 1 | C37: 10L2-LAN10GB | D37: S10L1-DL560-LAN10 | E37: 652503-B21 | F37: 716 | G37: HPE BLc 10G SFP+ SR Transceiver | H37: 2 | I37: 455883-B21
A38: HPE StoreFabric CN1200E 10Gb CNA | B38: 1 | C38: 10L2-CNA10 | D38: S10L1-DL560-CNA10 | E38: E7Y06A | F38: 778 | G38: HPE BLc 10G SFP+ SR Transceiver | H38: 2 | I38: 455883-B21
A39: HPE 82Q 8Gb Dual Port PCI-e FC HBA | B39: 1 | C39: 10L2-FC | D39: S10L1-DL560-FC | E39: AJ764A | F39: 889 | H39: 0
A41: Additional Card for PCIe Slot 6
A42: DL560
A43: None | H43: 0
A44: HPE Ethernet 1Gb 2P 332T Adptr | B44: 1 | C44: 10L2-LAN1GB | D44: S10L1-DL560-LAN1 | E44: 615732-B21 | F44: 35 | H44: 0
A45: HPE Ethernet 10Gb 2P 530SFP+ Adptr | B45: 1 | C45: 10L2-LAN10GB | D45: S10L1-DL560-LAN10 | E45: 652503-B21 | F45: 716 | G45: HPE BLc 10G SFP+ SR Transceiver | H45: 2 | I45: 455883-B21
A46: HPE StoreFabric CN1200E 10Gb CNA | B46: 1 | C46: 10L2-CNA10 | D46: S10L1-DL560-CNA10 | E46: E7Y06A | F46: 778 | G46: HPE BLc 10G SFP+ SR Transceiver | H46: 2 | I46: 455883-B21
A47: HPE 82Q 8Gb Dual Port PCI-e FC HBA | B47: 1 | C47: 10L2-FC | D47: S10L1-DL560-FC | E47: AJ764A | F47: 889 | H47: 0
A49: Additional Card for PCIe Slot 7
A50: DL560
A51: None | H51: 0
A52: HPE Ethernet 1Gb 2P 332T Adptr | B52: 1 | C52: 10L2-LAN1GB | D52: S10L1-DL560-LAN1 | E52: 615732-B21 | F52: 35 | H52: 0
A53: HPE Ethernet 10Gb 2P 530SFP+ Adptr | B53: 1 | C53: 10L2-LAN10GB | D53: S10L1-DL560-LAN10 | E53: 652503-B21 | F53: 716 | G53: HPE BLc 10G SFP+ SR Transceiver | H53: 2 | I53: 455883-B21
A54: HPE StoreFabric CN1200E 10Gb CNA | B54: 1 | C54: 10L2-CNA10 | D54: S10L1-DL560-CNA10 | E54: E7Y06A | F54: 778 | G54: HPE BLc 10G SFP+ SR Transceiver | H54: 2 | I54: 455883-B21
A55: HPE 82Q 8Gb Dual Port PCI-e FC HBA | B55: 1 | C55: 10L2-FC | D55: S10L1-DL560-FC | E55: AJ764A | F55: 889 | H55: 0
A58: Additional Card for PCIe Slot 1
A59: DL580
A60: None | H60: 0
A61: HPE Ethernet 1Gb 2P 332T Adptr | B61: 1 | C61: 10L2-LAN1GB | D61: S10L1-DL560-LAN1 | E61: 615732-B21 | F61: 35 | H61: 0
A62: HPE Ethernet 10Gb 2P 530SFP+ Adptr | B62: 1 | C62: 10L2-LAN10GB | D62: S10L1-DL560-LAN10 | E62: 652503-B21 | F62: 716 | G62: HPE BLc 10G SFP+ SR Transceiver | H62: 2 | I62: 455883-B21
A63: HPE StoreFabric CN1200E 10Gb CNA | B63: 1 | C63: 10L2-CNA10 | D63: S10L1-DL560-CNA10 | E63: E7Y06A | F63: 778 | G63: HPE BLc 10G SFP+ SR Transceiver | H63: 2 | I63: 455883-B21
A64: HPE 82Q 8Gb Dual Port PCI-e FC HBA | B64: 1 | C64: 10L2-FC | D64: S10L1-DL560-FC | E64: AJ764A | F64: 889 | H64: 0
A66: Additional Card for PCIe Slot 2
A67: DL580
A68: None | H68: 0
A69: HPE Ethernet 1Gb 2P 332T Adptr | B69: 1 | C69: 10L2-LAN1GB | D69: S10L1-DL560-LAN1 | E69: 615732-B21 | F69: 35 | H69: 0
A70: HPE Ethernet 10Gb 2P 530SFP+ Adptr | B70: 1 | C70: 10L2-LAN10GB | D70: S10L1-DL560-LAN10 | E70: 652503-B21 | F70: 716 | G70: HPE BLc 10G SFP+ SR Transceiver | H70: 2 | I70: 455883-B21
A71: HPE StoreFabric CN1200E 10Gb CNA | B71: 1 | C71: 10L2-CNA10 | D71: S10L1-DL560-CNA10 | E71: E7Y06A | F71: 778 | G71: HPE BLc 10G SFP+ SR Transceiver | H71: 2 | I71: 455883-B21
A72: HPE 82Q 8Gb Dual Port PCI-e FC HBA | B72: 1 | C72: 10L2-FC | D72: S10L1-DL560-FC | E72: AJ764A | F72: 889 | H72: 0
A74: Additional Card for PCIe Slot 3
A75: DL580
A76: None | H76: 0
A77: HPE Ethernet 1Gb 2P 332T Adptr | B77: 1 | C77: 10L2-LAN1GB | D77: S10L1-DL560-LAN1 | E77: 615732-B21 | F77: 35 | H77: 0
A78: HPE Ethernet 10Gb 2P 530SFP+ Adptr | B78: 1 | C78: 10L2-LAN10GB | D78: S10L1-DL560-LAN10 | E78: 652503-B21 | F78: 716 | G78: HPE BLc 10G SFP+ SR Transceiver | H78: 2 | I78: 455883-B21
A79: HPE StoreFabric CN1200E 10Gb CNA | B79: 1 | C79: 10L2-CNA10 | D79: S10L1-DL560-CNA10 | E79: E7Y06A | F79: 778 | G79: HPE BLc 10G SFP+ SR Transceiver | H79: 2 | I79: 455883-B21
A80: HPE 82Q 8Gb Dual Port PCI-e FC HBA | B80: 1 | C80: 10L2-FC | D80: S10L1-DL560-FC | E80: AJ764A | F80: 889 | H80: 0
A82: Additional Card for PCIe Slot 4
A83: DL580
A84: None | H84: 0
A85: HPE Ethernet 1Gb 2P 332T Adptr | B85: 1 | C85: 10L2-LAN1GB | D85: S10L1-DL560-LAN1 | E85: 615732-B21 | F85: 35 | H85: 0
A86: HPE Ethernet 10Gb 2P 530SFP+ Adptr | B86: 1 | C86: 10L2-LAN10GB | D86: S10L1-DL560-LAN10 | E86: 652503-B21 | F86: 716 | G86: HPE BLc 10G SFP+ SR Transceiver | H86: 2 | I86: 455883-B21
A87: HPE StoreFabric CN1200E 10Gb CNA | B87: 1 | C87: 10L2-CNA10 | D87: S10L1-DL560-CNA10 | E87: E7Y06A | F87: 778 | G87: HPE BLc 10G SFP+ SR Transceiver | H87: 2 | I87: 455883-B21
A88: HPE 82Q 8Gb Dual Port PCI-e FC HBA | B88: 1 | C88: 10L2-FC | D88: S10L1-DL560-FC | E88: AJ764A | F88: 889 | H88: 0
A90: Additional Card for PCIe Slot 5
A91: DL580
A92: None | H92: 0
A93: HPE Ethernet 1Gb 2P 332T Adptr | B93: 1 | C93: 10L2-LAN1GB | D93: S10L1-DL560-LAN1 | E93: 615732-B21 | F93: 35 | H93: 0
A94: HPE Ethernet 10Gb 2P 530SFP+ Adptr | B94: 1 | C94: 10L2-LAN10GB | D94: S10L1-DL560-LAN10 | E94: 652503-B21 | F94: 716 | G94: HP BLc 10G SFP+ SR Transceiver | H94: 2 | I94: 455883-B21
A95: HPE StoreFabric CN1200E 10Gb CNA | B95: 1 | C95: 10L2-CNA10 | D95: S10L1-DL560-CNA10 | E95: E7Y06A | F95: 778 | G95: HP BLc 10G SFP+ SR Transceiver | H95: 2 | I95: 455883-B21
A96: HPE 82Q 8Gb Dual Port PCI-e FC HBA | B96: 1 | C96: 10L2-FC | D96: S10L1-DL560-FC | E96: AJ764A | F96: 889 | H96: 0
A98: Additional Card for PCIe Slot 6
A99: DL580
A100: None | H100: 0
A101: HPE Ethernet 1Gb 2P 332T Adptr | B101: 1 | C101: 10L2-LAN1GB | D101: S10L1-DL560-LAN1 | E101: 615732-B21 | F101: 35 | H101: 0
A102: HPE Ethernet 10Gb 2P 530SFP+ Adptr | B102: 1 | C102: 10L2-LAN10GB | D102: S10L1-DL560-LAN10 | E102: 652503-B21 | F102: 716 | G102: HPE BLc 10G SFP+ SR Transceiver | H102: 2 | I102: 455883-B21
A103: HPE StoreFabric CN1200E 10Gb CNA | B103: 1 | C103: 10L2-CNA10 | D103: S10L1-DL560-CNA10 | E103: E7Y06A | F103: 778 | G103: HPE BLc 10G SFP+ SR Transceiver | H103: 2 | I103: 455883-B21
A104: HPE 82Q 8Gb Dual Port PCI-e FC HBA | B104: 1 | C104: 10L2-FC | D104: S10L1-DL560-FC | E104: AJ764A | F104: 889 | H104: 0
A106: Additional Card for PCIe Slot 7
A107: DL580
A108: None | H108: 0
A109: HPE Ethernet 1Gb 2P 332T Adptr | B109: 1 | C109: 10L2-LAN1GB | D109: S10L1-DL560-LAN1 | E109: 615732-B21 | F109: 35 | H109: 0
A110: HPE Ethernet 10Gb 2P 530SFP+ Adptr | B110: 1 | C110: 10L2-LAN10GB | D110: S10L1-DL560-LAN10 | E110: 652503-B21 | F110: 716 | G110: HPE BLc 10G SFP+ SR Transceiver | H110: 2 | I110: 455883-B21
A111: HPE StoreFabric CN1200E 10Gb CNA | B111: 1 | C111: 10L2-CNA10 | D111: S10L1-DL560-CNA10 | E111: E7Y06A | F111: 778 | G111: HPE BLc 10G SFP+ SR Transceiver | H111: 2 | I111: 455883-B21
A112: HPE 82Q 8Gb Dual Port PCI-e FC HBA | B112: 1 | C112: 10L2-FC | D112: S10L1-DL560-FC | E112: AJ764A | F112: 889 | H112: 0
A114: Additional Card for PCIe Slot 8
A115: DL580
A116: None | H116: 0
A117: HPE Ethernet 1Gb 2P 332T Adptr | B117: 1 | C117: 10L2-LAN1GB | D117: S10L1-DL560-LAN1 | E117: 615732-B21 | F117: 35 | H117: 0
A118: HPE Ethernet 10Gb 2P 530SFP+ Adptr | B118: 1 | C118: 10L2-LAN10GB | D118: S10L1-DL560-LAN10 | E118: 652503-B21 | F118: 716 | G118: HPE BLc 10G SFP+ SR Transceiver | H118: 2 | I118: 455883-B21
A119: HPE StoreFabric CN1200E 10Gb CNA | B119: 1 | C119: 10L2-CNA10 | D119: S10L1-DL560-CNA10 | E119: E7Y06A | F119: 778 | G119: HPE BLc 10G SFP+ SR Transceiver | H119: 2 | I119: 455883-B21
A120: HPE 82Q 8Gb Dual Port PCI-e FC HBA | B120: 1 | C120: 10L2-FC | D120: S10L1-DL560-FC | E120: AJ764A | F120: 889 | H120: 0
A122: Additional Card for PCIe Slot 9
A123: DL580
A124: None | H124: 0
A125: HPE Ethernet 1Gb 2P 332T Adptr | B125: 1 | C125: 10L2-LAN1GB | D125: S10L1-DL560-LAN1 | E125: 615732-B21 | F125: 35 | H125: 0
A126: HPE Ethernet 10Gb 2P 530SFP+ Adptr | B126: 1 | C126: 10L2-LAN10GB | D126: S10L1-DL560-LAN10 | E126: 652503-B21 | F126: 716 | G126: HPE BLc 10G SFP+ SR Transceiver | H126: 2 | I126: 455883-B21
A127: HPE StoreFabric CN1200E 10Gb CNA | B127: 1 | C127: 10L2-CNA10 | D127: S10L1-DL560-CNA10 | E127: E7Y06A | F127: 778 | G127: HPE BLc 10G SFP+ SR Transceiver | H127: 2 | I127: 455883-B21
A128: HPE 82Q 8Gb Dual Port PCI-e FC HBA | B128: 1 | C128: 10L2-FC | D128: S10L1-DL560-FC | E128: AJ764A | F128: 889 | H128: 0
A130: Aggiungere Coppia di Processori
A164: Additional Card for PCIe Slot 1 (Full height) (CPU1)
A165: T630
A166: None | B166: ="" ->  | C166: ="" ->  | D166: ="" ->  | E166: ="" ->  | F166: ="" ->  | G166: ="" ->  | H166: 0 | I166: ="" -> 
A167: Broadcom 5720 DP 1Gb Network Interface Card,Full Height,CusKit | B167: 1 | C167: 10L1-LAN1GB | D167: S10L1-T630-LAN1 | E167: [540-BBGY] | F167: 35 | H167: 0
A168: Emulex LPE 12002, Dual Port 8Gb Fibre Channel HBA,Full Height,CusKit | B168: 1 | C168: 10L1-FC | D168: S10L1-T630-FC | E168: [406-BBGR] | F168: 940 | H168: 0
A169: QLogic 57810 Dual Port 10Gb Direct Attach/SFP+ Network Adapter,Full Height,CusKit | B169: 1 | C169: 10L1-LAN10GB | D169: S10L1-T630-LAN10 | E169: [540-BBGS] | F169: 417 | G169: PowerEdge SFP+, 10GbE SR/SX, Optical Tranceiver, LC Connector, for Intel and Broadcom,CusKit | H169: 2 | I169: [407-BBOK]
A172: Additional Card for PCIe Slot 2 (Full height) (CPU1)
A173: T630
A174: None | B174: ="" ->  | C174: ="" ->  | D174: ="" ->  | E174: ="" ->  | F174: ="" ->  | G174: ="" ->  | H174: 0 | I174: ="" -> 
A175: Broadcom 5720 DP 1Gb Network Interface Card,Full Height,CusKit | B175: 1 | C175: 10L1-LAN1GB | D175: S10L1-T630-LAN1 | E175: [540-BBGY] | F175: 35 | H175: 0
A176: Emulex LPE 12002, Dual Port 8Gb Fibre Channel HBA,Full Height,CusKit | B176: 1 | C176: 10L1-FC | D176: S10L1-T630-FC | E176: [406-BBGR] | F176: 940 | H176: 0
A177: QLogic 57810 Dual Port 10Gb Direct Attach/SFP+ Network Adapter,Full Height,CusKit | B177: 1 | C177: 10L1-LAN10GB | D177: S10L1-T630-LAN10 | E177: [540-BBGS] | F177: 417 | G177: PowerEdge SFP+, 10GbE SR/SX, Optical Tranceiver, LC Connector, for Intel and Broadcom,CusKit | H177: 2 | I177: [407-BBOK]
A180: Additional Card for PCIe Slot 3 (Full height) (CPU2)
A181: T630
A182: None | B182: ="" ->  | C182: ="" ->  | D182: ="" ->  | E182: ="" ->  | F182: ="" ->  | G182: ="" ->  | H182: 0 | I182: ="" -> 
A183: Broadcom 5720 DP 1Gb Network Interface Card,Full Height,CusKit | B183: 1 | C183: 10L1-LAN1GB | D183: S10L1-T630-LAN1 | E183: [540-BBGY] | F183: 35 | H183: 0
A184: Emulex LPE 12002, Dual Port 8Gb Fibre Channel HBA,Full Height,CusKit | B184: 1 | C184: 10L1-FC | D184: S10L1-T630-FC | E184: [406-BBGR] | F184: 940 | H184: 0
A185: QLogic 57810 Dual Port 10Gb Direct Attach/SFP+ Network Adapter,Full Height,CusKit | B185: 1 | C185: 10L1-LAN10GB | D185: S10L1-T630-LAN10 | E185: [540-BBGS] | F185: 417 | G185: PowerEdge SFP+, 10GbE SR/SX, Optical Tranceiver, LC Connector, for Intel and Broadcom,CusKit | H185: 2 | I185: [407-BBOK]
A188: Additional Card for PCIe Slot 4 (Full height) (CPU2)
A189: T630
A190: None | B190: ="" ->  | C190: ="" ->  | D190: ="" ->  | E190: ="" ->  | F190: ="" ->  | G190: ="" ->  | H190: 0 | I190: ="" -> 
A191: Broadcom 5720 DP 1Gb Network Interface Card,Full Height,CusKit | B191: 1 | C191: 10L1-LAN1GB | D191: S10L1-T630-LAN1 | E191: [540-BBGY] | F191: 35 | H191: 0
A192: Emulex LPE 12002, Dual Port 8Gb Fibre Channel HBA,Full Height,CusKit | B192: 1 | C192: 10L1-FC | D192: S10L1-T630-FC | E192: [406-BBGR] | F192: 940 | H192: 0
A193: QLogic 57810 Dual Port 10Gb Direct Attach/SFP+ Network Adapter,Full Height,CusKit | B193: 1 | C193: 10L1-LAN10GB | D193: S10L1-T630-LAN10 | E193: [540-BBGS] | F193: 417 | G193: PowerEdge SFP+, 10GbE SR/SX, Optical Tranceiver, LC Connector, for Intel and Broadcom,CusKit | H193: 2 | I193: [407-BBOK]
A197: Additional Card for PCIe Slot 5 (Full height) (CPU2)
A198: T630
A199: None | B199: ="" ->  | C199: ="" ->  | D199: ="" ->  | E199: ="" ->  | F199: ="" ->  | G199: ="" ->  | H199: 0 | I199: ="" -> 
A200: Broadcom 5720 DP 1Gb Network Interface Card,Full Height,CusKit | B200: 1 | C200: 10L1-LAN1GB | D200: S10L1-T630-LAN1 | E200: [540-BBGY] | F200: 35 | H200: 0
A201: Emulex LPE 12002, Dual Port 8Gb Fibre Channel HBA,Full Height,CusKit | B201: 1 | C201: 10L1-FC | D201: S10L1-T630-FC | E201: [406-BBGR] | F201: 940 | H201: 0
A202: QLogic 57810 Dual Port 10Gb Direct Attach/SFP+ Network Adapter,Full Height,CusKit | B202: 1 | C202: 10L1-LAN10GB | D202: S10L1-T630-LAN10 | E202: [540-BBGS] | F202: 417 | G202: PowerEdge SFP+, 10GbE SR/SX, Optical Tranceiver, LC Connector, for Intel and Broadcom,CusKit | H202: 2 | I202: [407-BBOK]
A205: Additional Card for PCIe Slot 6 (Full height) (CPU2)
A206: T630
A207: None | B207: ="" ->  | C207: ="" ->  | D207: ="" ->  | E207: ="" ->  | F207: ="" ->  | G207: ="" ->  | H207: 0 | I207: ="" -> 
A208: Broadcom 5720 DP 1Gb Network Interface Card,Full Height,CusKit | B208: 1 | C208: 10L1-LAN1GB | D208: S10L1-T630-LAN1 | E208: [540-BBGY] | F208: 35 | H208: 0
A209: Emulex LPE 12002, Dual Port 8Gb Fibre Channel HBA,Full Height,CusKit | B209: 1 | C209: 10L1-FC | D209: S10L1-T630-FC | E209: [406-BBGR] | F209: 940 | H209: 0
A210: QLogic 57810 Dual Port 10Gb Direct Attach/SFP+ Network Adapter,Full Height,CusKit | B210: 1 | C210: 10L1-LAN10GB | D210: S10L1-T630-LAN10 | E210: [540-BBGS] | F210: 417 | G210: PowerEdge SFP+, 10GbE SR/SX, Optical Tranceiver, LC Connector, for Intel and Broadcom,CusKit | H210: 2 | I210: [407-BBOK]

Sheet Servizi Opzionali (hidden)
A1: Warranty Upgrades | G1: Protezione dei dati - Keep Your Hard Drive
A2: DL560
A3: None | B3: ="" ->  | C3: ="" ->  | D3: ="" ->  | E3: ="" ->  | F3: ="" ->  | I3: =IF(($A$22=$A$12),"",IF($A$8=$A$3,I13,IF($A$8=$A$4,I14,IF($A$8=$A$5,I15)))) ->  | J3: =IF(($A$22=$A$12),"",IF($A$8=$A$3,J13,IF($A$8=$A$4,J14,IF($A$8=$A$5,J15)))) ->  | K3: =IF(($A$22=$A$12),"",IF($A$8=$A$3,K13,IF($A$8=$A$4,K14,IF($A$8=$A$5,K15)))) ->  | L3: =IF(($A$22=$A$12),"",IF($A$8=$A$3,L13,IF($A$8=$A$4,L14,IF($A$8=$A$5,L15)))) ->  | M3: =IF(($A$22=$A$12),"",IF($A$8=$A$3,M13,IF($A$8=$A$4,M14,IF($A$8=$A$5,M15)))) -> 
A4: 4Yr Warranty upgrade | B4: 1 | C4: 10L2-SO-12M | D4: S10L2-DL560-S-12M | E4: ="" ->  | F4: 350
A5: 5Yr Warranty upgrade | B5: 1 | C5: 10L2-SO-24M | D5: S10L2-DL560-S-24M | E5: ="" ->  | F5: 700
A7: Estensione Garanzia Selezionata
A8: ='Server10 Lotto2 DL560'!$B$115 -> None | C8: DL560
A9: ='Server10 Lotto2 DL560 2'!$B$115 -> None | C9: DL560 2
A10: ='Server10 Lotto2 DL560 3'!$B$115 -> None | C10: DL560 3
A12: None | B12: ="" ->  | C12: ="" ->  | D12: ="" ->  | E12: ="" ->  | F12: ="" ->  | H12: None
A13: =IF($A$8=$A$3,H13,IF($A$8=$A$4,H14,IF($A$8=$A$5,H15))) -> 3Yr Data Protection - Keep Your Hard Drive | B13: 1 | C13: 10L2-SO-HDD | D13: S10L2-DL560-S-HDD | E13: =IF($A$8=$A$3,L13,IF($A$8=$A$4,L14,IF($A$8=$A$5,L15))) ->  | F13: 300 | H13: 3Yr Data Protection - Keep Your Hard Drive | I13: 1 | J13: 10L2-SO-HDD | K13: S10L2-DL560-S-HDD | L13: ="" ->  | M13: 300
A14: None | B14: ="" ->  | C14: ="" ->  | D14: ="" ->  | E14: ="" ->  | F14: ="" ->  | H14: 4Yr Data Protection - Keep Your Hard Drive | I14: =I13 -> 1 | J14: =J13 -> 10L2-SO-HDD | K14: =K13 -> S10L2-DL560-S-HDD | L14: ="" ->  | M14: =M13 -> 300
A15: =IF(A9=A3,H13,IF(A9=A4,H14,IF(A9=A5,H15))) -> 3Yr Data Protection - Keep Your Hard Drive | B15: 1 | C15: 10L2-SO-HDD | D15: S10L2-DL560-S-HDD | E15: =IF(A9=A3,L13,IF(A9=A4,L14,IF(A9=A5,L15))) ->  | F15: 300 | H15: 5Yr Data Protection - Keep Your Hard Drive | I15: =I13 -> 1 | J15: =J13 -> 10L2-SO-HDD | K15: =K13 -> S10L2-DL560-S-HDD | L15: ="" ->  | M15: =M13 -> 300
A16: None | B16: ="" ->  | C16: ="" ->  | D16: ="" ->  | E16: ="" ->  | F16: ="" -> 
A17: =IF(A10=A3,H13,IF(A10=A4,H14,IF(A10=A5,H15))) -> 3Yr Data Protection - Keep Your Hard Drive | B17: 1 | C17: 10L2-SO-HDD | D17: S10L2-DL560-S-HDD | E17: =IF(A10=A3,L13,IF(A10=A4,L14,IF(A10=A5,L15))) ->  | F17: 300
A21: Protezione dei dati Selezionata
A22: ='Server10 Lotto2 DL560'!B118 -> None
A24: Servizio Specialistico di System and Network Management per sistema opertivo Windows, erogato on site. | B24: 1 | C24: 10L2-SO-WIN | D24: S10L1-R630-S-WIN | F24: 200
A25: Servizio Specialistico di System and Network Management per sistema opertivo Linux, erogato on site. | B25: 1 | C25: 10L2-SO-LINUX | D25: S10L1-R630-S-LINUX | F25: 200
A27: None | B27: ="" ->  | C27: ="" ->  | D27: ="" ->  | E27: ="" ->  | F27: ="" -> 
A28: =IF('Server10 Lotto2 DL560'!$C$16>=5,H28,"None") -> None | B28: =IF('Server10 Lotto2 DL560'!$C$16>=5,I28,"") ->  | C28: =IF('Server10 Lotto2 DL560'!$C$16>=5,J28,"") ->  | D28: =IF('Server10 Lotto2 DL560'!$C$16>=5,K28,"") ->  | E28: =IF('Server10 Lotto2 DL560'!$C$16>=5,L28,"") ->  | F28: =IF('Server10 Lotto2 DL560'!$C$16>=5,M28,"") ->  | H28: Servizi di manutenzione preventiva | I28: 1 | J28: 10L1-SO-PREV | K28: S10L1-T630-S-PREV | M28: 200
A30: Warranty Upgrades | G30: Protezione dei dati - Keep Your Hard Drive
A31: DL580
A32: None | B32: ="" ->  | C32: ="" ->  | D32: ="" ->  | E32: ="" ->  | F32: ="" ->  | I32: =IF(($A$22=$A$12),"",IF($A$8=$A$3,I42,IF($A$8=$A$4,I43,IF($A$8=$A$5,I44)))) ->  | J32: =IF(($A$22=$A$12),"",IF($A$8=$A$3,J42,IF($A$8=$A$4,J43,IF($A$8=$A$5,J44)))) ->  | K32: =IF(($A$22=$A$12),"",IF($A$8=$A$3,K42,IF($A$8=$A$4,K43,IF($A$8=$A$5,K44)))) ->  | L32: =IF(($A$22=$A$12),"",IF($A$8=$A$3,L42,IF($A$8=$A$4,L43,IF($A$8=$A$5,L44)))) ->  | M32: =IF(($A$22=$A$12),"",IF($A$8=$A$3,M42,IF($A$8=$A$4,M43,IF($A$8=$A$5,M44)))) -> 
A33: 4Yr Warranty upgrade | B33: 1 | C33: 10L2-SO-12M | D33: S10L2-DL580-S-12M | E33: ="" ->  | F33: 350
A34: 5Yr Warranty upgrade | B34: 1 | C34: 10L2-SO-24M | D34: S10L1-DL580-S-24M | E34: ="" ->  | F34: 700
A36: Estensione Garanzia Selezionata
A37: ='Server10 Lotto2 DL580'!$B$115 -> None | C37: DL580
A38: ='Server10 Lotto2 DL580 2'!$B$115 -> None | C38: DL580 2
A39: ='Server10 Lotto2 DL580 3'!$B$115 -> None | C39: DL580 3
A41: None | B41: ="" ->  | C41: ="" ->  | D41: ="" ->  | E41: ="" ->  | F41: ="" ->  | H41: None
A42: =IF($A$37=$A$32,H42,IF($A$37=$A$33,H43,IF($A$37=$A$34,H44))) -> 3Yr Data Protection - Keep Your Hard Drive | B42: 1 | C42: 10L2-SO-HDD | D42: S10L2-DL580-S-HDD | E42: =IF($A$37=$A$32,L42,IF($A$37=$A$33,L43,IF($A$37=$A$34,L44))) -> [733-10057] | F42: 300 | H42: 3Yr Data Protection - Keep Your Hard Drive | I42: 1 | J42: 10L2-SO-HDD | K42: S10L2-DL580-S-HDD | L42: [733-10057] | M42: 300
A43: None | B43: ="" ->  | C43: ="" ->  | D43: ="" ->  | E43: ="" ->  | F43: ="" ->  | H43: 4Yr Data Protection - Keep Your Hard Drive | I43: =I42 -> 1 | J43: =J42 -> 10L2-SO-HDD | K43: =K42 -> S10L2-DL580-S-HDD | L43: [733-10058] | M43: =M42 -> 300
A44: =IF(A38=A32,H42,IF(A38=A33,H43,IF(A38=A34,H44))) -> 3Yr Data Protection - Keep Your Hard Drive | B44: 1 | C44: 10L2-SO-HDD | D44: S10L2-DL580-S-HDD | E44: =IF(A38=A32,L42,IF(A38=A33,L43,IF(A38=A34,L44))) -> [733-10057] | F44: 300 | H44: 5Yr Data Protection - Keep Your Hard Drive | I44: =I42 -> 1 | J44: =J42 -> 10L2-SO-HDD | K44: =K42 -> S10L2-DL580-S-HDD | L44: [733-10059] | M44: =M42 -> 300
A45: None | B45: ="" ->  | C45: ="" ->  | D45: ="" ->  | E45: ="" ->  | F45: ="" -> 
A46: =IF(A39=A32,H42,IF(A39=A33,H43,IF(A39=A34,H44))) -> 3Yr Data Protection - Keep Your Hard Drive | B46: 1 | C46: 10L2-SO-HDD | D46: S10L2-DL580-S-HDD | E46: =IF(A39=A32,L42,IF(A39=A33,L43,IF(A39=A34,L44))) -> [733-10057] | F46: 300
A50: Protezione dei dati Selezionata
A51: ='Server10 Lotto2 DL580'!B118 -> None
A53: Servizio Specialistico di System and Network Management per sistema opertivo Windows, erogato on site. | B53: 1 | C53: 10L2-SO-WIN | D53: S10L1-R730xd-S-WIN | F53: 200
A54: Servizio Specialistico di System and Network Management per sistema opertivo Linux, erogato on site. | B54: 1 | C54: 10L2-SO-LINUX | D54: S10L1-R730xd-S-LINUX | F54: 200
A56: None | B56: ="" ->  | C56: ="" ->  | D56: ="" ->  | E56: ="" ->  | F56: ="" -> 
A57: =IF('Server10 Lotto2 DL580'!$C$16>=5,H57,"None") -> None | B57: =IF('Server10 Lotto2 DL580'!$C$16>=5,I57,"") ->  | C57: =IF('Server10 Lotto2 DL580'!$C$16>=5,J57,"") ->  | D57: =IF('Server10 Lotto2 DL580'!$C$16>=5,K57,"") ->  | E57: =IF('Server10 Lotto2 DL580'!$C$16>=5,L57,"") ->  | F57: =IF('Server10 Lotto2 DL580'!$C$16>=5,M57,"") ->  | H57: Servizi di manutenzione preventiva | I57: 1 | J57: 10L2-SO-PREV | K57: S10L2-DL580-S-PREV | M57: 200
A60: Warranty Upgrades | G60: Protezione dei dati - Keep Your Hard Drive
A61: T630
A62: None | B62: ="" ->  | C62: ="" ->  | D62: ="" ->  | E62: ="" ->  | F62: ="" ->  | I62: =IF(($A$22=$A$12),"",IF($A$8=$A$3,I70,IF($A$8=$A$4,I71,IF($A$8=$A$5,I72)))) ->  | J62: =IF(($A$22=$A$12),"",IF($A$8=$A$3,J70,IF($A$8=$A$4,J71,IF($A$8=$A$5,J72)))) ->  | K62: =IF(($A$22=$A$12),"",IF($A$8=$A$3,K70,IF($A$8=$A$4,K71,IF($A$8=$A$5,K72)))) ->  | L62: =IF(($A$22=$A$12),"",IF($A$8=$A$3,L70,IF($A$8=$A$4,L71,IF($A$8=$A$5,L72)))) ->  | M62: =IF(($A$22=$A$12),"",IF($A$8=$A$3,M70,IF($A$8=$A$4,M71,IF($A$8=$A$5,M72)))) -> 
A63: 4Yr Warranty upgrade | B63: 1 | C63: 10L1-SO-12M-T | D63: S10L1-T630-S-12M | E63: ="" ->  | F63: 175
A64: 5Yr Warranty upgrade | B64: 1 | C64: 10L1-SO-24M-T | D64: S10L1-T630-S-24M | E64: ="" ->  | F64: 350
A66: Estensione Garanzia Selezionata
A67: =#REF! -> 
A69: None | B69: ="" ->  | C69: ="" ->  | D69: ="" ->  | E69: ="" ->  | F69: ="" ->  | H69: None
A70: =IF($A$67=$A$62,H70,IF($A$67=$A$63,H71,IF($A$67=$A$64,H72))) ->  | B70: 1 | C70: 10L1-SO-HDD | D70: S10L1-T630-S-HDD | E70: =IF($A$67=$A$62,L70,IF($A$67=$A$63,L71,IF($A$67=$A$64,L72))) ->  | F70: 150 | H70: 3Yr Data Protection - Keep Your Hard Drive | I70: 1 | J70: 10L1-SO-HDD | K70: S10L1-T630-S-HDD | L70: [733-10057] | M70: 150
H71: 4Yr Data Protection - Keep Your Hard Drive | I71: =I70 -> 1 | J71: =J70 -> 10L1-SO-HDD | K71: =K70 -> S10L1-T630-S-HDD | L71: [733-10058] | M71: =M70 -> 150
H72: 5Yr Data Protection - Keep Your Hard Drive | I72: =I70 -> 1 | J72: =J70 -> 10L1-SO-HDD | K72: =K70 -> S10L1-T630-S-HDD | L72: [733-10059] | M72: =M70 -> 150
A74: Protezione dei dati Selezionata
A75: =#REF! -> 
A77: Servizio Specialistico di System and Network Management per sistema opertivo Windows, erogato on site. | B77: 1 | C77: 10L1-SO-WIN | D77: S10L1-T630-S-WIN | F77: 193
A78: Servizio Specialistico di System and Network Management per sistema opertivo Linux, erogato on site. | B78: 1 | C78: 10L1-SO-LINUX | D78: S10L1-T630-S-LINUX | F78: 193
A80: None | B80: ="" ->  | C80: ="" ->  | D80: ="" ->  | E80: ="" ->  | F80: ="" -> 
A81: =IF(#REF!>=5,H81,"None") ->  | B81: =IF(#REF!>=5,I81,"") ->  | C81: =IF(#REF!>=5,J81,"") ->  | D81: =IF(#REF!>=5,K81,"") ->  | E81: =IF(#REF!>=5,L81,"") ->  | F81: =IF(#REF!>=5,M81,"") ->  | H81: Servizi di manutenzione preventiva | I81: 1 | J81: 10L1-SO-PREV | K81: S10L1-T630-S-PREV | M81: 193
